date,department/service,beneficiary,amount,summary of purpose,category,transaction number,SAP vendor number
01.03.2020,ASSET MANAGEMENT,ROWANWOOD PROFESSIONAL SERVICES LTD,"52,734.06",PROGRAMME & ASSET,SOFTWARE,5902406058,1000080531
01.03.2020,CHILDREN'S SERVICES,ROADWORKS MEDIA,"1,175.00",YOS SUPPORT,EXTERNAL AGENCIES AND BODIES,5902406422,1000081375
01.03.2020,COMMUNITIES,BROWNING EST MGMT ASSN,"3,878.00",BROWNING EMB,M&M ALLOWANCE CO-OPS,5902405426,1000059362
01.03.2020,COMMUNITIES,WALWORTH METHODIST CHURCH,397.50,RESIDENT INVOLVEMENT TEAM,HIRE OF ROOMS/HALLS,5902406398,1000042218
01.03.2020,COMMUNITIES,WALWORTH METHODIST CHURCH,397.50,RESIDENT INVOLVEMENT TEAM,HIRE OF ROOMS/HALLS,5902406402,1000042218
01.03.2020,COMMUNITIES,WALWORTH METHODIST CHURCH,397.50,RESIDENT INVOLVEMENT TEAM,HIRE OF ROOMS/HALLS,5902406404,1000042218
01.03.2020,COMMUNITIES,WALWORTH METHODIST CHURCH,397.50,RESIDENT INVOLVEMENT TEAM,HIRE OF ROOMS/HALLS,5902406405,1000042218
01.03.2020,CUSTOMER EXPERIENCE HGF,CLYDE & CO,849.10,TRANSFERRED INQUEST,PROFESSIONAL FEES,5902405372,1000067838
01.03.2020,ENVIRONMENT AND LEISURE,CONWAY AECOM LTD,521.73,CAPITAL PS (LEISURE),CONSTR'N SUB CONTRACT - NON CERTIFICATED,5902405539,1000071205
01.03.2020,ENVIRONMENT AND LEISURE,CONWAY AECOM LTD,"1,868.12",CAPITAL PS (LEISURE),CONSTR'N SUB CONTRACT - NON CERTIFICATED,5902405536,1000071205
01.03.2020,ENVIRONMENT DIRECTORATE,CONWAY AECOM LTD,"2,626.40",FLOOD RISK MANAGEMENT,HIGHWAYS TERM CONTRACT,5902405509,1000071205
01.03.2020,ENVIRONMENT DIRECTORATE,CONWAY AECOM LTD,"5,908.29",FLOOD RISK MANAGEMENT,HIGHWAYS TERM CONTRACT,5902405506,1000071205
01.03.2020,ENVIRONMENT DIRECTORATE,CONWAY AECOM LTD,"12,644.50",FLOOD RISK MANAGEMENT,HIGHWAYS TERM CONTRACT,5902405508,1000071205
01.03.2020,ENVIRONMENT DIRECTORATE,SOUTHWARK NEWSPAPER LTD,360.00,HIGHWAYS DEVELOPMENT,MARKETING & PUBLICITY SERVICES,5902405680,1556957
01.03.2020,ENVIRONMENT DIRECTORATE,CONWAY AECOM LTD,"9,576.78",SECTION 278 & 38,OTHER CONTRACTORS,5902405694,1000071205
01.03.2020,HOUSING HRA,A & E ELKINS LTD,"657,560.85",CAPITAL PS (HRA),CONSTRUCTION MAIN CONTRACT -CERTIFICATED,2103068105,4012501
01.03.2020,HOUSING HRA,LARK LANDSCAPE DESIGN LIMITED,"2,713.96",CAPITAL PS (HRA),CONSTRUCTION FEES,5902406204,1000035609
01.03.2020,LEISURE DIRECTORATE,THEATRE PECKHAM,"7,875.00",ARTS GRANTS,GRANTS,5902406000,1071668
01.03.2020,LEISURE DIRECTORATE,THEATRE PECKHAM,"7,875.00",ARTS GRANTS,GRANTS,5902406000,1071668
01.03.2020,LEISURE DIRECTORATE,THE COLUMBARIA COMPANY,"4,800.00",CREMATORIUM,MATERIALS,5902405677,1632437
01.03.2020,LEISURE DIRECTORATE,POSTURE PEOPLE LTD,322.45,EAST STREET LIBRARY,PROFESSIONAL FEES,5902406028,1000078441
01.03.2020,LEISURE DIRECTORATE,CONWAY AECOM LTD,"13,200.00",SDM BUDGET,PROFESSIONAL FEES,5902405609,1000071205
01.03.2020,PUBLIC HEALTH,CAMBRIDGE HOUSE & TALBOT,558.00,HEALTHY WEIGHT,EXTERNAL AGENCIES AND BODIES,5902406212,11248874
01.03.2020,PUBLIC HEALTH,CAMBRIDGE HOUSE & TALBOT,626.00,HEALTHY WEIGHT,EXTERNAL AGENCIES AND BODIES,5902406213,11248874
01.03.2020,RESIDENT SERVICES,EDF ENERGY PLC,321.83,OPERATIONS/OFFICES ACCOMMODATION,ELECTRICITY,5902406053,1008746
01.03.2020,RESIDENT SERVICES,EDF ENERGY PLC,431.29,OPERATIONS/OFFICES ACCOMMODATION,ELECTRICITY,5902406048,1008746
02.03.2020,CENTRAL FUNCTIONS,BIFFA WASTE SERVICES LTD,"1,001.39",COMMERCIAL PROPERTIES,REFUSE COLLECTION CONTRACT,5902405812,1147051
02.03.2020,CENTRAL FUNCTIONS,BIFFA WASTE SERVICES LTD,"1,399.45",COMMERCIAL PROPERTIES,REFUSE COLLECTION CONTRACT,5902405811,1147051
02.03.2020,CHILDREN AND ADULT,CEDR SERVICES LIMITED,540.00,LEGAL,LEGAL & COURT FEES,6101926638,CHEQUE PAYMENT
02.03.2020,ENVIRONMENT DIRECTORATE,FUTURE GARMENTS LTD T/A EUROX,"1,710.64",MANAGEMENT TEAM,"CLOTHING, UNIFORMS & LAUNDRY",5902405521,1000080983
02.03.2020,ENVIRONMENT DIRECTORATE,NPOWER,336.20,SANDGATE STREET,ELECTRICITY,5902405784,1000032342
02.03.2020,EXCHEQUER SERVICES,DSI BILLING SERVICES LTD,"1,251.24",ADMINISTRATIVE SUPPORT,POSTAGES,5902406137,1000058640
02.03.2020,EXCHEQUER SERVICES,BUDGET CARPETS,254.17,SESS,OTHER PAYMENTS FOR CLIENTS,5902406113,11319076
02.03.2020,HOUSING HRA,REDACTED PERSONAL DATA,"38,000.00",CAPITAL PS (HRA),CAPITAL GRANTS,REDACTED,REDACTED
02.03.2020,LEISURE DIRECTORATE,AGENTIS WORKWEAR LTD,536.54,CEMETERIES,"CLOTHING, UNIFORMS & LAUNDRY",5902405668,1000065561
02.03.2020,LEISURE DIRECTORATE,AGENTIS WORKWEAR LTD,"2,236.60",CEMETERIES,"CLOTHING, UNIFORMS & LAUNDRY",5902405728,1000065561
02.03.2020,LEISURE DIRECTORATE,NPOWER LTD,268.65,SOUTHWARK AREA TEAM,ELECTRICITY,5902406413,1000078994
02.03.2020,LEISURE DIRECTORATE,NPOWER LTD,286.97,SOUTHWARK AREA TEAM,ELECTRICITY,5902406416,1000078994
02.03.2020,LEISURE DIRECTORATE,NPOWER LTD,363.64,SOUTHWARK AREA TEAM,ELECTRICITY,5902406421,1000078994
02.03.2020,LEISURE DIRECTORATE,NPOWER LTD,"1,700.08",SOUTHWARK AREA TEAM,ELECTRICITY,5902406409,1000078994
03.03.2020,ADULT SOCIAL CARE,REDACTED PERSONAL DATA,388.60,APPOINTEESHIPS,OTHER PAYMENTS FOR CLIENTS,REDACTED,REDACTED
03.03.2020,ADULT SOCIAL CARE,REDACTED PERSONAL DATA,400.00,APPOINTEESHIPS,OTHER PAYMENTS FOR CLIENTS,REDACTED,REDACTED
03.03.2020,ADULT SOCIAL CARE,MUNGO WENBAN-SMITH,"4,065.00",DIR OF ASC,LEGAL FEES & COURT COSTS,2103068919,1000059994
03.03.2020,ADULT SOCIAL CARE,ACT TOO LTD,400.00,LD LTS 18-64,DAYCARE,2103067952,1000053657
03.03.2020,ADULT SOCIAL CARE,CONTACT PROFESSIONALS,323.00,LD LTS 18-64,SUPPORTED LIVING,2103069072,1000057263
03.03.2020,ADULT SOCIAL CARE,CONTACT PROFESSIONALS,465.00,LD LTS 18-64,SUPPORTED LIVING,2103069073,1000057263
03.03.2020,ADULT SOCIAL CARE,HATS GROUP LTD,306.00,LD LTS 18-64,CLIENT TRANSPORT,2103068970,1000042743
03.03.2020,ADULT SOCIAL CARE,HATS GROUP LTD,306.00,LD LTS 18-64,CLIENT TRANSPORT,2103068971,1000042743
03.03.2020,ADULT SOCIAL CARE,HATS GROUP LTD,306.00,LD LTS 18-64,CLIENT TRANSPORT,2103068973,1000042743
03.03.2020,ADULT SOCIAL CARE,HATS GROUP LTD,448.00,LD LTS 18-64,CLIENT TRANSPORT,2103068966,1000042743
03.03.2020,ADULT SOCIAL CARE,HATS GROUP LTD,448.00,LD LTS 18-64,CLIENT TRANSPORT,2103068967,1000042743
03.03.2020,ADULT SOCIAL CARE,HATS GROUP LTD,448.00,LD LTS 18-64,CLIENT TRANSPORT,2103068969,1000042743
03.03.2020,ADULT SOCIAL CARE,NATIONAL AUTISTIC SOCIETY CARE PACK,"1,272.72",LD LTS 18-64,DAYCARE,2103069076,1000020538
03.03.2020,ADULT SOCIAL CARE,PECULIAR CARE HOMES LTD,"5,169.60",LD LTS 18-64,SUPPORTED LIVING,2103068974,1000076991
03.03.2020,ADULT SOCIAL CARE,REDACTED PERSONAL DATA,"1,420.12",LD LTS 18-64,PAYMENTS TO CLIENTS (DIRECT PAYMENTS),REDACTED,REDACTED
03.03.2020,ADULT SOCIAL CARE,RESOURCES FOR AUTISM,"1,530.00",LD LTS 18-64,SUPPORTED LIVING,2103069077,1000062540
03.03.2020,ADULT SOCIAL CARE,THE NEW SHOOTS,300.00,LD LTS 18-64,DAYCARE,2103069070,1000073970
03.03.2020,ADULT SOCIAL CARE,THAMES HOMECARE SERVICE LTD,375.90,MEM LTS 18-64,HOMECARE - C&V,2103069035,1000079295
03.03.2020,ADULT SOCIAL CARE,RESOURCES FOR AUTISM,360.00,MH LTS 18-64,SUPPORTED LIVING,2103069078,1000062540
03.03.2020,ADULT SOCIAL CARE,THAMES HOMECARE SERVICE LTD,317.73,MH LTS 18-64,HOMECARE - SPOT,2103068975,1000079295
03.03.2020,ADULT SOCIAL CARE,NATIONAL YOUTH ADVOCACY SERVICE,375.00,ORIENT ST � RESPITE,ADVOCACY,5902406696,1000083351
03.03.2020,ADULT SOCIAL CARE,NATIONAL YOUTH ADVOCACY SERVICE,375.00,ORIENT ST � RESPITE,ADVOCACY,5902406697,1000083351
03.03.2020,ADULT SOCIAL CARE,THAMES HOMECARE SERVICE LTD,253.16,PHY LTS 18-64,HOMECARE - SPOT,2103069007,1000079295
03.03.2020,ADULT SOCIAL CARE,THAMES HOMECARE SERVICE LTD,295.35,PHY LTS 18-64,HOMECARE - SPOT,2103069037,1000079295
03.03.2020,ADULT SOCIAL CARE,THAMES HOMECARE SERVICE LTD,322.20,PHY LTS 18-64,HOMECARE - SPOT,2103069033,1000079295
03.03.2020,ADULT SOCIAL CARE,THAMES HOMECARE SERVICE LTD,380.38,PHY LTS 18-64,HOMECARE - SPOT,2103068989,1000079295
03.03.2020,ADULT SOCIAL CARE,THAMES HOMECARE SERVICE LTD,626.50,PHY LTS 18-64,HOMECARE - SPOT,2103069042,1000079295
03.03.2020,ADULT SOCIAL CARE,THAMES HOMECARE SERVICE LTD,639.93,PHY LTS 18-64,HOMECARE - SPOT,2103069000,1000079295
03.03.2020,ADULT SOCIAL CARE,THAMES HOMECARE SERVICE LTD,886.05,PHY LTS 18-64,HOMECARE - SPOT,2103069008,1000079295
03.03.2020,ADULT SOCIAL CARE,THAMES HOMECARE SERVICE LTD,622.03,PHY LTS 65+,HOMECARE - C&V,2103069058,1000079295
03.03.2020,ADULT SOCIAL CARE,THAMES HOMECARE SERVICE LTD,635.45,PHY LTS 65+,HOMECARE - C&V,2103068987,1000079295
03.03.2020,ADULT SOCIAL CARE,THAMES HOMECARE SERVICE LTD,250.60,PHY LTS 65+,HOMECARE - SPOT,2103069046,1000079295
03.03.2020,ADULT SOCIAL CARE,THAMES HOMECARE SERVICE LTD,255.08,PHY LTS 65+,HOMECARE - SPOT,2103069039,1000079295
03.03.2020,ADULT SOCIAL CARE,THAMES HOMECARE SERVICE LTD,264.03,PHY LTS 65+,HOMECARE - SPOT,2103069052,1000079295
03.03.2020,ADULT SOCIAL CARE,THAMES HOMECARE SERVICE LTD,268.50,PHY LTS 65+,HOMECARE - SPOT,2103069011,1000079295
03.03.2020,ADULT SOCIAL CARE,THAMES HOMECARE SERVICE LTD,281.93,PHY LTS 65+,HOMECARE - SPOT,2103069005,1000079295
03.03.2020,ADULT SOCIAL CARE,THAMES HOMECARE SERVICE LTD,281.93,PHY LTS 65+,HOMECARE - SPOT,2103069029,1000079295
03.03.2020,ADULT SOCIAL CARE,THAMES HOMECARE SERVICE LTD,313.25,PHY LTS 65+,HOMECARE - SPOT,2103068995,1000079295
03.03.2020,ADULT SOCIAL CARE,THAMES HOMECARE SERVICE LTD,344.58,PHY LTS 65+,HOMECARE - SPOT,2103068981,1000079295
03.03.2020,ADULT SOCIAL CARE,THAMES HOMECARE SERVICE LTD,344.58,PHY LTS 65+,HOMECARE - SPOT,2103069055,1000079295
03.03.2020,ADULT SOCIAL CARE,THAMES HOMECARE SERVICE LTD,384.85,PHY LTS 65+,HOMECARE - SPOT,2103069026,1000079295
03.03.2020,ADULT SOCIAL CARE,THAMES HOMECARE SERVICE LTD,438.55,PHY LTS 65+,HOMECARE - SPOT,2103069012,1000079295
03.03.2020,ADULT SOCIAL CARE,THAMES HOMECARE SERVICE LTD,501.20,PHY LTS 65+,HOMECARE - SPOT,2103069014,1000079295
03.03.2020,ADULT SOCIAL CARE,THAMES HOMECARE SERVICE LTD,519.10,PHY LTS 65+,HOMECARE - SPOT,2103069048,1000079295
03.03.2020,ADULT SOCIAL CARE,THAMES HOMECARE SERVICE LTD,537.00,PHY LTS 65+,HOMECARE - SPOT,2103068994,1000079295
03.03.2020,ADULT SOCIAL CARE,THAMES HOMECARE SERVICE LTD,537.00,PHY LTS 65+,HOMECARE - SPOT,2103069051,1000079295
03.03.2020,ADULT SOCIAL CARE,THAMES HOMECARE SERVICE LTD,550.43,PHY LTS 65+,HOMECARE - SPOT,2103069018,1000079295
03.03.2020,ADULT SOCIAL CARE,THAMES HOMECARE SERVICE LTD,559.38,PHY LTS 65+,HOMECARE - SPOT,2103069053,1000079295
03.03.2020,ADULT SOCIAL CARE,THAMES HOMECARE SERVICE LTD,563.85,PHY LTS 65+,HOMECARE - SPOT,2103068986,1000079295
03.03.2020,ADULT SOCIAL CARE,THAMES HOMECARE SERVICE LTD,563.85,PHY LTS 65+,HOMECARE - SPOT,2103069025,1000079295
03.03.2020,ADULT SOCIAL CARE,THAMES HOMECARE SERVICE LTD,563.85,PHY LTS 65+,HOMECARE - SPOT,2103069041,1000079295
03.03.2020,ADULT SOCIAL CARE,THAMES HOMECARE SERVICE LTD,590.70,PHY LTS 65+,HOMECARE - SPOT,2103069060,1000079295
03.03.2020,ADULT SOCIAL CARE,THAMES HOMECARE SERVICE LTD,599.65,PHY LTS 65+,HOMECARE - SPOT,2103069056,1000079295
03.03.2020,ADULT SOCIAL CARE,THAMES HOMECARE SERVICE LTD,689.15,PHY LTS 65+,HOMECARE - SPOT,2103069043,1000079295
03.03.2020,ADULT SOCIAL CARE,THAMES HOMECARE SERVICE LTD,702.58,PHY LTS 65+,HOMECARE - SPOT,2103068996,1000079295
03.03.2020,ADULT SOCIAL CARE,THAMES HOMECARE SERVICE LTD,783.13,PHY LTS 65+,HOMECARE - SPOT,2103069034,1000079295
03.03.2020,ADULT SOCIAL CARE,THAMES HOMECARE SERVICE LTD,836.83,PHY LTS 65+,HOMECARE - SPOT,2103069065,1000079295
03.03.2020,ADULT SOCIAL CARE,THAMES HOMECARE SERVICE LTD,841.30,PHY LTS 65+,HOMECARE - SPOT,2103069066,1000079295
03.03.2020,ADULT SOCIAL CARE,THAMES HOMECARE SERVICE LTD,957.65,PHY LTS 65+,HOMECARE - SPOT,2103068993,1000079295
03.03.2020,ADULT SOCIAL CARE,THAMES HOMECARE SERVICE LTD,"1,029.25",PHY LTS 65+,HOMECARE - SPOT,2103069023,1000079295
03.03.2020,ADULT SOCIAL CARE,THAMES HOMECARE SERVICE LTD,313.25,PHY STS 18-64,HOMECARE - IC,2103069044,1000079295
03.03.2020,ADULT SOCIAL CARE,THAMES HOMECARE SERVICE LTD,337.54,PHY STS 18-64,HOMECARE - IC,2103069006,1000079295
03.03.2020,ADULT SOCIAL CARE,THAMES HOMECARE SERVICE LTD,313.25,PHY STS 65+,HOMECARE - IC,2103069032,1000079295
03.03.2020,ADULT SOCIAL CARE,THAMES HOMECARE SERVICE LTD,689.15,PHY STS 65+,HOMECARE - IC,2103069040,1000079295
03.03.2020,ADULT SOCIAL CARE,REDACTED PERSONAL DATA,719.04,SPEC NEEDS CHILDREN,PAYMENTS TO CLIENTS (DIRECT PAYMENTS),REDACTED,REDACTED
03.03.2020,ADULT SOCIAL CARE,KAIROS COMMUNITY TRUST,"2,742.86",SUB LTS 18-64,RESIDENTIAL CARE,2103069079,1000025479
03.03.2020,ASSET MANAGEMENT,ANTONY HODARI  SOLICITORS,"2,000.00",DISREPAIR,PAYMENTS FOR LEGAL SERVICES,2103068947,1000031040
03.03.2020,ASSET MANAGEMENT,ANTONY HODARI  SOLICITORS,"4,000.00",DISREPAIR,PAYMENTS FOR LEGAL SERVICES,2103068951,1000031040
03.03.2020,ASSET MANAGEMENT,ANTONY HODARI  SOLICITORS,"5,000.00",DISREPAIR,PAYMENTS FOR LEGAL SERVICES,2103068946,1000031040
03.03.2020,ASSET MANAGEMENT,ASHFORDS LLP,"1,700.00",DISREPAIR,PAYMENTS FOR LEGAL SERVICES,2103068950,1000055865
03.03.2020,ASSET MANAGEMENT,ASHFORDS LLP,"2,000.00",DISREPAIR,PAYMENTS FOR LEGAL SERVICES,2103068954,1000055865
03.03.2020,ASSET MANAGEMENT,ASHFORDS LLP,"2,000.00",DISREPAIR,PAYMENTS FOR LEGAL SERVICES,2103068955,1000055865
03.03.2020,ASSET MANAGEMENT,ASHFORDS LLP,"3,250.00",DISREPAIR,PAYMENTS FOR LEGAL SERVICES,2103068953,1000055865
03.03.2020,ASSET MANAGEMENT,CHESHIRE ESTATE AND LEGAL LTD,"1,000.00",DISREPAIR,PAYMENTS FOR LEGAL SERVICES,2103068952,1000081908
03.03.2020,ASSET MANAGEMENT,CLEAR LAW LLP,"4,500.00",DISREPAIR,PAYMENTS FOR LEGAL SERVICES,2103068941,1000073992
03.03.2020,ASSET MANAGEMENT,DRISCOLL KINGSTON SOLICITORS,"1,000.00",DISREPAIR,PAYMENTS FOR LEGAL SERVICES,2103068949,1000082357
03.03.2020,ASSET MANAGEMENT,REDACTED PERSONAL DATA,"5,000.00",DISREPAIR,PAYMENTS FOR LEGAL SERVICES,REDACTED,REDACTED
03.03.2020,ASSET MANAGEMENT,SAMUEL ROSS SOLICITORS,"5,500.00",DISREPAIR,PAYMENTS FOR LEGAL SERVICES,2103068944,1000045934
03.03.2020,ASSET MANAGEMENT,UNIVERSA LAW LTD,"3,500.00",DISREPAIR,PAYMENTS FOR LEGAL SERVICES,2103068942,1000081466
03.03.2020,CENTRAL FUNCTIONS,ANDREW SKELLY,300.00,COMMERCIAL PROPERTIES,LEGAL FEES & COURT COSTS,2103068884,1000069248
03.03.2020,CENTRAL FUNCTIONS,ANDREW SKELLY,450.00,COMMERCIAL PROPERTIES,LEGAL FEES & COURT COSTS,2103068887,1000069248
03.03.2020,CENTRAL FUNCTIONS,ANDREW SKELLY,750.00,COMMERCIAL PROPERTIES,LEGAL FEES & COURT COSTS,2103068886,1000069248
03.03.2020,CENTRAL FUNCTIONS,ANDREW SKELLY,750.00,COMMERCIAL PROPERTIES,LEGAL FEES & COURT COSTS,2103068888,1000069248
03.03.2020,CENTRAL FUNCTIONS,ANDREW SKELLY,900.00,COMMERCIAL PROPERTIES,LEGAL FEES & COURT COSTS,2103068889,1000069248
03.03.2020,CENTRAL FUNCTIONS,ANDREW SKELLY,"1,200.00",COMMERCIAL PROPERTIES,LEGAL FEES & COURT COSTS,2103068883,1000069248
03.03.2020,CENTRAL FUNCTIONS,E.ON,548.71,COMMERCIAL PROPERTIES,ELECTRICITY,5902406654,1000043614
03.03.2020,CENTRAL FUNCTIONS,NPOWER LTD,455.08,HEATING ACCOUNT,ELECTRICITY,5902406512,1000078994
03.03.2020,CENTRAL FUNCTIONS,NPOWER LTD,"2,491.20",HEATING ACCOUNT,ELECTRICITY,5902406512,1000078994
03.03.2020,CENTRAL FUNCTIONS,NPOWER LTD,"3,068.19",HEATING ACCOUNT,ELECTRICITY,5902406512,1000078994
03.03.2020,CENTRAL FUNCTIONS,MPE HOMES LTD,579.07,HOME OWNERSHIP INCOME,HOUSING RESIDENTIAL RENTS,2103068237,1000069459
03.03.2020,CENTRAL FUNCTIONS,KIER FACILITIES SERVICES LTD,"47,952.00",LEDBURY ESTATE,MISCELLANEOUS EXPENSES,5902406518,1000040603
03.03.2020,CENTRAL FUNCTIONS,ALISTAIR TOWNSEND LTD,"5,700.00",OPERATIONAL TEAM,LEGAL FEES & COURT COSTS,2103068882,1000081236
03.03.2020,CENTRAL FUNCTIONS,FAISEL SADIQ,"2,700.00",OPERATIONAL TEAM,LEGAL FEES & COURT COSTS,2103068913,1000052426
03.03.2020,CENTRAL FUNCTIONS,FAISEL SADIQ,"2,783.33",OPERATIONAL TEAM,LEGAL FEES & COURT COSTS,2103068912,1000052426
03.03.2020,CHIEF EXECUTIVE,HAYATSU ARCHITECTS LTD,"19,628.12",CAPITAL PS (REGEN),CONSTRUCTION FEES,5902406616,1000082843
03.03.2020,CHIEF EXECUTIVE,PREMIER SURVEYS,950.00,CAPITAL PS (REGEN),CONSTRUCTION FEES,5902405717,1000075479
03.03.2020,CHILDREN AND ADULT,SHARPE PRITCHARD LLP,286.00,CAPITAL PS (EDUCATION),CONSTRUCTION FEES - QUANTITY SURVEYOR,5902406494,1790085
03.03.2020,CHILDREN AND ADULT,SHARPE PRITCHARD LLP,299.00,CAPITAL PS (SOC SERV),CONSTRUCTION FEES - LEGAL,5902406452,1790085
03.03.2020,CHILDREN AND ADULT,SHARPE PRITCHARD LLP,756.00,CAPITAL PS (SOC SERV),CONSTRUCTION FEES - LEGAL,5902406454,1790085
03.03.2020,CHILDREN AND ADULT,SHARPE PRITCHARD LLP,"1,093.00",CAPITAL PS (SOC SERV),CONSTRUCTION FEES - LEGAL,5902406453,1790085
03.03.2020,CHILDREN'S SERVICES,REDACTED PERSONAL DATA,480.00,ADOPTION PLACEMENTS & INTER AGENCY,PAYMENTS TO CARERS,REDACTED,REDACTED
03.03.2020,CHILDREN'S SERVICES,NATIONAL DAY NURSERIES ASSOCIATION,300.00,AYLESBURY EARLY YEARS CENTRE,BOOKS & PUBLICATIONS,5902406698,1000012834
03.03.2020,CHILDREN'S SERVICES,REDACTED PERSONAL DATA,"2,250.00",CARE LEAVERS SERVICES 16+,OTHER PAYMENTS FOR CLIENTS,REDACTED,REDACTED
03.03.2020,CHILDREN'S SERVICES,TAVISTOCK & PORTMAN NHS FT,396.00,EDUCATIONAL PSYCHOLOGY - SEND,TRAINING,5902406627,1991321
03.03.2020,CHILDREN'S SERVICES,"TAYLOR & FRANCIS GROUP,INFORMA UK LTD",348.64,EDUCATIONAL PSYCHOLOGY - SEND,OP LEASE/HIRE CHARGES:PLANT/EQUIP/FURNIT,5902406221,1000083871
03.03.2020,CHILDREN'S SERVICES,THE ALBANY 2001 COMPANY,287.00,EDUCATIONAL PSYCHOLOGY - SEND,REFRESHMENTS FOR MEETINGS,5902406631,1000052402
03.03.2020,CHILDREN'S SERVICES,ANTHONY MALONEY,300.00,LEA MUSIC SERVICE(310) - 5018566,OP LEASE/HIRE CHARGES:PLANT/EQUIP/FURNIT,5902406598,1000072050
03.03.2020,CHILDREN'S SERVICES,CLIVE REDLEY,375.00,LEGAL,LEGAL FEES & COURT COSTS,2103068909,1000078306
03.03.2020,CHILDREN'S SERVICES,ELIZABETH NARTEY,325.00,LEGAL,LEGAL FEES & COURT COSTS,2103068911,1000075833
03.03.2020,CHILDREN'S SERVICES,LAURA HIBBERD,325.00,LEGAL,LEGAL FEES & COURT COSTS,2103068917,1000076749
03.03.2020,CHILDREN'S SERVICES,LUCY MEREDITH,300.00,LEGAL,LEGAL FEES & COURT COSTS,2103068918,1000083404
03.03.2020,CHILDREN'S SERVICES,RABIA MIR,420.00,LEGAL,LEGAL FEES & COURT COSTS,2103068921,1000083358
03.03.2020,CHILDREN'S SERVICES,RABIA MIR,"1,125.00",LEGAL,LEGAL FEES & COURT COSTS,2103068922,1000083358
03.03.2020,CHILDREN'S SERVICES,RAVINDER SAIMBHI,450.00,LEGAL,LEGAL FEES & COURT COSTS,2103068924,1000079836
03.03.2020,CHILDREN'S SERVICES,RICHARD CLOUGH,375.00,LEGAL,LEGAL FEES & COURT COSTS,2103068926,1000051147
03.03.2020,CHILDREN'S SERVICES,SEEMA KANSALL,375.00,LEGAL,LEGAL FEES & COURT COSTS,2103068927,1000078307
03.03.2020,CHILDREN'S SERVICES,TABITHA BARRAN,400.00,LEGAL,LEGAL FEES & COURT COSTS,2103068928,1000053940
03.03.2020,CHILDREN'S SERVICES,TIM PARKER,"1,875.00",LEGAL,LEGAL FEES & COURT COSTS,2103068929,1000061949
03.03.2020,CHILDREN'S SERVICES,TOM RESTALL,475.00,LEGAL,LEGAL FEES & COURT COSTS,2103068930,1000063020
03.03.2020,CHILDREN'S SERVICES,TOM RESTALL,475.00,LEGAL,LEGAL FEES & COURT COSTS,2103068931,1000063020
03.03.2020,CHILDREN'S SERVICES,TOM RESTALL,475.00,LEGAL,LEGAL FEES & COURT COSTS,2103068932,1000063020
03.03.2020,CHILDREN'S SERVICES,VICTORIA KIVER,300.00,LEGAL,LEGAL FEES & COURT COSTS,2103068938,1000083032
03.03.2020,CHILDREN'S SERVICES,VICTORIA KIVER,325.00,LEGAL,LEGAL FEES & COURT COSTS,2103068937,1000083032
03.03.2020,CHILDREN'S SERVICES,LEAEFF LTD,"2,500.00",MANAGEMENT INFORMATION UNIT,PROFESSIONAL FEES,5902406705,1000083779
03.03.2020,CHILDREN'S SERVICES,ALBION PRIMARY SCHOOL,"49,660.00",PUPIL PREMIUM,"SCHOOLS CAPITATION, STANDARDS FUND",5902406531,5001000000
03.03.2020,CHILDREN'S SERVICES,ALFRED SALTER PRIMARY SCHOOL,"49,565.00",PUPIL PREMIUM,"SCHOOLS CAPITATION, STANDARDS FUND",5902406532,5001000005
03.03.2020,CHILDREN'S SERVICES,BELLENDEN PRIMARY SCHOOL,"27,220.00",PUPIL PREMIUM,"SCHOOLS CAPITATION, STANDARDS FUND",5902406533,5001000007
03.03.2020,CHILDREN'S SERVICES,BEORMUND PRIMARY SCHOOL,"8,250.00",PUPIL PREMIUM,"SCHOOLS CAPITATION, STANDARDS FUND",5902406534,5001000008
03.03.2020,CHILDREN'S SERVICES,BETHLEM & MAUDSLEY HOSPITAL SCHOOL,"1,870.00",PUPIL PREMIUM,"SCHOOLS CAPITATION, STANDARDS FUND",5902406535,5001000010
03.03.2020,CHILDREN'S SERVICES,BOUCHER C OF E PRIMARY SCHOOL,"17,820.00",PUPIL PREMIUM,"SCHOOLS CAPITATION, STANDARDS FUND",5902406536,5001000011
03.03.2020,CHILDREN'S SERVICES,BRUNSWICK PARK PRIMARY SCHOOL,"65,500.00",PUPIL PREMIUM,"SCHOOLS CAPITATION, STANDARDS FUND",5902406537,5001000013
03.03.2020,CHILDREN'S SERVICES,CAMELOT PRIMARY SCHOOL,"44,494.00",PUPIL PREMIUM,"SCHOOLS CAPITATION, STANDARDS FUND",5902406538,5001000014
03.03.2020,CHILDREN'S SERVICES,CATHEDRAL SCHOOL OF ST SAVIOUR & MARY,"11,880.00",PUPIL PREMIUM,"SCHOOLS CAPITATION, STANDARDS FUND",5902406585,5001000088
03.03.2020,CHILDREN'S SERVICES,CHARLES DICKENS PRIMARY SCHOOL,"52,705.00",PUPIL PREMIUM,"SCHOOLS CAPITATION, STANDARDS FUND",5902406539,5001000015
03.03.2020,CHILDREN'S SERVICES,CHERRY GARDEN SCHOOL,"9,900.00",PUPIL PREMIUM,"SCHOOLS CAPITATION, STANDARDS FUND",5902406543,5001000020
03.03.2020,CHILDREN'S SERVICES,COBOURG PRIMARY SCHOOL,"38,280.00",PUPIL PREMIUM,"SCHOOLS CAPITATION, STANDARDS FUND",5902406544,5001000021
03.03.2020,CHILDREN'S SERVICES,COMBER GROVE PRIMARY SCHOOL,"25,080.00",PUPIL PREMIUM,"SCHOOLS CAPITATION, STANDARDS FUND",5902406545,5001000022
03.03.2020,CHILDREN'S SERVICES,DULWICH VILLAGE CE INFANTS SCHOOL,"8,560.00",PUPIL PREMIUM,"SCHOOLS CAPITATION, STANDARDS FUND",5902406546,5001000027
03.03.2020,CHILDREN'S SERVICES,DULWICH WOOD PRIMARY SCHOOL,"33,330.00",PUPIL PREMIUM,"SCHOOLS CAPITATION, STANDARDS FUND",5902406558,5001000042
03.03.2020,CHILDREN'S SERVICES,ENGLISH MARTYRS RC PRIMARY SCHOOL,"30,105.00",PUPIL PREMIUM,"SCHOOLS CAPITATION, STANDARDS FUND",5902406549,5001000030
03.03.2020,CHILDREN'S SERVICES,EVELINA HOSPITAL SCHOOL,"3,273.00",PUPIL PREMIUM,"SCHOOLS CAPITATION, STANDARDS FUND",5902406550,5001000031
03.03.2020,CHILDREN'S SERVICES,FRIARS PRIMARY SCHOOL,"27,390.00",PUPIL PREMIUM,"SCHOOLS CAPITATION, STANDARDS FUND",5902406552,5001000033
03.03.2020,CHILDREN'S SERVICES,GOODRICH PRIMARY SCHOOL,"37,620.00",PUPIL PREMIUM,"SCHOOLS CAPITATION, STANDARDS FUND",5902406547,5001000028
03.03.2020,CHILDREN'S SERVICES,GRANGE PRIMARY SCHOOL,"57,090.00",PUPIL PREMIUM,"SCHOOLS CAPITATION, STANDARDS FUND",5902406548,5001000029
03.03.2020,CHILDREN'S SERVICES,HAYMERLE SCHOOL,"17,490.00",PUPIL PREMIUM,"SCHOOLS CAPITATION, STANDARDS FUND",5902406559,5001000045
03.03.2020,CHILDREN'S SERVICES,HEBER PRIMARY SCHOOL,"20,790.00",PUPIL PREMIUM,"SCHOOLS CAPITATION, STANDARDS FUND",5902406553,5001000035
03.03.2020,CHILDREN'S SERVICES,HIGHSHORE SCHOOL,"13,090.00",PUPIL PREMIUM,"SCHOOLS CAPITATION, STANDARDS FUND",5902406560,5001000046
03.03.2020,CHILDREN'S SERVICES,HOLLYDALE PRIMARY SCHOOL,"19,140.00",PUPIL PREMIUM,"SCHOOLS CAPITATION, STANDARDS FUND",5902406554,5001000036
03.03.2020,CHILDREN'S SERVICES,ILDERTON PRIMARY SCHOOL,"55,600.00",PUPIL PREMIUM,"SCHOOLS CAPITATION, STANDARDS FUND",5902406555,5001000037
03.03.2020,CHILDREN'S SERVICES,JOHN RUSKIN PRIMARY SCHOOL,"60,795.00",PUPIL PREMIUM,"SCHOOLS CAPITATION, STANDARDS FUND",5902406556,5001000040
03.03.2020,CHILDREN'S SERVICES,KEYWORTH PRIMARY SCHOOL,"46,860.00",PUPIL PREMIUM,"SCHOOLS CAPITATION, STANDARDS FUND",5902406557,5001000041
03.03.2020,CHILDREN'S SERVICES,MICHAEL FARADAY PRIMARY SCHOOL,"48,840.00",PUPIL PREMIUM,"SCHOOLS CAPITATION, STANDARDS FUND",5902406561,5001000048
03.03.2020,CHILDREN'S SERVICES,NOTRE DAME RC GIRLS SCHOOL,"67,087.00",PUPIL PREMIUM,"SCHOOLS CAPITATION, STANDARDS FUND",5902406562,5001000050
03.03.2020,CHILDREN'S SERVICES,OLIVER GOLDSMITH PRIMARY SCHOOL,"54,120.00",PUPIL PREMIUM,"SCHOOLS CAPITATION, STANDARDS FUND",5902406563,5001000051
03.03.2020,CHILDREN'S SERVICES,PETER HILLS CE SCHOOL,"18,810.00",PUPIL PREMIUM,"SCHOOLS CAPITATION, STANDARDS FUND",5902406564,5001000053
03.03.2020,CHILDREN'S SERVICES,PHOENIX PRIMARY SCHOOL,"65,085.00",PUPIL PREMIUM,"SCHOOLS CAPITATION, STANDARDS FUND",5902406551,5001000032
03.03.2020,CHILDREN'S SERVICES,PILGRIM'S WAY PRIMARY SCHOOL,"30,360.00",PUPIL PREMIUM,"SCHOOLS CAPITATION, STANDARDS FUND",5902406565,5001000054
03.03.2020,CHILDREN'S SERVICES,RIVERSIDE PRIMARY SCHOOL,"44,220.00",PUPIL PREMIUM,"SCHOOLS CAPITATION, STANDARDS FUND",5902406566,5001000056
03.03.2020,CHILDREN'S SERVICES,ROTHERHITHE PRIMARY SCHOOL,"58,080.00",PUPIL PREMIUM,"SCHOOLS CAPITATION, STANDARDS FUND",5902406567,5001000058
03.03.2020,CHILDREN'S SERVICES,RYE OAK PRIMARY SCHOOL,"44,880.00",PUPIL PREMIUM,"SCHOOLS CAPITATION, STANDARDS FUND",5902406568,5001000059
03.03.2020,CHILDREN'S SERVICES,SNOWSFIELDS PRIMARY SCHOOL,"21,365.00",PUPIL PREMIUM,"SCHOOLS CAPITATION, STANDARDS FUND",5902406569,5001000061
03.03.2020,CHILDREN'S SERVICES,SOUTHWARK INCLUSIVE LEARNING SERVICE,"12,388.00",PUPIL PREMIUM,"SCHOOLS CAPITATION, STANDARDS FUND",5902406588,5001000105
03.03.2020,CHILDREN'S SERVICES,SOUTHWARK PARK PRIMARY SCHOOL,"39,760.00",PUPIL PREMIUM,"SCHOOLS CAPITATION, STANDARDS FUND",5902406570,5001000062
03.03.2020,CHILDREN'S SERVICES,ST ANTHONYS RC SCHOOL,"20,620.00",PUPIL PREMIUM,"SCHOOLS CAPITATION, STANDARDS FUND",5902406571,5001000064
03.03.2020,CHILDREN'S SERVICES,ST FRANCESCA CABRINI PRIMARY SCHOOL,"33,905.00",PUPIL PREMIUM,"SCHOOLS CAPITATION, STANDARDS FUND",5902406572,5001000065
03.03.2020,CHILDREN'S SERVICES,ST FRANCIS'S RC PRIMARY SCHOOL,"35,310.00",PUPIL PREMIUM,"SCHOOLS CAPITATION, STANDARDS FUND",5902406573,5001000067
03.03.2020,CHILDREN'S SERVICES,ST GEORGES CE SCHOOL,"19,140.00",PUPIL PREMIUM,"SCHOOLS CAPITATION, STANDARDS FUND",5902406575,5001000069
03.03.2020,CHILDREN'S SERVICES,ST GEORGES RC SCHOOL,"14,765.00",PUPIL PREMIUM,"SCHOOLS CAPITATION, STANDARDS FUND",5902406574,5001000068
03.03.2020,CHILDREN'S SERVICES,ST JAMES CE SCHOOL,"81,510.00",PUPIL PREMIUM,"SCHOOLS CAPITATION, STANDARDS FUND",5902406576,5001000070
03.03.2020,CHILDREN'S SERVICES,ST JAMES THE GREAT RC SCHOOL,"23,760.00",PUPIL PREMIUM,"SCHOOLS CAPITATION, STANDARDS FUND",5902406577,5001000071
03.03.2020,CHILDREN'S SERVICES,ST JOHNS & ST CLEMENTS CE SCHOOL,"16,500.00",PUPIL PREMIUM,"SCHOOLS CAPITATION, STANDARDS FUND",5902406578,5001000073
03.03.2020,CHILDREN'S SERVICES,ST JOHNS RC PRIMARY SCHOOL,"25,740.00",PUPIL PREMIUM,"SCHOOLS CAPITATION, STANDARDS FUND",5902406580,5001000075
03.03.2020,CHILDREN'S SERVICES,ST JOSEPHS CATHOLIC INFANTS SCHOOL,"11,550.00",PUPIL PREMIUM,"SCHOOLS CAPITATION, STANDARDS FUND",5902406541,5001000018
03.03.2020,CHILDREN'S SERVICES,ST JOSEPHS CATHOLIC PRIMARY SCHOOL,"17,980.00",PUPIL PREMIUM,"SCHOOLS CAPITATION, STANDARDS FUND",5902406583,5001000078
03.03.2020,CHILDREN'S SERVICES,ST JOSEPHS CATHOLIC SCHOOL,"22,770.00",PUPIL PREMIUM,"SCHOOLS CAPITATION, STANDARDS FUND",5902406581,5001000076
03.03.2020,CHILDREN'S SERVICES,ST JOSEPHS RC JUNIOR  SCHOOL,"28,870.00",PUPIL PREMIUM,"SCHOOLS CAPITATION, STANDARDS FUND",5902406540,5001000017
03.03.2020,CHILDREN'S SERVICES,ST JOSEPHS RC PRIMARY SCHOOL,"28,380.00",PUPIL PREMIUM,"SCHOOLS CAPITATION, STANDARDS FUND",5902406582,5001000077
03.03.2020,CHILDREN'S SERVICES,ST JUDES CHURCH OF ENGLAND PRIMARY,"13,200.00",PUPIL PREMIUM,"SCHOOLS CAPITATION, STANDARDS FUND",5902406542,5001000019
03.03.2020,CHILDREN'S SERVICES,ST SAVIOURS & ST OLAVES SCHOOL,"60,892.00",PUPIL PREMIUM,"SCHOOLS CAPITATION, STANDARDS FUND",5902406584,5001000084
03.03.2020,CHILDREN'S SERVICES,THE ST THOMAS THE APOSTLE COLLEGE,"73,396.00",PUPIL PREMIUM,"SCHOOLS CAPITATION, STANDARDS FUND",5902406579,5001000074
03.03.2020,CHILDREN'S SERVICES,TOWER BRIDGE PRIMARY SCHOOL,"29,370.00",PUPIL PREMIUM,"SCHOOLS CAPITATION, STANDARDS FUND",5902406586,5001000095
03.03.2020,CHILDREN'S SERVICES,TUKE SCHOOL,"7,011.00",PUPIL PREMIUM,"SCHOOLS CAPITATION, STANDARDS FUND",5902406587,5001000097
03.03.2020,CHILDREN'S SERVICES,BRIARY PRIMARY SCHOOL,"1,500.00",PUPIL PREMIUM CURRENT YEAR,SCHOOLS CAPITATION,2103068224,1000083966
03.03.2020,CHILDREN'S SERVICES,LONDON BOROUGH OF MERTON,"3,063.62",REGIONAL ADOPTION AGENCY,EXTERNAL AGENCIES AND BODIES,5902406704,1000020886
03.03.2020,CHILDREN'S SERVICES,TUKE SCHOOL,"1,255.80",SCH TRANS - CONTRACT COST,EXTERNAL AGENCIES AND BODIES,5902406707,5001000097
03.03.2020,CHILDREN'S SERVICES,TUKE SCHOOL,"2,511.60",SCH TRANS - CONTRACT COST,EXTERNAL AGENCIES AND BODIES,5902406706,5001000097
03.03.2020,CHILDREN'S SERVICES,TUKE SCHOOL,376.17,SCH TRANS - CONTRACT COST,OTHER PAYMENTS FOR CLIENTS,5902406621,5001000097
03.03.2020,CHILDREN'S SERVICES,J & M OASIS LTD,"1,479.00",TEMPORARY ACCOMMODATION,EXTERNAL AGENCIES AND BODIES,5902406675,1000072169
03.03.2020,CHILDREN'S SERVICES,J & M OASIS LTD,"1,581.00",TEMPORARY ACCOMMODATION,EXTERNAL AGENCIES AND BODIES,5902406668,1000072169
03.03.2020,CHILDREN'S SERVICES,J & M OASIS LTD,"1,581.00",TEMPORARY ACCOMMODATION,EXTERNAL AGENCIES AND BODIES,5902406670,1000072169
03.03.2020,COMMUNITIES,GLOUCESTER GROVE ESTATE TMO,"25,155.48",GLOUCESTER GROVE ESTATE,M&M ALLOWANCE CO-OPS,5902406649,1000073072
03.03.2020,COMMUNITIES PROJECTS,SOUTHWARK CATHEDRAL,498.00,MAYORAL SUPPORT,HIRE OF ROOMS/HALLS,5902406638,1000063220
03.03.2020,COMMUNITIES PROJECTS,THAMES HOMECARE SERVICE LTD,375.90,NO RECOURSE TO PUBLIC FUNDS,HOMECARE - C&V,2103069001,1000079295
03.03.2020,COMMUNITIES PROJECTS,THAMES HOMECARE SERVICE LTD,"1,315.65",NO RECOURSE TO PUBLIC FUNDS,HOMECARE - C&V,2103069021,1000079295
03.03.2020,COMMUNITIES PROJECTS,YOUTH LEARNING NETWORK LTD,500.00,SOUTH,GRANTS,5902406485,1000053378
03.03.2020,CUSTOMER EXPERIENCE HGF,ANNETTE CAFFERKEY,850.00,HOMELESS PROJECTS,LEGAL FEES & COURT COSTS,2103068891,1000067279
03.03.2020,CUSTOMER EXPERIENCE HGF,ANNETTE CAFFERKEY,850.00,HOMELESS PROJECTS,LEGAL FEES & COURT COSTS,2103068893,1000067279
03.03.2020,CUSTOMER EXPERIENCE HGF,ANNETTE CAFFERKEY,"1,050.00",HOMELESS PROJECTS,LEGAL FEES & COURT COSTS,2103068892,1000067279
03.03.2020,CUSTOMER EXPERIENCE HGF,ANNETTE CAFFERKEY,"1,500.00",HOMELESS PROJECTS,LEGAL FEES & COURT COSTS,2103068895,1000067279
03.03.2020,CUSTOMER EXPERIENCE HGF,ANNETTE CAFFERKEY,"1,750.00",HOMELESS PROJECTS,LEGAL FEES & COURT COSTS,2103068894,1000067279
03.03.2020,CUSTOMER EXPERIENCE HGF,CHRISTOPHER BAKER,393.75,HOMELESS PROJECTS,LEGAL FEES & COURT COSTS,2103068908,1000043525
03.03.2020,CUSTOMER EXPERIENCE HGF,CHRISTOPHER BAKER,"1,400.00",HOMELESS PROJECTS,LEGAL FEES & COURT COSTS,2103068907,1000043525
03.03.2020,CUSTOMER EXPERIENCE HGF,CHRISTOPHER BAKER,"1,500.00",HOMELESS PROJECTS,LEGAL FEES & COURT COSTS,2103068904,1000043525
03.03.2020,CUSTOMER EXPERIENCE HGF,CHRISTOPHER BAKER,"1,575.00",HOMELESS PROJECTS,LEGAL FEES & COURT COSTS,2103068905,1000043525
03.03.2020,CUSTOMER EXPERIENCE HGF,CHRISTOPHER BAKER,"1,604.17",HOMELESS PROJECTS,LEGAL FEES & COURT COSTS,2103068906,1000043525
03.03.2020,CUSTOMER EXPERIENCE HGF,CHRISTOPHER BAKER,"1,750.00",HOMELESS PROJECTS,LEGAL FEES & COURT COSTS,2103068902,1000043525
03.03.2020,CUSTOMER EXPERIENCE HGF,CHRISTOPHER BAKER,"1,750.00",HOMELESS PROJECTS,LEGAL FEES & COURT COSTS,2103068903,1000043525
03.03.2020,CUSTOMER EXPERIENCE HGF,IAN PEACOCK,"1,750.00",HOMELESS PROJECTS,LEGAL FEES & COURT COSTS,2103068914,1000081174
03.03.2020,CUSTOMER EXPERIENCE HGF,ROSE HAYLES,"1,196.72",HOMELESS PROJECTS,EXTERNAL AGENCIES AND BODIES,5902406606,1000056809
03.03.2020,CUSTOMER EXPERIENCE HGF,R S P  LTD  WARRANT SERVICE,"1,889.20",HOUSING OPTIONS,PUBLIC TRANSPORT,5902406460,1000006523
03.03.2020,CUSTOMER EXPERIENCE HGF,NATIONWIDE ACCOMMODATION,"-1,242.50",NIGHTLY TA (NSC),EXTERNAL AGENCIES AND BODIES,5902404703,1000076112
03.03.2020,CUSTOMER EXPERIENCE HGF,NATIONWIDE ACCOMMODATION,"1,080.00",NIGHTLY TA (NSC),EXTERNAL AGENCIES AND BODIES,5902404709,1000076112
03.03.2020,CUSTOMER EXPERIENCE HGF,NATIONWIDE ACCOMMODATION,"147,586.95",NIGHTLY TA (NSC),EXTERNAL AGENCIES AND BODIES,5902406513,1000076112
03.03.2020,CUSTOMER EXPERIENCE HGF,RS REAL ESTATE LTD,315.00,NIGHTLY TA (NSC),EXTERNAL AGENCIES AND BODIES,5902406469,1000072485
03.03.2020,CUSTOMER EXPERIENCE HGF,IDEAL QUARTERS LTD,"-2,261.19",PSL PLACEMENTS,EXTERNAL AGENCIES AND BODIES,5902406461,1000079241
03.03.2020,CUSTOMER EXPERIENCE HGF,IDEAL QUARTERS LTD,-500.00,PSL PLACEMENTS,EXTERNAL AGENCIES AND BODIES,5902406463,1000079241
03.03.2020,CUSTOMER EXPERIENCE HGF,IDEAL QUARTERS LTD,-500.00,PSL PLACEMENTS,EXTERNAL AGENCIES AND BODIES,5902406464,1000079241
03.03.2020,CUSTOMER EXPERIENCE HGF,IDEAL QUARTERS LTD,"5,000.00",PSL PLACEMENTS,EXTERNAL AGENCIES AND BODIES,5902406458,1000079241
03.03.2020,CUSTOMER EXPERIENCE HGF,IDEAL QUARTERS LTD,"93,523.58",PSL PLACEMENTS,EXTERNAL AGENCIES AND BODIES,5902406459,1000079241
03.03.2020,ENVIRONMENT AND LEISURE,CONWAY AECOM LTD,"1,621.93",CAPITAL PS (LEISURE),CONSTRUCTION,5902406589,1000071205
03.03.2020,ENVIRONMENT AND LEISURE,CONWAY AECOM LTD,"1,621.93",CAPITAL PS (LEISURE),CONSTRUCTION,5902406590,1000071205
03.03.2020,ENVIRONMENT AND LEISURE,DAVID MILES & PARTNERS LTD,"1,350.00",CAPITAL PS (LEISURE),CONSTRUCTION MAIN CONTRACT,5902406677,1000001119
03.03.2020,ENVIRONMENT AND LEISURE,LORENSBERGS LTD,400.00,CAPITAL PS (LEISURE),ICT ACQUISITION,5902406474,1000044178
03.03.2020,ENVIRONMENT AND LEISURE,LORENSBERGS LTD,400.00,CAPITAL PS (LEISURE),ICT ACQUISITION,5902406474,1000044178
03.03.2020,ENVIRONMENT AND LEISURE,LORENSBERGS LTD,"2,000.00",CAPITAL PS (LEISURE),ICT ACQUISITION,5902406474,1000044178
03.03.2020,ENVIRONMENT AND LEISURE,SYSTRA LTD,"2,975.00",CAPITAL PS (LEISURE),CONSTRUCTION FEES  - EXTERNAL,5902406664,11305109
03.03.2020,ENVIRONMENT DIRECTORATE,SPALDINGS (UK) LTD,266.00,GROUNDS MAINTENANCE - GENERAL,MATERIALS,5902406651,1907384
03.03.2020,ENVIRONMENT DIRECTORATE,SPALDINGS (UK) LTD,568.00,GROUNDS MAINTENANCE - GENERAL,MATERIALS,5902406648,1907384
03.03.2020,ENVIRONMENT DIRECTORATE,SPALDINGS (UK) LTD,636.00,GROUNDS MAINTENANCE - GENERAL,MATERIALS,5902406641,1907384
03.03.2020,ENVIRONMENT DIRECTORATE,SPALDINGS (UK) LTD,"1,704.00",GROUNDS MAINTENANCE - GENERAL,MATERIALS,5902406636,1907384
03.03.2020,ENVIRONMENT DIRECTORATE,LONDON TOOLS LIMITED,590.00,HEALTH & SAFETY,"CLOTHING, UNIFORMS & LAUNDRY",5902406508,1000003017
03.03.2020,ENVIRONMENT DIRECTORATE,LONDON TOOLS LIMITED,590.00,HEALTH & SAFETY,"CLOTHING, UNIFORMS & LAUNDRY",5902406508,1000003017
03.03.2020,ENVIRONMENT DIRECTORATE,LONDON TOOLS LIMITED,590.00,HEALTH & SAFETY,"CLOTHING, UNIFORMS & LAUNDRY",5902406509,1000003017
03.03.2020,ENVIRONMENT DIRECTORATE,BRITISH PARKING ASSOCIATION,550.00,PARKING OVERHEADS,SUBSCRIPTIONS,5902406673,1000000432
03.03.2020,ENVIRONMENT DIRECTORATE,JARED NORMAN,450.00,SASBU,LEGAL FEES & COURT COSTS,2103068915,1000064080
03.03.2020,ENVIRONMENT DIRECTORATE,E & E BUILDING SERVICES LTD,"21,458.73",SBS - HOLDING ACCOUNT,OTHER CONTRACTORS,2103069083,3000001176
03.03.2020,EXCHEQUER SERVICES,MRO PEOPLE LTD,850.00,ADMINISTRATIVE SUPPORT,TRAINING,5902406510,1000083017
03.03.2020,HOUSING,OCO LIMITED,"138,474.12",PAYMENTS CONTROL ACCOUNT - OCO,I-WORLD CONTRACTORS HOLDING ACCOUNT,5902406522,1006066
03.03.2020,HOUSING,SMITH & BYFORD LTD,"113,765.56",SMITH AND BYFORD,I-WORLD CONTRACTORS HOLDING ACCOUNT,5902406523,11212119
03.03.2020,HOUSING GENERAL FUND,FRANKHAM CONSULTANCY GROUP LTD,"1,292.00",CAPITAL PS (HOUSING GF),CAPITAL GRANTS,5902406515,1000043952
03.03.2020,HOUSING GENERAL FUND,DAVID MILES & PARTNERS LTD,"5,000.00",CAPITAL PS (REGEN),CONSTRUCTION MAIN CONTRACT,5902406684,1000001119
03.03.2020,HOUSING HRA,BLAKEDOWN LANDSCAPES,"105,450.00",CAPITAL PS (HRA),CONSTRUCTION MAIN CONTRACT,2103068864,4005399
03.03.2020,HOUSING HRA,POTTER RAPER LTD,"9,557.73",CAPITAL PS (HRA),CONSTRUCTION FEES  - EXTERNAL,5902406667,1009369
03.03.2020,HOUSING HRA,SHARPE PRITCHARD LLP,644.80,CAPITAL PS (HRA),CONSTRUCTION FEES  - EXTERNAL,5902406655,1790085
03.03.2020,LAW & DEMOCRACY,BRIMTONROY T&RA,500.00,GENERAL ELECTION,HIRE OF ROOMS/HALLS,5902406473,1000001919
03.03.2020,LAW & DEMOCRACY,BRIMTONROY T&RA,500.00,GENERAL ELECTION,HIRE OF ROOMS/HALLS,5902406477,1000001919
03.03.2020,LAW & DEMOCRACY,ALEX LINE,280.00,LEGAL CORP.CHARGES,LEGAL FEES & COURT COSTS,2103068881,1000080295
03.03.2020,LAW & DEMOCRACY,ALEX LINE,350.00,LEGAL CORP.CHARGES,LEGAL FEES & COURT COSTS,2103068880,1000080295
03.03.2020,LEISURE DIRECTORATE,LONDON BUBBLE THEATRE COMPANY,"7,000.00",ARTS GRANTS,GRANTS,5902406490,11022517
03.03.2020,LEISURE DIRECTORATE,ANGEL SPRINGS LTD,352.26,BLUE ANCHOR LIBRARY,EQUIPMENT PURCHASE & REPAIR,5902406682,1000063961
03.03.2020,LEISURE DIRECTORATE,BENJAMIN OSWALD (UK) HOLDINGS LTD,370.00,DAMILOLA TAYLOR CENTRE,CATERING MATERIALS & SUPPLIES,5902406613,1000047994
03.03.2020,LEISURE DIRECTORATE,REDAPPLES NEWSAGENT,326.75,DULWICH LIBRARY,BOOKS & PUBLICATIONS,5902406703,11319405
03.03.2020,LEISURE DIRECTORATE,REDAPPLES NEWSAGENT,344.55,DULWICH LIBRARY,BOOKS & PUBLICATIONS,5902406702,11319405
03.03.2020,LEISURE DIRECTORATE,PETER DEER & ASSOCIATES LTD,"6,737.50",FACILITIES MANAGEMENT,LEGAL FEES & COURT COSTS,2103068920,1000081248
03.03.2020,LEISURE DIRECTORATE,A J PAIN WASTE MANAGEMENT LTD,"2,146.50",SDM BUDGET,REFUSE COLLECTION CONTRACT,5902406629,1000057777
03.03.2020,LEISURE DIRECTORATE,BRITISH TELECOMMUNICATIONS PLC,782.66,SDM BUDGET,TELEPHONES (LAND LINES),5902406622,11149671
03.03.2020,LEISURE DIRECTORATE,NPOWER,286.58,SDM BUDGET,ELECTRICITY,5902406643,1000032342
03.03.2020,LEISURE DIRECTORATE,NPOWER,396.65,SDM BUDGET,ELECTRICITY,5902406623,1000032342
03.03.2020,LEISURE DIRECTORATE,NPOWER,514.03,SDM BUDGET,ELECTRICITY,5902406637,1000032342
03.03.2020,LEISURE DIRECTORATE,C S G (USHERS) LTD,"1,600.00",TREES RECOVERY PROJECT,OTHER CONTRACTORS,5902406472,1000073203
03.03.2020,MODERNISATION HGF,BORER DATA SYSTEMS LIMITED,"1,800.00",160 TOOLEY ST.,BUILDING R&M,5902406521,1000013544
03.03.2020,MODERNISATION HGF,SHL UK LTD,463.50,OCCUPATIONAL ASSESSMENT,CONSULTANTS SERVICES,5902406650,1050652
03.03.2020,MODERNISATION HGF,URBANCANDA,"2,320.00",ORG TRANSFORMATION,TRAINING,5902406599,1000036367
03.03.2020,MODERNISATION HGF,ASBESTOS SOLUTIONS LIMITED,"1,200.00",PLANNED MAINTENANCE,BUILDING R&M,2103069085,3000002114
03.03.2020,NEW BUILD,BROWNE JACOBSON,"1,312.40",DEVELOPMENT DELIVERY,PAYMENTS FOR LEGAL SERVICES,5902406591,1000081338
03.03.2020,NEW BUILD,BROWNE JACOBSON,"2,800.00",DEVELOPMENT DELIVERY,PAYMENTS FOR LEGAL SERVICES,5902406592,1000081338
03.03.2020,NEW BUILD,BROWNE JACOBSON,"5,447.70",DEVELOPMENT DELIVERY,PAYMENTS FOR LEGAL SERVICES,5902406593,1000081338
03.03.2020,PLANNING AND TRANSPORT,CAROLINE  DALY,"1,750.00",COMPLIANCE & MONITORING,LEGAL FEES & COURT COSTS,2103068901,1000075771
03.03.2020,PLANNING AND TRANSPORT,SOUTHWARK NEWSPAPER LTD,504.00,DEVELOPMENT CONTROL ADMINSTRATION,MARKETING & PUBLICITY SERVICES,5902406681,1556957
03.03.2020,PLANNING AND TRANSPORT,LONDON SOUTH BANK UNIVERSITY,"6,935.00",HEAD OF PLANNING AND TRANSPORT,TRAINING,5902406626,1000051012
03.03.2020,REGENERATION,STRUTT & PARKER,300.00,CPHA SURPLUS,PROFESSIONAL FEES,5902406695,1000079964
03.03.2020,RESIDENT SERVICES,BRITISH GAS TRADING LTD,-283.81,OPERATIONS/OFFICES ACCOMMODATION,ELECTRICITY,5902406886,1000055977
03.03.2020,RESIDENT SERVICES,BRITISH GAS TRADING LTD,283.81,OPERATIONS/OFFICES ACCOMMODATION,ELECTRICITY,5902403444,1000055977
03.03.2020,RESIDENT SERVICES,EDF ENERGY PLC,261.87,OPERATIONS/OFFICES ACCOMMODATION,ELECTRICITY,5902406683,1008746
03.03.2020,RESIDENT SERVICES,EDF ENERGY PLC,273.89,OPERATIONS/OFFICES ACCOMMODATION,ELECTRICITY,5902406676,1008746
03.03.2020,RESIDENT SERVICES,EDF ENERGY PLC,316.92,OPERATIONS/OFFICES ACCOMMODATION,ELECTRICITY,5902406685,1008746
03.03.2020,RESIDENT SERVICES,EDF ENERGY PLC,443.39,OPERATIONS/OFFICES ACCOMMODATION,ELECTRICITY,5902406674,1008746
03.03.2020,RESIDENT SERVICES,EDF ENERGY PLC,"2,578.27",OPERATIONS/OFFICES ACCOMMODATION,ELECTRICITY,5902406497,1008746
03.03.2020,RESIDENT SERVICES,RS REAL ESTATE LTD,630.00,TA PLACEMENTS,EXTERNAL AGENCIES AND BODIES,5902406481,1000072485
04.03.2020,ADULT SOCIAL CARE,ALL4U FOSTERING LTD,"6,027.36",DISABILITIES LAC,EXTERNAL AGENCIES AND BODIES,2103069435,1000080663
04.03.2020,ADULT SOCIAL CARE,AMELIA'S HOUSE LIMITED,"2,400.00",DISABILITIES LAC,EXTERNAL AGENCIES AND BODIES,2103069382,1000083007
04.03.2020,ADULT SOCIAL CARE,AMELIA'S HOUSE LIMITED,"2,400.00",DISABILITIES LAC,EXTERNAL AGENCIES AND BODIES,2103069383,1000083007
04.03.2020,ADULT SOCIAL CARE,AMELIA'S HOUSE LIMITED,"2,400.00",DISABILITIES LAC,EXTERNAL AGENCIES AND BODIES,2103069385,1000083007
04.03.2020,ADULT SOCIAL CARE,BY THE BRIDGE LTD,"5,385.71",DISABILITIES LAC,EXTERNAL AGENCIES AND BODIES,2103069685,1000043961
04.03.2020,ADULT SOCIAL CARE,BY THE BRIDGE LTD,"5,829.00",DISABILITIES LAC,EXTERNAL AGENCIES AND BODIES,2103069684,1000043961
04.03.2020,ADULT SOCIAL CARE,CREATING CARE CHOICES LTD,"17,400.00",DISABILITIES LAC,EXTERNAL AGENCIES AND BODIES,2103069561,1000076738
04.03.2020,ADULT SOCIAL CARE,HELP ME GROW FOSTERING SERVICES LTD,"5,385.59",DISABILITIES LAC,EXTERNAL AGENCIES AND BODIES,2103069420,1000079302
04.03.2020,ADULT SOCIAL CARE,THE DRIVE CARE HOMES LTD,"1,480.00",DISABILITIES LAC,RESIDENTIAL CARE,2103069490,1000003889
04.03.2020,ADULT SOCIAL CARE,THE DRIVE CARE HOMES LTD,"13,215.13",DISABILITIES LAC,RESIDENTIAL CARE,2103069491,1000003889
04.03.2020,ADULT SOCIAL CARE,REDACTED PERSONAL DATA,272.00,FAMILY LINK,PAYMENTS TO CARERS,REDACTED,REDACTED
04.03.2020,ADULT SOCIAL CARE,REDACTED PERSONAL DATA,320.00,FAMILY LINK,PAYMENTS TO CARERS,REDACTED,REDACTED
04.03.2020,ADULT SOCIAL CARE,REDACTED PERSONAL DATA,648.00,FAMILY LINK,PAYMENTS TO CARERS,REDACTED,REDACTED
04.03.2020,ADULT SOCIAL CARE,REDACTED PERSONAL DATA,715.00,FAMILY LINK,PAYMENTS TO CARERS,REDACTED,REDACTED
04.03.2020,ADULT SOCIAL CARE,POHWER,"8,786.00",INDEPENDENT MC ADVOCACY,ADVOCACY,5902406833,1000070508
04.03.2020,ADULT SOCIAL CARE,CARE O LINE,"1,925.00",SPECIALIST CARE,SECTION 17 PAYMENTS TO AGENCIES/CARERS,2103069475,11241743
04.03.2020,ADULT SOCIAL CARE,CARE O LINE,"4,867.50",SPECIALIST CARE,SECTION 17 PAYMENTS TO AGENCIES/CARERS,2103069486,11241743
04.03.2020,ADULT SOCIAL CARE,CONTACT PROFESSIONALS,323.00,SPECIALIST CARE,SECTION 17 PAYMENTS TO AGENCIES/CARERS,2103069634,1000057263
04.03.2020,ADULT SOCIAL CARE,CONTACT PROFESSIONALS,342.00,SPECIALIST CARE,SECTION 17 PAYMENTS TO AGENCIES/CARERS,2103069630,1000057263
04.03.2020,ADULT SOCIAL CARE,INTERSERVE HEALTHCARE,888.66,SPECIALIST CARE,SECTION 17 PAYMENTS TO AGENCIES/CARERS,2103069633,1000049612
04.03.2020,ADULT SOCIAL CARE,METRO HOMECARE LTD,306.90,SPECIALIST CARE,SECTION 17 PAYMENTS TO AGENCIES/CARERS,2103069467,1000070695
04.03.2020,ADULT SOCIAL CARE,METRO HOMECARE LTD,334.80,SPECIALIST CARE,SECTION 17 PAYMENTS TO AGENCIES/CARERS,2103069468,1000070695
04.03.2020,ADULT SOCIAL CARE,METRO HOMECARE LTD,334.80,SPECIALIST CARE,SECTION 17 PAYMENTS TO AGENCIES/CARERS,2103069469,1000070695
04.03.2020,ADULT SOCIAL CARE,METRO HOMECARE LTD,334.80,SPECIALIST CARE,SECTION 17 PAYMENTS TO AGENCIES/CARERS,2103069487,1000070695
04.03.2020,ADULT SOCIAL CARE,METRO HOMECARE LTD,406.00,SPECIALIST CARE,SECTION 17 PAYMENTS TO AGENCIES/CARERS,2103069470,1000070695
04.03.2020,ADULT SOCIAL CARE,METRO HOMECARE LTD,418.50,SPECIALIST CARE,SECTION 17 PAYMENTS TO AGENCIES/CARERS,2103069479,1000070695
04.03.2020,ADULT SOCIAL CARE,METRO HOMECARE LTD,502.20,SPECIALIST CARE,SECTION 17 PAYMENTS TO AGENCIES/CARERS,2103069482,1000070695
04.03.2020,ADULT SOCIAL CARE,METRO HOMECARE LTD,588.00,SPECIALIST CARE,SECTION 17 PAYMENTS TO AGENCIES/CARERS,2103069471,1000070695
04.03.2020,ADULT SOCIAL CARE,METRO HOMECARE LTD,669.60,SPECIALIST CARE,SECTION 17 PAYMENTS TO AGENCIES/CARERS,2103069488,1000070695
04.03.2020,ADULT SOCIAL CARE,METRO HOMECARE LTD,725.40,SPECIALIST CARE,SECTION 17 PAYMENTS TO AGENCIES/CARERS,2103069484,1000070695
04.03.2020,ADULT SOCIAL CARE,NATIONAL AUTISTIC SOCIETY CARE PACK,"1,967.73",SPECIALIST CARE,SECTION 17 PAYMENTS TO AGENCIES/CARERS,2103069466,1000020538
04.03.2020,ADULT SOCIAL CARE,NATIONAL AUTISTIC SOCIETY CARE PACK,"2,004.43",SPECIALIST CARE,SECTION 17 PAYMENTS TO AGENCIES/CARERS,2103069477,1000020538
04.03.2020,ADULT SOCIAL CARE,NATIONAL AUTISTIC SOCIETY CARE PACK,"3,559.11",SPECIALIST CARE,SECTION 17 PAYMENTS TO AGENCIES/CARERS,2103069474,1000020538
04.03.2020,ADULT SOCIAL CARE,NATIONAL AUTISTIC SOCIETY CARE PACK,"12,379.88",SPECIALIST CARE,SECTION 17 PAYMENTS TO AGENCIES/CARERS,2103069483,1000020538
04.03.2020,ADULT SOCIAL CARE,RESOURCES FOR AUTISM,430.00,SPECIALIST CARE,SECTION 17 PAYMENTS TO AGENCIES/CARERS,2103069473,1000062540
04.03.2020,ADULT SOCIAL CARE,METRO HOMECARE LTD,809.10,TRANSITIONS 14-18YRS,SECTION 17 PAYMENTS TO AGENCIES/CARERS,2103069478,1000070695
04.03.2020,CHILDREN AND ADULT,KEEGANS LTD,"16,340.00",CAPITAL PS (EDUCATION),CONSTRUCTION FEES - QUANTITY SURVEYOR,5902406748,1000039674
04.03.2020,CHILDREN AND ADULT,STANDAGE & CO LTD,"17,791.05",CAPITAL PS (EDUCATION),CONSTRUCTION,2103069088,4002817
04.03.2020,CHILDREN'S SERVICES,CARE O LINE,660.00,AIS - PRAC GRP C SET7-9,OTHER PAYMENTS FOR CLIENTS,2103069572,11241743
04.03.2020,CHILDREN'S SERVICES,ZEBEDEES LUNCH BOX LTD,325.92,AYLESBURY EARLY YEARS CENTRE,BOOKS & PUBLICATIONS,5902406876,1000083646
04.03.2020,CHILDREN'S SERVICES,REDACTED PERSONAL DATA,300.00,DISABILITY & HIV,ADDITIONAL PAYMENTS TO AGENCIES/CARERS,REDACTED,REDACTED
04.03.2020,CHILDREN'S SERVICES,REDACTED PERSONAL DATA,300.00,DISABILITY & HIV,ADDITIONAL PAYMENTS TO AGENCIES/CARERS,REDACTED,REDACTED
04.03.2020,CHILDREN'S SERVICES,REDACTED PERSONAL DATA,300.00,DISABILITY & HIV,ADDITIONAL PAYMENTS TO AGENCIES/CARERS,REDACTED,REDACTED
04.03.2020,CHILDREN'S SERVICES,REDACTED PERSONAL DATA,300.00,DISABILITY & HIV,ADDITIONAL PAYMENTS TO AGENCIES/CARERS,REDACTED,REDACTED
04.03.2020,CHILDREN'S SERVICES,REDACTED PERSONAL DATA,"1,380.00",DISABILITY & HIV,ADDITIONAL PAYMENTS TO AGENCIES/CARERS,REDACTED,REDACTED
04.03.2020,CHILDREN'S SERVICES,REDACTED PERSONAL DATA,867.85,DISABILITY & HIV,OTHER PAYMENTS FOR CLIENTS,REDACTED,REDACTED
04.03.2020,CHILDREN'S SERVICES,REDACTED PERSONAL DATA,"1,729.29",DISABILITY & HIV,OTHER PAYMENTS FOR CLIENTS,REDACTED,REDACTED
04.03.2020,CHILDREN'S SERVICES,REDACTED PERSONAL DATA,264.29,DISABILITY & HIV,PAYMENTS TO CARERS,REDACTED,REDACTED
04.03.2020,CHILDREN'S SERVICES,REDACTED PERSONAL DATA,500.00,DISABILITY & HIV,PAYMENTS TO CARERS,REDACTED,REDACTED
04.03.2020,CHILDREN'S SERVICES,REDACTED PERSONAL DATA,607.00,DISABILITY & HIV,PAYMENTS TO CARERS,REDACTED,REDACTED
04.03.2020,CHILDREN'S SERVICES,REDACTED PERSONAL DATA,754.28,DISABILITY & HIV,PAYMENTS TO CARERS,REDACTED,REDACTED
04.03.2020,CHILDREN'S SERVICES,REDACTED PERSONAL DATA,"1,299.00",DISABILITY & HIV,PAYMENTS TO CARERS,REDACTED,REDACTED
04.03.2020,CHILDREN'S SERVICES,REDACTED PERSONAL DATA,"1,385.43",DISABILITY & HIV,PAYMENTS TO CARERS,REDACTED,REDACTED
04.03.2020,CHILDREN'S SERVICES,REDACTED PERSONAL DATA,"1,600.00",DISABILITY & HIV,PAYMENTS TO CARERS,REDACTED,REDACTED
04.03.2020,CHILDREN'S SERVICES,AIM HIGH FOSTERING SERVICES LTD,"4,971.18",FRIENDS & FAMILY FOSTERING,EXTERNAL AGENCIES AND BODIES,2103069443,1000082607
04.03.2020,CHILDREN'S SERVICES,ANCHOR FOSTERCARE,"3,607.89",FRIENDS & FAMILY FOSTERING,EXTERNAL AGENCIES AND BODIES,2103069427,1000065675
04.03.2020,CHILDREN'S SERVICES,ANCHOR FOSTERCARE,"4,010.41",FRIENDS & FAMILY FOSTERING,EXTERNAL AGENCIES AND BODIES,2103069446,1000065675
04.03.2020,CHILDREN'S SERVICES,ANCHOR FOSTERCARE,"5,282.06",FRIENDS & FAMILY FOSTERING,EXTERNAL AGENCIES AND BODIES,2103069412,1000065675
04.03.2020,CHILDREN'S SERVICES,ASCENT FOSTERING AGENCY LTD,"4,333.47",FRIENDS & FAMILY FOSTERING,EXTERNAL AGENCIES AND BODIES,2103069447,1000074714
04.03.2020,CHILDREN'S SERVICES,ASCENT FOSTERING AGENCY LTD,"5,489.41",FRIENDS & FAMILY FOSTERING,EXTERNAL AGENCIES AND BODIES,2103069415,1000074714
04.03.2020,CHILDREN'S SERVICES,BANYA FAMILY PLACEMENT AGENCY LTD,300.00,FRIENDS & FAMILY FOSTERING,EXTERNAL AGENCIES AND BODIES,2103069457,11328315
04.03.2020,CHILDREN'S SERVICES,BANYA FAMILY PLACEMENT AGENCY LTD,300.00,FRIENDS & FAMILY FOSTERING,EXTERNAL AGENCIES AND BODIES,2103069458,11328315
04.03.2020,CHILDREN'S SERVICES,BARNARDOS SERVICES LTD,"3,329.49",FRIENDS & FAMILY FOSTERING,EXTERNAL AGENCIES AND BODIES,2103069452,1000063730
04.03.2020,CHILDREN'S SERVICES,BY THE BRIDGE LTD,"-3,685.50",FRIENDS & FAMILY FOSTERING,EXTERNAL AGENCIES AND BODIES,2103069693,1000043961
04.03.2020,CHILDREN'S SERVICES,BY THE BRIDGE LTD,"3,946.36",FRIENDS & FAMILY FOSTERING,EXTERNAL AGENCIES AND BODIES,2103069703,1000043961
04.03.2020,CHILDREN'S SERVICES,BY THE BRIDGE LTD,"4,066.63",FRIENDS & FAMILY FOSTERING,EXTERNAL AGENCIES AND BODIES,2103069698,1000043961
04.03.2020,CHILDREN'S SERVICES,BY THE BRIDGE LTD,"4,154.08",FRIENDS & FAMILY FOSTERING,EXTERNAL AGENCIES AND BODIES,2103069702,1000043961
04.03.2020,CHILDREN'S SERVICES,BY THE BRIDGE LTD,"4,154.08",FRIENDS & FAMILY FOSTERING,EXTERNAL AGENCIES AND BODIES,2103069707,1000043961
04.03.2020,CHILDREN'S SERVICES,BY THE BRIDGE LTD,"4,187.06",FRIENDS & FAMILY FOSTERING,EXTERNAL AGENCIES AND BODIES,2103069686,1000043961
04.03.2020,CHILDREN'S SERVICES,BY THE BRIDGE LTD,"4,214.32",FRIENDS & FAMILY FOSTERING,EXTERNAL AGENCIES AND BODIES,2103069710,1000043961
04.03.2020,CHILDREN'S SERVICES,BY THE BRIDGE LTD,"4,275.18",FRIENDS & FAMILY FOSTERING,EXTERNAL AGENCIES AND BODIES,2103069696,1000043961
04.03.2020,CHILDREN'S SERVICES,BY THE BRIDGE LTD,"4,285.25",FRIENDS & FAMILY FOSTERING,EXTERNAL AGENCIES AND BODIES,2103069711,1000043961
04.03.2020,CHILDREN'S SERVICES,BY THE BRIDGE LTD,"4,309.73",FRIENDS & FAMILY FOSTERING,EXTERNAL AGENCIES AND BODIES,2103069695,1000043961
04.03.2020,CHILDREN'S SERVICES,BY THE BRIDGE LTD,"4,372.70",FRIENDS & FAMILY FOSTERING,EXTERNAL AGENCIES AND BODIES,2103069704,1000043961
04.03.2020,CHILDREN'S SERVICES,BY THE BRIDGE LTD,"4,407.42",FRIENDS & FAMILY FOSTERING,EXTERNAL AGENCIES AND BODIES,2103069692,1000043961
04.03.2020,CHILDREN'S SERVICES,BY THE BRIDGE LTD,"4,495.46",FRIENDS & FAMILY FOSTERING,EXTERNAL AGENCIES AND BODIES,2103069687,1000043961
04.03.2020,CHILDREN'S SERVICES,BY THE BRIDGE LTD,"4,495.46",FRIENDS & FAMILY FOSTERING,EXTERNAL AGENCIES AND BODIES,2103069700,1000043961
04.03.2020,CHILDREN'S SERVICES,BY THE BRIDGE LTD,"4,587.18",FRIENDS & FAMILY FOSTERING,EXTERNAL AGENCIES AND BODIES,2103069699,1000043961
04.03.2020,CHILDREN'S SERVICES,CAPSTONE FOSTER CARE (SOUTH EAST) LTD,"3,521.47",FRIENDS & FAMILY FOSTERING,EXTERNAL AGENCIES AND BODIES,2103069463,1000050353
04.03.2020,CHILDREN'S SERVICES,CAPSTONE FOSTER CARE (SOUTH EAST) LTD,"6,172.94",FRIENDS & FAMILY FOSTERING,EXTERNAL AGENCIES AND BODIES,2103069410,1000050353
04.03.2020,CHILDREN'S SERVICES,CHILDREN OF COLOUR,"3,329.20",FRIENDS & FAMILY FOSTERING,EXTERNAL AGENCIES AND BODIES,2103069422,1000044955
04.03.2020,CHILDREN'S SERVICES,CHILDREN OF COLOUR,"3,329.20",FRIENDS & FAMILY FOSTERING,EXTERNAL AGENCIES AND BODIES,2103069432,1000044955
04.03.2020,CHILDREN'S SERVICES,CHILDREN OF COLOUR,"3,329.20",FRIENDS & FAMILY FOSTERING,EXTERNAL AGENCIES AND BODIES,2103069453,1000044955
04.03.2020,CHILDREN'S SERVICES,COMPASS FOSTERING SOUTH EAST LTD,"3,994.75",FRIENDS & FAMILY FOSTERING,EXTERNAL AGENCIES AND BODIES,2103069423,1000081155
04.03.2020,CHILDREN'S SERVICES,COMPASS FOSTERING SOUTH EAST LTD,"5,178.53",FRIENDS & FAMILY FOSTERING,EXTERNAL AGENCIES AND BODIES,2103069441,1000081155
04.03.2020,CHILDREN'S SERVICES,COMPASS FOSTERING SOUTH LTD,"3,438.53",FRIENDS & FAMILY FOSTERING,EXTERNAL AGENCIES AND BODIES,2103069464,1000073772
04.03.2020,CHILDREN'S SERVICES,CONNECT FOSTERING SERVICES LTD,"3,127.86",FRIENDS & FAMILY FOSTERING,EXTERNAL AGENCIES AND BODIES,2103069411,1000079969
04.03.2020,CHILDREN'S SERVICES,ETHELBERT SPECIALIST HOMES,"3,440.81",FRIENDS & FAMILY FOSTERING,EXTERNAL AGENCIES AND BODIES,2103069424,1796129
04.03.2020,CHILDREN'S SERVICES,ETHELBERT SPECIALIST HOMES,"3,440.81",FRIENDS & FAMILY FOSTERING,EXTERNAL AGENCIES AND BODIES,2103069426,1796129
04.03.2020,CHILDREN'S SERVICES,ETHELBERT SPECIALIST HOMES,"3,440.81",FRIENDS & FAMILY FOSTERING,EXTERNAL AGENCIES AND BODIES,2103069460,1796129
04.03.2020,CHILDREN'S SERVICES,FAMILY WORKS FOSTERING LTD,"5,261.47",FRIENDS & FAMILY FOSTERING,EXTERNAL AGENCIES AND BODIES,2103069714,1000082529
04.03.2020,CHILDREN'S SERVICES,FIVE RIVERS CHILD CARE LTD,"3,397.14",FRIENDS & FAMILY FOSTERING,EXTERNAL AGENCIES AND BODIES,2103069459,1000018792
04.03.2020,CHILDREN'S SERVICES,FOLLOWING WHISPERS FAMILY SERVICE LTD,"6,104.50",FRIENDS & FAMILY FOSTERING,EXTERNAL AGENCIES AND BODIES,2103069455,1000065611
04.03.2020,CHILDREN'S SERVICES,FOLLOWING WHISPERS FAMILY SERVICE LTD,"6,421.47",FRIENDS & FAMILY FOSTERING,EXTERNAL AGENCIES AND BODIES,2103069461,1000065611
04.03.2020,CHILDREN'S SERVICES,FOSTERCARE UK LTD,"6,172.94",FRIENDS & FAMILY FOSTERING,EXTERNAL AGENCIES AND BODIES,2103069409,1000073002
04.03.2020,CHILDREN'S SERVICES,FOSTERING FOR YOU LTD,"3,060.16",FRIENDS & FAMILY FOSTERING,EXTERNAL AGENCIES AND BODIES,2103069682,1000080380
04.03.2020,CHILDREN'S SERVICES,FOSTERING FOR YOU LTD,"3,060.16",FRIENDS & FAMILY FOSTERING,EXTERNAL AGENCIES AND BODIES,2103069713,1000080380
04.03.2020,CHILDREN'S SERVICES,FOSTERING FOR YOU LTD,"3,221.24",FRIENDS & FAMILY FOSTERING,EXTERNAL AGENCIES AND BODIES,2103069688,1000080380
04.03.2020,CHILDREN'S SERVICES,FOSTERING FOR YOU LTD,"3,221.24",FRIENDS & FAMILY FOSTERING,EXTERNAL AGENCIES AND BODIES,2103069689,1000080380
04.03.2020,CHILDREN'S SERVICES,FOSTERING FOR YOU LTD,"3,221.24",FRIENDS & FAMILY FOSTERING,EXTERNAL AGENCIES AND BODIES,2103069694,1000080380
04.03.2020,CHILDREN'S SERVICES,FOSTERING FOR YOU LTD,"3,221.24",FRIENDS & FAMILY FOSTERING,EXTERNAL AGENCIES AND BODIES,2103069697,1000080380
04.03.2020,CHILDREN'S SERVICES,FOSTERING FOR YOU LTD,"3,221.24",FRIENDS & FAMILY FOSTERING,EXTERNAL AGENCIES AND BODIES,2103069709,1000080380
04.03.2020,CHILDREN'S SERVICES,FOSTERING LONDON LTD,"2,300.06",FRIENDS & FAMILY FOSTERING,EXTERNAL AGENCIES AND BODIES,2103069681,1000077541
04.03.2020,CHILDREN'S SERVICES,FOSTERING LONDON LTD,"4,350.00",FRIENDS & FAMILY FOSTERING,EXTERNAL AGENCIES AND BODIES,2103069690,1000077541
04.03.2020,CHILDREN'S SERVICES,FOSTERING LONDON LTD,"4,350.00",FRIENDS & FAMILY FOSTERING,EXTERNAL AGENCIES AND BODIES,2103069712,1000077541
04.03.2020,CHILDREN'S SERVICES,FUSION FOSTERING LTD,"3,348.30",FRIENDS & FAMILY FOSTERING,EXTERNAL AGENCIES AND BODIES,2103069444,1000081674
04.03.2020,CHILDREN'S SERVICES,FUTURES FOR CHILDREN LIMITED,"3,370.96",FRIENDS & FAMILY FOSTERING,EXTERNAL AGENCIES AND BODIES,2103069462,1000041984
04.03.2020,CHILDREN'S SERVICES,FUTURES FOR CHILDREN LIMITED,"3,414.46",FRIENDS & FAMILY FOSTERING,EXTERNAL AGENCIES AND BODIES,2103069434,1000041984
04.03.2020,CHILDREN'S SERVICES,FUTURES FOR CHILDREN LIMITED,"6,280.82",FRIENDS & FAMILY FOSTERING,EXTERNAL AGENCIES AND BODIES,2103069414,1000041984
04.03.2020,CHILDREN'S SERVICES,HEATH FARM FAMILY SOLUTION (FOSTERING),"4,842.42",FRIENDS & FAMILY FOSTERING,EXTERNAL AGENCIES AND BODIES,2103069413,11271268
04.03.2020,CHILDREN'S SERVICES,HEATH FARM FAMILY SOLUTION (FOSTERING),"4,978.72",FRIENDS & FAMILY FOSTERING,EXTERNAL AGENCIES AND BODIES,2103069436,11271268
04.03.2020,CHILDREN'S SERVICES,HELP ME GROW FOSTERING SERVICES LTD,"2,684.39",FRIENDS & FAMILY FOSTERING,EXTERNAL AGENCIES AND BODIES,2103069439,1000079302
04.03.2020,CHILDREN'S SERVICES,HELP ME GROW FOSTERING SERVICES LTD,"2,684.39",FRIENDS & FAMILY FOSTERING,EXTERNAL AGENCIES AND BODIES,2103069454,1000079302
04.03.2020,CHILDREN'S SERVICES,HELP ME GROW FOSTERING SERVICES LTD,"2,982.65",FRIENDS & FAMILY FOSTERING,EXTERNAL AGENCIES AND BODIES,2103069418,1000079302
04.03.2020,CHILDREN'S SERVICES,HELP ME GROW FOSTERING SERVICES LTD,"2,982.65",FRIENDS & FAMILY FOSTERING,EXTERNAL AGENCIES AND BODIES,2103069419,1000079302
04.03.2020,CHILDREN'S SERVICES,HELP ME GROW FOSTERING SERVICES LTD,"2,982.65",FRIENDS & FAMILY FOSTERING,EXTERNAL AGENCIES AND BODIES,2103069425,1000079302
04.03.2020,CHILDREN'S SERVICES,HELP ME GROW FOSTERING SERVICES LTD,"2,982.65",FRIENDS & FAMILY FOSTERING,EXTERNAL AGENCIES AND BODIES,2103069428,1000079302
04.03.2020,CHILDREN'S SERVICES,HELP ME GROW FOSTERING SERVICES LTD,"4,350.00",FRIENDS & FAMILY FOSTERING,EXTERNAL AGENCIES AND BODIES,2103069431,1000079302
04.03.2020,CHILDREN'S SERVICES,HELP ME GROW FOSTERING SERVICES LTD,"5,567.71",FRIENDS & FAMILY FOSTERING,EXTERNAL AGENCIES AND BODIES,2103069433,1000079302
04.03.2020,CHILDREN'S SERVICES,HORIZON FOSTERING SERVICES LTD,"2,748.04",FRIENDS & FAMILY FOSTERING,EXTERNAL AGENCIES AND BODIES,2103069679,1000075679
04.03.2020,CHILDREN'S SERVICES,HORIZON FOSTERING SERVICES LTD,"2,748.04",FRIENDS & FAMILY FOSTERING,EXTERNAL AGENCIES AND BODIES,2103069706,1000075679
04.03.2020,CHILDREN'S SERVICES,HORIZON FOSTERING SERVICES LTD,"2,892.75",FRIENDS & FAMILY FOSTERING,EXTERNAL AGENCIES AND BODIES,2103069705,1000075679
04.03.2020,CHILDREN'S SERVICES,INTEGRATED SERVICES PROGRAMME,"5,959.50",FRIENDS & FAMILY FOSTERING,EXTERNAL AGENCIES AND BODIES,2103069437,1642068
04.03.2020,CHILDREN'S SERVICES,INTEGRATED SERVICES PROGRAMME,"5,959.50",FRIENDS & FAMILY FOSTERING,EXTERNAL AGENCIES AND BODIES,2103069442,1642068
04.03.2020,CHILDREN'S SERVICES,INTEGRATED SERVICES PROGRAMME,"5,959.50",FRIENDS & FAMILY FOSTERING,EXTERNAL AGENCIES AND BODIES,2103069456,1642068
04.03.2020,CHILDREN'S SERVICES,INTEGRATED SERVICES PROGRAMME,"7,809.00",FRIENDS & FAMILY FOSTERING,EXTERNAL AGENCIES AND BODIES,2103069449,1642068
04.03.2020,CHILDREN'S SERVICES,INTEGRATED SERVICES PROGRAMME,"8,220.00",FRIENDS & FAMILY FOSTERING,EXTERNAL AGENCIES AND BODIES,2103069416,1642068
04.03.2020,CHILDREN'S SERVICES,INTEGRATED SERVICES PROGRAMME,"8,220.00",FRIENDS & FAMILY FOSTERING,EXTERNAL AGENCIES AND BODIES,2103069450,1642068
04.03.2020,CHILDREN'S SERVICES,LOGICOUS LTD,"1,206.25",FRIENDS & FAMILY FOSTERING,NURSING PLACEMENTS FEES,5902406836,1000073852
04.03.2020,CHILDREN'S SERVICES,MOSAIC FOSTER CARE LTD,"6,214.12",FRIENDS & FAMILY FOSTERING,EXTERNAL AGENCIES AND BODIES,2103069445,1000076259
04.03.2020,CHILDREN'S SERVICES,MOSAIC FOSTER CARE LTD,"6,525.00",FRIENDS & FAMILY FOSTERING,EXTERNAL AGENCIES AND BODIES,2103069440,1000076259
04.03.2020,CHILDREN'S SERVICES,NATIONAL FOSTERING AGENCY,500.00,FRIENDS & FAMILY FOSTERING,EXTERNAL AGENCIES AND BODIES,2103069448,1000038868
04.03.2020,CHILDREN'S SERVICES,ORANGE GROVE FOSTERCARE LTD,"3,509.70",FRIENDS & FAMILY FOSTERING,EXTERNAL AGENCIES AND BODIES,2103069683,1000078716
04.03.2020,CHILDREN'S SERVICES,PARENT AND CHILD FOSTERING ASSESSMENTS,"3,107.14",FRIENDS & FAMILY FOSTERING,EXTERNAL AGENCIES AND BODIES,2103069438,1000078962
04.03.2020,CHILDREN'S SERVICES,PARENT AND CHILD FOSTERING ASSESSMENTS,"7,634.00",FRIENDS & FAMILY FOSTERING,EXTERNAL AGENCIES AND BODIES,2103069430,1000078962
04.03.2020,CHILDREN'S SERVICES,REDACTED PERSONAL DATA,400.00,FRIENDS & FAMILY FOSTERING,ADDITIONAL PAYMENTS TO AGENCIES/CARERS,REDACTED,REDACTED
04.03.2020,CHILDREN'S SERVICES,REDACTED PERSONAL DATA,300.00,FRIENDS & FAMILY FOSTERING,OTHER PAYMENTS FOR CLIENTS,REDACTED,REDACTED
04.03.2020,CHILDREN'S SERVICES,REDACTED PERSONAL DATA,300.00,FRIENDS & FAMILY FOSTERING,OTHER PAYMENTS FOR CLIENTS,REDACTED,REDACTED
04.03.2020,CHILDREN'S SERVICES,SHARED CARE SERVICES LTD,"1,491.85",FRIENDS & FAMILY FOSTERING,EXTERNAL AGENCIES AND BODIES,2103069429,1000080308
04.03.2020,CHILDREN'S SERVICES,SHARED CARE SERVICES LTD,"6,180.48",FRIENDS & FAMILY FOSTERING,EXTERNAL AGENCIES AND BODIES,2103069417,1000080308
04.03.2020,CHILDREN'S SERVICES,SHINING STARS FOSTERING AGENCY LTD,"1,392.82",FRIENDS & FAMILY FOSTERING,EXTERNAL AGENCIES AND BODIES,2103069708,1000079431
04.03.2020,CHILDREN'S SERVICES,LEAEFF LTD,"2,500.00",MANAGEMENT INFORMATION UNIT,PROFESSIONAL FEES,5902406708,1000083779
04.03.2020,CHILDREN'S SERVICES,LEAEFF LTD,"2,500.00",MANAGEMENT INFORMATION UNIT,PROFESSIONAL FEES,5902406709,1000083779
04.03.2020,CHILDREN'S SERVICES,LEAEFF LTD,"2,500.00",MANAGEMENT INFORMATION UNIT,PROFESSIONAL FEES,5902406710,1000083779
04.03.2020,CHILDREN'S SERVICES,CARE O LINE,"1,993.75",RESIDENTIAL,EXTERNAL AGENCIES AND BODIES,2103069562,11241743
04.03.2020,CHILDREN'S SERVICES,CARE O LINE,"2,014.38",RESIDENTIAL,EXTERNAL AGENCIES AND BODIES,2103069558,11241743
04.03.2020,CHILDREN'S SERVICES,CARE O LINE,"4,235.00",RESIDENTIAL,EXTERNAL AGENCIES AND BODIES,2103069559,11241743
04.03.2020,CHILDREN'S SERVICES,CARE O LINE,"4,620.00",RESIDENTIAL,EXTERNAL AGENCIES AND BODIES,2103069555,11241743
04.03.2020,CHILDREN'S SERVICES,CARE O LINE,"4,620.00",RESIDENTIAL,EXTERNAL AGENCIES AND BODIES,2103069557,11241743
04.03.2020,CHILDREN'S SERVICES,CARE O LINE,"4,620.00",RESIDENTIAL,EXTERNAL AGENCIES AND BODIES,2103069560,11241743
04.03.2020,CHILDREN'S SERVICES,CHILDHOOD FIRST,"24,047.14",RESIDENTIAL,RESIDENTIAL CARE,2103069384,1000076330
04.03.2020,CHILDREN'S SERVICES,KING EDWARDS SCHOOL WITLEY,"3,674.11",RESIDENTIAL,RESIDENTIAL CARE,2103069386,1000078154
04.03.2020,CHILDREN'S SERVICES,UNIQUE CARE HOMES SUPPORT LTD,"16,700.00",RESIDENTIAL,RESIDENTIAL CARE,2103069563,1000083349
04.03.2020,CHILDREN'S SERVICES,UNIQUE CARE HOMES SUPPORT LTD,"31,340.00",RESIDENTIAL,RESIDENTIAL CARE,2103069556,1000083349
04.03.2020,CHILDREN'S SERVICES,THE DRIVE CARE HOMES LTD,"2,734.14",RESOURCE PANEL,SECTION 17 PAYMENTS TO AGENCIES/CARERS,2103069381,1000003889
04.03.2020,CHILDREN'S SERVICES,CARE O LINE,487.50,S & FAM SUPP - PRAC GRP B SET 17-19,OTHER PAYMENTS FOR CLIENTS,2103069573,11241743
04.03.2020,CHILDREN'S SERVICES,CARE O LINE,495.00,S & FAM SUPP - PRAC GRP B SET 17-19,OTHER PAYMENTS FOR CLIENTS,2103069380,11241743
04.03.2020,CHILDREN'S SERVICES,CARE O LINE,600.00,S & FAM SUPP - PRAC GRP B SET 17-19,OTHER PAYMENTS FOR CLIENTS,2103069571,11241743
04.03.2020,CHILDREN'S SERVICES,CARE O LINE,600.00,S & FAM SUPP - PRAC GRP B SET 17-19,OTHER PAYMENTS FOR CLIENTS,2103069574,11241743
04.03.2020,CHILDREN'S SERVICES,CARE O LINE,693.75,S & FAM SUPP - PRAC GRP B SET 17-19,OTHER PAYMENTS FOR CLIENTS,2103069567,11241743
04.03.2020,CHILDREN'S SERVICES,CARE O LINE,818.75,S & FAM SUPP - PRAC GRP B SET 17-19,OTHER PAYMENTS FOR CLIENTS,2103069564,11241743
04.03.2020,CHILDREN'S SERVICES,CARE O LINE,981.25,S & FAM SUPP - PRAC GRP B SET 17-19,OTHER PAYMENTS FOR CLIENTS,2103069565,11241743
04.03.2020,CHILDREN'S SERVICES,CARE O LINE,981.25,S & FAM SUPP - PRAC GRP B SET 17-19,OTHER PAYMENTS FOR CLIENTS,2103069566,11241743
04.03.2020,CHILDREN'S SERVICES,CARE O LINE,981.25,S & FAM SUPP - PRAC GRP B SET 17-19,OTHER PAYMENTS FOR CLIENTS,2103069569,11241743
04.03.2020,CHILDREN'S SERVICES,CARE O LINE,981.25,S & FAM SUPP - PRAC GRP B SET 17-19,OTHER PAYMENTS FOR CLIENTS,2103069575,11241743
04.03.2020,CHILDREN'S SERVICES,CARE O LINE,"1,050.00",S & FAM SUPP - PRAC GRP B SET 17-19,OTHER PAYMENTS FOR CLIENTS,2103069570,11241743
04.03.2020,CHILDREN'S SERVICES,CARE O LINE,"1,187.50",S & FAM SUPP - PRAC GRP B SET 17-19,OTHER PAYMENTS FOR CLIENTS,2103069568,11241743
04.03.2020,CHILDREN'S SERVICES,CARE O LINE,"3,850.00",S & FAM SUPP - PRAC GRP B SET 17-19,OTHER PAYMENTS FOR CLIENTS,2103069379,11241743
04.03.2020,CHILDREN'S SERVICES,CARE O LINE,"5,005.00",S & FAM SUPP - PRAC GRP B SET 17-19,OTHER PAYMENTS FOR CLIENTS,2103069378,11241743
04.03.2020,CHILDREN'S SERVICES,CITYGLEN LTD,"1,305.00",SEMI INDEPENDENT CARE LEAVERS,EXTERNAL AGENCIES AND BODIES,2103069746,1000026239
04.03.2020,CHILDREN'S SERVICES,FAMILY FOSTERING LTD,"1,657.06",SEMI INDEPENDENT CARE LEAVERS,EXTERNAL AGENCIES AND BODIES,2103069601,1000075179
04.03.2020,CHILDREN'S SERVICES,FINEFAIR LTD,"1,578.47",SEMI INDEPENDENT CARE LEAVERS,EXTERNAL AGENCIES AND BODIES,2103069596,1000075570
04.03.2020,CHILDREN'S SERVICES,FUTURE FOUNDATIONS LTD,-700.00,SEMI INDEPENDENT CARE LEAVERS,EXTERNAL AGENCIES AND BODIES,2103069590,1000063272
04.03.2020,CHILDREN'S SERVICES,FUTURE FOUNDATIONS LTD,840.00,SEMI INDEPENDENT CARE LEAVERS,EXTERNAL AGENCIES AND BODIES,2103069598,1000063272
04.03.2020,CHILDREN'S SERVICES,FUTURE FOUNDATIONS LTD,"1,722.71",SEMI INDEPENDENT CARE LEAVERS,EXTERNAL AGENCIES AND BODIES,2103069603,1000063272
04.03.2020,CHILDREN'S SERVICES,FUTURE FOUNDATIONS LTD,"2,554.28",SEMI INDEPENDENT CARE LEAVERS,EXTERNAL AGENCIES AND BODIES,2103069583,1000063272
04.03.2020,CHILDREN'S SERVICES,FUTURE FOUNDATIONS LTD,"26,317.71",SEMI INDEPENDENT CARE LEAVERS,EXTERNAL AGENCIES AND BODIES,2103069586,1000063272
04.03.2020,CHILDREN'S SERVICES,HEARTWOOD OUTREACH SERVICES LTD,"1,765.81",SEMI INDEPENDENT CARE LEAVERS,EXTERNAL AGENCIES AND BODIES,2103069579,1000075021
04.03.2020,CHILDREN'S SERVICES,HOLMDENE HOUSING LTD,"1,517.45",SEMI INDEPENDENT CARE LEAVERS,EXTERNAL AGENCIES AND BODIES,2103069600,1000032598
04.03.2020,CHILDREN'S SERVICES,HOLMDENE HOUSING LTD,"5,025.00",SEMI INDEPENDENT CARE LEAVERS,EXTERNAL AGENCIES AND BODIES,2103069578,1000032598
04.03.2020,CHILDREN'S SERVICES,IDEAL CARE SOLUTIONS LTD,"1,822.85",SEMI INDEPENDENT CARE LEAVERS,EXTERNAL AGENCIES AND BODIES,2103069745,1000080804
04.03.2020,CHILDREN'S SERVICES,MY LIFE SEMI-INDEPENDENT PROJECT LTD,"2,320.00",SEMI INDEPENDENT CARE LEAVERS,EXTERNAL AGENCIES AND BODIES,2103069395,1000075301
04.03.2020,CHILDREN'S SERVICES,MY LIFE SEMI-INDEPENDENT PROJECT LTD,"2,320.00",SEMI INDEPENDENT CARE LEAVERS,EXTERNAL AGENCIES AND BODIES,2103069397,1000075301
04.03.2020,CHILDREN'S SERVICES,MY LIFE SEMI-INDEPENDENT PROJECT LTD,"2,320.00",SEMI INDEPENDENT CARE LEAVERS,EXTERNAL AGENCIES AND BODIES,2103069402,1000075301
04.03.2020,CHILDREN'S SERVICES,MY LIFE SEMI-INDEPENDENT PROJECT LTD,"2,320.00",SEMI INDEPENDENT CARE LEAVERS,EXTERNAL AGENCIES AND BODIES,2103069408,1000075301
04.03.2020,CHILDREN'S SERVICES,OWNLIFE LTD,"3,562.86",SEMI INDEPENDENT CARE LEAVERS,EXTERNAL AGENCIES AND BODIES,2103069399,1000056219
04.03.2020,CHILDREN'S SERVICES,OWNLIFE LTD,"9,715.00",SEMI INDEPENDENT CARE LEAVERS,EXTERNAL AGENCIES AND BODIES,2103069404,1000056219
04.03.2020,CHILDREN'S SERVICES,OWNLIFE LTD,"12,390.66",SEMI INDEPENDENT CARE LEAVERS,EXTERNAL AGENCIES AND BODIES,2103069400,1000056219
04.03.2020,CHILDREN'S SERVICES,PATHWAY LTD,"2,850.00",SEMI INDEPENDENT CARE LEAVERS,EXTERNAL AGENCIES AND BODIES,2103069599,1000080564
04.03.2020,CHILDREN'S SERVICES,PATHWAY LTD,"9,777.14",SEMI INDEPENDENT CARE LEAVERS,EXTERNAL AGENCIES AND BODIES,2103069581,1000080564
04.03.2020,CHILDREN'S SERVICES,SILVER BIRCH CARE LTD,"3,000.00",SEMI INDEPENDENT CARE LEAVERS,EXTERNAL AGENCIES AND BODIES,2103069602,1000076525
04.03.2020,CHILDREN'S SERVICES,SP HOMES LTD,860.43,SEMI INDEPENDENT CARE LEAVERS,EXTERNAL AGENCIES AND BODIES,2103069594,1000080326
04.03.2020,CHILDREN'S SERVICES,ASSOCIATED CARE SERVICES LTD,"6,514.28",SEMI INDEPENDENT LAC,EXTERNAL AGENCIES AND BODIES,2103069664,1000070299
04.03.2020,CHILDREN'S SERVICES,BRANCH OUT SUPPORT SERVICES LTD,"34,000.00",SEMI INDEPENDENT LAC,EXTERNAL AGENCIES AND BODIES,2103069665,1000083874
04.03.2020,CHILDREN'S SERVICES,COMMUNITY BUILDING MANAGEMENT,"17,935.76",SEMI INDEPENDENT LAC,EXTERNAL AGENCIES AND BODIES,2103069659,1000078932
04.03.2020,CHILDREN'S SERVICES,COMMUNITY BUILDING MANAGEMENT,"22,628.48",SEMI INDEPENDENT LAC,EXTERNAL AGENCIES AND BODIES,2103069673,1000078932
04.03.2020,CHILDREN'S SERVICES,CONTACT PROFESSIONALS,910.00,SEMI INDEPENDENT LAC,OTHER PAYMENTS FOR CLIENTS,2103069388,1000057263
04.03.2020,CHILDREN'S SERVICES,HEARTWOOD OUTREACH SERVICES LTD,"13,091.47",SEMI INDEPENDENT LAC,EXTERNAL AGENCIES AND BODIES,2103069671,1000075021
04.03.2020,CHILDREN'S SERVICES,HEARTWOOD OUTREACH SERVICES LTD,"13,542.90",SEMI INDEPENDENT LAC,EXTERNAL AGENCIES AND BODIES,2103069666,1000075021
04.03.2020,CHILDREN'S SERVICES,HEARTWOOD OUTREACH SERVICES LTD,300.00,SEMI INDEPENDENT LAC,OTHER PAYMENTS FOR CLIENTS,2103069672,1000075021
04.03.2020,CHILDREN'S SERVICES,OWNLIFE LTD,"3,314.29",SEMI INDEPENDENT LAC,EXTERNAL AGENCIES AND BODIES,2103069390,1000056219
04.03.2020,CHILDREN'S SERVICES,PATHWAY LTD,"4,350.00",SEMI INDEPENDENT LAC,EXTERNAL AGENCIES AND BODIES,2103069675,1000080564
04.03.2020,CHILDREN'S SERVICES,PATHWAY LTD,"6,257.14",SEMI INDEPENDENT LAC,EXTERNAL AGENCIES AND BODIES,2103069391,1000080564
04.03.2020,CHILDREN'S SERVICES,PATHWAY LTD,565.71,SEMI INDEPENDENT LAC,OTHER PAYMENTS FOR CLIENTS,2103069392,1000080564
04.03.2020,CHILDREN'S SERVICES,SILVER BIRCH CARE LTD,300.00,SEMI INDEPENDENT LAC,ADDITIONAL PAYMENTS TO AGENCIES/CARERS,2103069661,1000076525
04.03.2020,CHILDREN'S SERVICES,SILVER BIRCH CARE LTD,"1,625.00",SEMI INDEPENDENT LAC,EXTERNAL AGENCIES AND BODIES,2103069662,1000076525
04.03.2020,CHILDREN'S SERVICES,SILVER BIRCH CARE LTD,"2,162.95",SEMI INDEPENDENT LAC,EXTERNAL AGENCIES AND BODIES,2103069667,1000076525
04.03.2020,CHILDREN'S SERVICES,SILVER BIRCH CARE LTD,"3,867.36",SEMI INDEPENDENT LAC,EXTERNAL AGENCIES AND BODIES,2103069660,1000076525
04.03.2020,CHILDREN'S SERVICES,SILVER BIRCH CARE LTD,"18,024.57",SEMI INDEPENDENT LAC,EXTERNAL AGENCIES AND BODIES,2103069663,1000076525
04.03.2020,CHILDREN'S SERVICES,THE MEDUSA PROJECT LTD,"7,664.12",SEMI INDEPENDENT LAC,EXTERNAL AGENCIES AND BODIES,2103069387,1000014392
04.03.2020,CHILDREN'S SERVICES,THE MEDUSA PROJECT LTD,"7,664.12",SEMI INDEPENDENT LAC,EXTERNAL AGENCIES AND BODIES,2103069389,1000014392
04.03.2020,CHILDREN'S SERVICES,TRANSFORMING LIVES COMPANY LTD,"3,681.86",SEMI INDEPENDENT LAC,EXTERNAL AGENCIES AND BODIES,2103069670,1000083352
04.03.2020,CHILDREN'S SERVICES,REDACTED PERSONAL DATA,269.08,SPECIAL GUARDIANSHIP,PAYMENTS TO CARERS,REDACTED,REDACTED
04.03.2020,CHILDREN'S SERVICES,REDACTED PERSONAL DATA,269.08,SPECIAL GUARDIANSHIP,PAYMENTS TO CARERS,REDACTED,REDACTED
04.03.2020,CHILDREN'S SERVICES,REDACTED PERSONAL DATA,341.15,SPECIAL GUARDIANSHIP,PAYMENTS TO CARERS,REDACTED,REDACTED
04.03.2020,CHILDREN'S SERVICES,REDACTED PERSONAL DATA,342.45,SPECIAL GUARDIANSHIP,PAYMENTS TO CARERS,REDACTED,REDACTED
04.03.2020,CHILDREN'S SERVICES,REDACTED PERSONAL DATA,343.05,SPECIAL GUARDIANSHIP,PAYMENTS TO CARERS,REDACTED,REDACTED
04.03.2020,CHILDREN'S SERVICES,REDACTED PERSONAL DATA,356.15,SPECIAL GUARDIANSHIP,PAYMENTS TO CARERS,REDACTED,REDACTED
04.03.2020,CHILDREN'S SERVICES,REDACTED PERSONAL DATA,388.04,SPECIAL GUARDIANSHIP,PAYMENTS TO CARERS,REDACTED,REDACTED
04.03.2020,CHILDREN'S SERVICES,REDACTED PERSONAL DATA,389.34,SPECIAL GUARDIANSHIP,PAYMENTS TO CARERS,REDACTED,REDACTED
04.03.2020,CHILDREN'S SERVICES,REDACTED PERSONAL DATA,395.00,SPECIAL GUARDIANSHIP,PAYMENTS TO CARERS,REDACTED,REDACTED
04.03.2020,CHILDREN'S SERVICES,REDACTED PERSONAL DATA,403.04,SPECIAL GUARDIANSHIP,PAYMENTS TO CARERS,REDACTED,REDACTED
04.03.2020,CHILDREN'S SERVICES,REDACTED PERSONAL DATA,525.00,SPECIAL GUARDIANSHIP,PAYMENTS TO CARERS,REDACTED,REDACTED
04.03.2020,CHILDREN'S SERVICES,REDACTED PERSONAL DATA,525.00,SPECIAL GUARDIANSHIP,PAYMENTS TO CARERS,REDACTED,REDACTED
04.03.2020,CHILDREN'S SERVICES,HORIZON FOSTERING SERVICES LTD,"2,125.41",STAYING PUT,EXTERNAL AGENCIES AND BODIES,2103069595,1000075679
04.03.2020,CHILDREN'S SERVICES,REDACTED PERSONAL DATA,535.72,STAYING PUT,PAYMENTS TO CARERS,REDACTED,REDACTED
04.03.2020,CHILDREN'S SERVICES,REDACTED PERSONAL DATA,"4,575.42",STAYING PUT,PAYMENTS TO CARERS,REDACTED,REDACTED
04.03.2020,CHILDREN'S SERVICES,CREATING LIFESTYLES LTD,"1,800.00",UASC CARE LEAVERS,EXTERNAL AGENCIES AND BODIES,2103069394,1000075830
04.03.2020,CHILDREN'S SERVICES,CREATING LIFESTYLES LTD,"1,800.00",UASC CARE LEAVERS,EXTERNAL AGENCIES AND BODIES,2103069396,1000075830
04.03.2020,CHILDREN'S SERVICES,CREATING LIFESTYLES LTD,"1,800.00",UASC CARE LEAVERS,EXTERNAL AGENCIES AND BODIES,2103069401,1000075830
04.03.2020,CHILDREN'S SERVICES,CREATING LIFESTYLES LTD,"1,800.00",UASC CARE LEAVERS,EXTERNAL AGENCIES AND BODIES,2103069403,1000075830
04.03.2020,CHILDREN'S SERVICES,FUTURE FOUNDATIONS LTD,"-4,750.98",UASC CARE LEAVERS,EXTERNAL AGENCIES AND BODIES,2103069588,1000063272
04.03.2020,CHILDREN'S SERVICES,FUTURE FOUNDATIONS LTD,"1,667.14",UASC CARE LEAVERS,EXTERNAL AGENCIES AND BODIES,2103069591,1000063272
04.03.2020,CHILDREN'S SERVICES,FUTURE FOUNDATIONS LTD,"1,722.71",UASC CARE LEAVERS,EXTERNAL AGENCIES AND BODIES,2103069577,1000063272
04.03.2020,CHILDREN'S SERVICES,FUTURE FOUNDATIONS LTD,"1,722.71",UASC CARE LEAVERS,EXTERNAL AGENCIES AND BODIES,2103069582,1000063272
04.03.2020,CHILDREN'S SERVICES,FUTURE FOUNDATIONS LTD,"2,488.85",UASC CARE LEAVERS,EXTERNAL AGENCIES AND BODIES,2103069584,1000063272
04.03.2020,CHILDREN'S SERVICES,FUTURE FOUNDATIONS LTD,"2,649.42",UASC CARE LEAVERS,EXTERNAL AGENCIES AND BODIES,2103069593,1000063272
04.03.2020,CHILDREN'S SERVICES,HOLMDENE HOUSING LTD,845.71,UASC CARE LEAVERS,EXTERNAL AGENCIES AND BODIES,2103069576,1000032598
04.03.2020,CHILDREN'S SERVICES,HOLMDENE HOUSING LTD,"1,850.00",UASC CARE LEAVERS,EXTERNAL AGENCIES AND BODIES,2103069580,1000032598
04.03.2020,CHILDREN'S SERVICES,HOLMDENE HOUSING LTD,"1,850.00",UASC CARE LEAVERS,EXTERNAL AGENCIES AND BODIES,2103069585,1000032598
04.03.2020,CHILDREN'S SERVICES,HOLMDENE HOUSING LTD,"1,850.00",UASC CARE LEAVERS,EXTERNAL AGENCIES AND BODIES,2103069597,1000032598
04.03.2020,CHILDREN'S SERVICES,SILVER BIRCH CARE LTD,"2,000.00",UASC CARE LEAVERS,EXTERNAL AGENCIES AND BODIES,2103069587,1000076525
04.03.2020,CHILDREN'S SERVICES,THE SALVATION ARMY,"2,574.66",UASC CARE LEAVERS,EXTERNAL AGENCIES AND BODIES,5902406723,1000016253
04.03.2020,CHILDREN'S SERVICES,THE SALVATION ARMY,"2,655.94",UASC CARE LEAVERS,EXTERNAL AGENCIES AND BODIES,5902406720,1000016253
04.03.2020,CHILDREN'S SERVICES,THE SALVATION ARMY,"7,481.90",UASC CARE LEAVERS,EXTERNAL AGENCIES AND BODIES,5902406711,1000016253
04.03.2020,CHILDREN'S SERVICES,HOLMDENE HOUSING LTD,"2,275.00",UASC LAC,EXTERNAL AGENCIES AND BODIES,2103069677,1000032598
04.03.2020,CHILDREN'S SERVICES,REDACTED PERSONAL DATA,"2,450.00",UNIVERSITY SUPPORT,OTHER PAYMENTS FOR CLIENTS,REDACTED,REDACTED
04.03.2020,COMMUNITIES PROJECTS,BROOK,"36,437.50",YOUNG PEOPLES SERVICE,OTHER CONTRACTORS,5902406814,1000076901
04.03.2020,CUSTOMER EXPERIENCE,KENT COUNTY COUNCIL - LASER,"3,213.37",CUSTOMER SUPPORT,ELECTRICITY,5902406877,1000012926
04.03.2020,CUSTOMER EXPERIENCE,MADEIRA FLOWER LTD T/A MARIAS KITCHEN,442.75,HOUSING REPAIRS TEAM,REFRESHMENTS FOR MEETINGS,5902406860,1000058840
04.03.2020,CUSTOMER EXPERIENCE,313Y LTD,370.00,PECKHAM MSSP,MARKETING & PUBLICITY SERVICES,5902406790,1000078584
04.03.2020,CUSTOMER EXPERIENCE,MADEIRA FLOWER LTD T/A MARIAS KITCHEN,450.75,PECKHAM MSSP,REFRESHMENTS FOR MEETINGS,5902406792,1000058840
04.03.2020,CUSTOMER EXPERIENCE HGF,CLYDE & CO,"1,620.80",CORONER'S,PROFESSIONAL FEES,5902406884,1000067838
04.03.2020,CUSTOMER EXPERIENCE HGF,REACH-OUT HOUSING LTD,"1,583.66",HOMELESS PROJECTS,GRANTS,5902406839,1000071129
04.03.2020,CUSTOMER EXPERIENCE HGF,CROWN HOUSING LTD,"8,990.00",NIGHTLY TA (NSC),EXTERNAL AGENCIES AND BODIES,5902406805,1000075070
04.03.2020,CUSTOMER EXPERIENCE HGF,CYBERSTYLE LETTINGS LTD,432.00,NIGHTLY TA (NSC),EXTERNAL AGENCIES AND BODIES,5902406738,1000079319
04.03.2020,CUSTOMER EXPERIENCE HGF,CYBERSTYLE LETTINGS LTD,"1,080.00",NIGHTLY TA (NSC),EXTERNAL AGENCIES AND BODIES,5902406715,1000079319
04.03.2020,CUSTOMER EXPERIENCE HGF,CYBERSTYLE LETTINGS LTD,"1,080.00",NIGHTLY TA (NSC),EXTERNAL AGENCIES AND BODIES,5902406722,1000079319
04.03.2020,CUSTOMER EXPERIENCE HGF,CYBERSTYLE LETTINGS LTD,"1,116.00",NIGHTLY TA (NSC),EXTERNAL AGENCIES AND BODIES,5902406714,1000079319
04.03.2020,CUSTOMER EXPERIENCE HGF,CYBERSTYLE LETTINGS LTD,"1,116.00",NIGHTLY TA (NSC),EXTERNAL AGENCIES AND BODIES,5902406717,1000079319
04.03.2020,CUSTOMER EXPERIENCE HGF,CYBERSTYLE LETTINGS LTD,"1,116.00",NIGHTLY TA (NSC),EXTERNAL AGENCIES AND BODIES,5902406718,1000079319
04.03.2020,CUSTOMER EXPERIENCE HGF,MSR HOUSING,"1,551.50",NIGHTLY TA (NSC),EXTERNAL AGENCIES AND BODIES,5902406881,1000079359
04.03.2020,CUSTOMER EXPERIENCE HGF,OAK HOUSING LTD,"3,270.62",PSL PLACEMENTS,EXTERNAL AGENCIES AND BODIES,5902406739,1000079310
04.03.2020,CUSTOMER EXPERIENCE HGF,OAK HOUSING LTD,"3,496.18",PSL PLACEMENTS,EXTERNAL AGENCIES AND BODIES,5902406743,1000079310
04.03.2020,CUSTOMER EXPERIENCE HGF,SHELTER TRAINING LTD,818.00,RAPID REHOUSING,TRAINING,5902406758,1000033177
04.03.2020,ENVIRONMENT AND LEISURE,CJS PLANTS,548.62,CAPITAL PS (LEISURE),CONST'N MAIN CONTRACT - NON CERTIFICATED,5902406838,1000025370
04.03.2020,ENVIRONMENT AND LEISURE,CJS PLANTS,548.62,CAPITAL PS (LEISURE),CONST'N MAIN CONTRACT - NON CERTIFICATED,5902406843,1000025370
04.03.2020,ENVIRONMENT AND LEISURE,CJS PLANTS,866.25,CAPITAL PS (LEISURE),CONST'N MAIN CONTRACT - NON CERTIFICATED,5902406863,1000025370
04.03.2020,ENVIRONMENT AND LEISURE,SOUTHAMPTON WAY T&RA,334.00,CAPITAL PS (LEISURE),CAPITAL GRANTS,5902406808,1000057779
04.03.2020,ENVIRONMENT DIRECTORATE,MALLATITE LTD,368.00,ENGINEERING CRAFTS,MATERIALS,5902406837,1000080157
04.03.2020,ENVIRONMENT DIRECTORATE,MALLATITE LTD,"5,282.00",ENGINEERING CRAFTS,MATERIALS,5902406837,1000080157
04.03.2020,ENVIRONMENT DIRECTORATE,GREENHAM TRADING LTD,266.40,ESTATE CLEANING-GENERAL,MATERIALS,5902406734,1000006610
04.03.2020,ENVIRONMENT DIRECTORATE,METROPOLITAN POLICE AUTHORITY,"93,288.00",NIGHT TIME ECONOMY,PROFESSIONAL FEES,5902406874,1000035048
04.03.2020,ENVIRONMENT DIRECTORATE,METROPOLITAN POLICE AUTHORITY,"98,375.00",NIGHT TIME ECONOMY,PROFESSIONAL FEES,5902406868,1000035048
04.03.2020,ENVIRONMENT DIRECTORATE,CYCLE CONFIDENT LTD,"89,000.00",NON LCN CYCLE TRAINING,PROFESSIONAL FEES,5902406735,1000070228
04.03.2020,ENVIRONMENT DIRECTORATE,TYCO INTEGRATED FIRE & SECURITY,"2,362.56",PARKING & CAR PARKS CCTV,PROFESSIONAL FEES,5902406787,1000077948
04.03.2020,ENVIRONMENT DIRECTORATE,TYCO INTEGRATED FIRE & SECURITY,"6,279.71",PARKING & CAR PARKS CCTV,PROFESSIONAL FEES,5902406783,1000077948
04.03.2020,ENVIRONMENT DIRECTORATE,TYCO INTEGRATED FIRE & SECURITY,"7,246.58",PARKING & CAR PARKS CCTV,PROFESSIONAL FEES,5902406781,1000077948
04.03.2020,ENVIRONMENT DIRECTORATE,BAKER ENGINEERING,444.05,STREET CLEANING-GENERAL,EQUIPMENT PURCHASE & REPAIR,5902406724,1000038205
04.03.2020,ENVIRONMENT DIRECTORATE,TYCO INTEGRATED FIRE & SECURITY,"13,429.83",TOWN CENTRE CCTV,EQUIPMENT PURCHASE & REPAIR,5902406765,1000077948
04.03.2020,ENVIRONMENT DIRECTORATE,TYCO INTEGRATED FIRE & SECURITY,623.88,TOWN CENTRE CCTV,OTHER CONTRACTORS,5902406769,1000077948
04.03.2020,ENVIRONMENT DIRECTORATE,TYCO INTEGRATED FIRE & SECURITY,623.88,TOWN CENTRE CCTV,OTHER CONTRACTORS,5902406771,1000077948
04.03.2020,ENVIRONMENT DIRECTORATE,TYCO INTEGRATED FIRE & SECURITY,623.88,TOWN CENTRE CCTV,OTHER CONTRACTORS,5902406772,1000077948
04.03.2020,ENVIRONMENT DIRECTORATE,TYCO INTEGRATED FIRE & SECURITY,722.32,TOWN CENTRE CCTV,OTHER CONTRACTORS,5902406768,1000077948
04.03.2020,EXCHEQUER SERVICES,ARCUS GLOBAL LTD,"1,350.00",ADMINISTRATIVE SUPPORT,SOFTWARE,5902406763,1000080110
04.03.2020,HOUSING GENERAL FUND,FRANKHAM CONSULTANCY GROUP LTD,"1,195.20",CAPITAL PS (HOUSING GF),CAPITAL GRANTS,5902406749,1000043952
04.03.2020,HOUSING GENERAL FUND,SOUTH EAST BUILDING CONTRACTORS LTD,"14,535.00",CAPITAL PS (HOUSING GF),CAPITAL GRANTS,5902406776,1000049893
04.03.2020,HOUSING GENERAL FUND,INTERSERVE (FACILITIES MANAGEMENT),"26,386.50",CAPITAL PS (REGEN),CONSTRUCTION MAIN CONTRACT,5902406736,1000070792
04.03.2020,HOUSING GENERAL FUND,WYATT CARRUTHERS JEBB LTD,750.00,CAPITAL PS (REGEN),CONSTRUCTION MAIN CONTRACT,5902406797,1000060483
04.03.2020,HOUSING GENERAL FUND,WYATT CARRUTHERS JEBB LTD,750.00,CAPITAL PS (REGEN),CONSTRUCTION MAIN CONTRACT,5902406798,1000060483
04.03.2020,HOUSING HRA,ENGIE REGENERATION (APOLLO) LTD,"134,108.01",CAPITAL PS (HRA),CONSTRUCTION MAIN CONTRACT -CERTIFICATED,2103069749,4000449
04.03.2020,HOUSING HRA,OVE ARUP & PARTNERS LTD,"3,794.25",CAPITAL PS (HRA),CONSTRUCTION FEES  - EXTERNAL,5902406864,1000066606
04.03.2020,HOUSING HRA,PARIS SMITH AND RANDALL SOLICITORS,"113,591.91",CAPITAL PS (HRA),LAND & BUILDINGS ACQUISITION,2103069086,1000008059
04.03.2020,HOUSING HRA,POTTER RAPER LTD,905.76,CAPITAL PS (HRA),CONSTRUCTION FEES  - EXTERNAL,5902406732,1009369
04.03.2020,HOUSING HRA,POTTER RAPER LTD,"4,774.00",CAPITAL PS (HRA),CONSTRUCTION FEES  - EXTERNAL,5902406713,1009369
04.03.2020,HOUSING HRA,POTTER RAPER LTD,"5,658.20",CAPITAL PS (HRA),CONSTRUCTION FEES  - EXTERNAL,5902406729,1009369
04.03.2020,LAW & DEMOCRACY,BESSEMER GRANGE  T&RA,510.00,GENERAL ELECTION,HIRE OF ROOMS/HALLS,5902406779,11084898
04.03.2020,LAW & DEMOCRACY,CRAWFORD PRIMARY SCHOOL,400.00,GENERAL ELECTION,HIRE OF ROOMS/HALLS,5902406883,5001000024
04.03.2020,LAW & DEMOCRACY,EVERYONE ACTIVE,500.00,GENERAL ELECTION,HIRE OF ROOMS/HALLS,5902406825,1000064343
04.03.2020,LAW & DEMOCRACY,LORDSHIP LANE & MELFORD COURT T&RA,400.00,GENERAL ELECTION,HIRE OF ROOMS/HALLS,5902406796,1000047854
04.03.2020,LAW & DEMOCRACY,TAPLIN & TURVIL LTD,650.00,GENERAL ELECTION,HIRE OF ROOMS/HALLS,5902406818,1000078183
04.03.2020,LAW & DEMOCRACY,ROI OPERATIONS MANAGEMENT LTD,"8,330.00",LEGAL SVCES MANAGEMENT,PROFESSIONAL FEES,5902406829,1000054084
04.03.2020,LEISURE DIRECTORATE,NPOWER LTD,"1,548.56",BURGESS AREA TEAM,ELECTRICITY,5902406840,1000078994
04.03.2020,LEISURE DIRECTORATE,NPOWER LTD,"3,456.63",BURGESS AREA TEAM,ELECTRICITY,5902406830,1000078994
04.03.2020,LEISURE DIRECTORATE,KENT COUNTY COUNCIL - LASER,477.55,CAMBERWELL LIBRARY,GAS,5902406775,1000012926
04.03.2020,LEISURE DIRECTORATE,ARGOS BUSINESS SOLUTIONS LTD,431.19,CREMATORIUM,OTHER R&M,5902406891,1000001734
04.03.2020,LEISURE DIRECTORATE,FRONTIER-PITTS LTD,"2,189.00",DULWICH AREA TEAM,OTHER R&M,5902406764,1548679
04.03.2020,LEISURE DIRECTORATE,GLS EDUCATIONAL SUPPLIES LTD,284.99,KINGSWOOD LIBRARY,EQUIPMENT PURCHASE & REPAIR,5902406855,1318282
04.03.2020,LEISURE DIRECTORATE,RP2 LTD,307.42,LEISURE INVESTMENT,MARKETING & PUBLICITY SERVICES,5902406719,1000063096
04.03.2020,LEISURE DIRECTORATE,RP2 LTD,898.25,LEISURE INVESTMENT,MARKETING & PUBLICITY SERVICES,5902406716,1000063096
04.03.2020,LEISURE DIRECTORATE,KENT COUNTY COUNCIL - LASER,"3,159.43",PECKHAM LIBRARY,ELECTRICITY,5902406777,1000012926
04.03.2020,LEISURE DIRECTORATE,ASKEWS & HOLTS LIBRARY SERVICES LTD,"5,768.80",STOCK SERVICES,BOOKS & PUBLICATIONS,5902406799,1494168
04.03.2020,MODERNISATION HGF,ARCH CONSULTING,"1,387.50",APPLICATIONS,SOFTWARE,5902406745,1000056829
04.03.2020,MODERNISATION HGF,BRITISH RED CROSS SOCIETY,"1,365.00",CORPORATE TRAINING BUDGETS,TRAINING,5902406824,1000038088
04.03.2020,MODERNISATION HGF,INTERSERVE (FACILITIES MANAGEMENT),"49,144.82",FM SERVICES BY INTERSERVE,BUILDING R&M,5902406712,1000070792
04.03.2020,MODERNISATION HGF,KIER FACILITIES SERVICES LTD,"9,345.89",PLANNED FM SERVICES BY KIER,INTEGRATED FACILITIES MANAGEMENT CONTRACT,5902406727,1000040603
04.03.2020,MODERNISATION HGF,ASBESTOS SOLUTIONS LIMITED,625.00,PLANNED MAINTENANCE,BUILDING R&M,2103069087,3000002114
04.03.2020,NEW BUILD,BEACON PARTNERSHIP LLP,"6,545.00",DEVELOPMENT DELIVERY,PROFESSIONAL FEES,5902406831,1000082300
04.03.2020,REGENERATION,WESTCO TRADING LTD,"2,580.00",MASTER PLAN-H/WAY & TRANS INTERCHANGE,MARKETING & PUBLICITY SERVICES,5902406890,1000069599
04.03.2020,RESIDENT SERVICES,BRITISH GAS TRADING LTD,472.70,OPERATIONS/OFFICES ACCOMMODATION,ELECTRICITY,5902403398,1000055977
04.03.2020,RESIDENT SERVICES,CYBERSTYLE LETTINGS LTD,648.00,TA PLACEMENTS,EXTERNAL AGENCIES AND BODIES,5902406741,1000079319
04.03.2020,RESIDENT SERVICES,SITTARA LTD,"1,150.00",TA PLACEMENTS,EXTERNAL AGENCIES AND BODIES,5902406859,1000080857
04.03.2020,RESIDENT SERVICES,VENTURE HOUSING (LONDON) LTD,"2,077.00",TA PLACEMENTS,EXTERNAL AGENCIES AND BODIES,5902406878,1000056686
04.03.2020,RESIDENT SERVICES HGF,THAMES WATER UTILITIES LTD,304.84,ILDERTON ROAD PERM,WATER,5902406740,11003005
04.03.2020,SOUTHWARK BUILDING SERVICES,A T & T (GB LTD ),253.80,STORES/LOGISTICS,CREDITORS -GR/IR CLEARING ACCOUNT,5902406845,1000078342
04.03.2020,SOUTHWARK BUILDING SERVICES,A T & T (GB LTD ),845.00,STORES/LOGISTICS,CREDITORS -GR/IR CLEARING ACCOUNT,5902406845,1000078342
04.03.2020,SOUTHWARK BUILDING SERVICES,A T & T (GB LTD ),"1,335.00",STORES/LOGISTICS,CREDITORS -GR/IR CLEARING ACCOUNT,5902406841,1000078342
04.03.2020,SOUTHWARK BUILDING SERVICES,EDWARDES BROS (DULWICH) LTD,614.10,STORES/LOGISTICS,CREDITORS -GR/IR CLEARING ACCOUNT,5902406835,1004945
04.03.2020,SOUTHWARK BUILDING SERVICES,EDWARDES BROS (DULWICH) LTD,885.00,STORES/LOGISTICS,CREDITORS -GR/IR CLEARING ACCOUNT,5902406834,1004945
04.03.2020,SOUTHWARK BUILDING SERVICES,EDWARDES BROS (DULWICH) LTD,"1,180.00",STORES/LOGISTICS,CREDITORS -GR/IR CLEARING ACCOUNT,5902406832,1004945
04.03.2020,SOUTHWARK BUILDING SERVICES,EDWARDES BROS (DULWICH) LTD,"1,767.05",STORES/LOGISTICS,CREDITORS -GR/IR CLEARING ACCOUNT,5902406822,1004945
04.03.2020,SOUTHWARK BUILDING SERVICES,EDWARDES BROS (DULWICH) LTD,"1,770.00",STORES/LOGISTICS,CREDITORS -GR/IR CLEARING ACCOUNT,5902406835,1004945
04.03.2020,SOUTHWARK BUILDING SERVICES,INDUSTRIAL CHEMICAL EXPERTS LIMITED,679.88,STORES/LOGISTICS,CREDITORS -GR/IR CLEARING ACCOUNT,5902406850,1000083167
04.03.2020,SOUTHWARK BUILDING SERVICES,ONSITE SUPPORT LTD,300.00,STORES/LOGISTICS,CREDITORS -GR/IR CLEARING ACCOUNT,5902406854,1000043198
04.03.2020,SOUTHWARK BUILDING SERVICES,ONSITE SUPPORT LTD,420.00,STORES/LOGISTICS,CREDITORS -GR/IR CLEARING ACCOUNT,5902406854,1000043198
05.03.2020,ADULT SOCIAL CARE,REDACTED PERSONAL DATA,600.00,APPOINTEESHIPS,OTHER PAYMENTS FOR CLIENTS,REDACTED,REDACTED
05.03.2020,ADULT SOCIAL CARE,AMELIA'S HOUSE LIMITED,"2,400.00",DISABILITIES LAC,EXTERNAL AGENCIES AND BODIES,2103070351,1000083007
05.03.2020,ADULT SOCIAL CARE,AMELIA'S HOUSE LIMITED,"13,050.00",DISABILITIES LAC,EXTERNAL AGENCIES AND BODIES,2103070350,1000083007
05.03.2020,ADULT SOCIAL CARE,ACCESS MOBILITY TRANSPORT LTD,"2,456.00",LD LTS 18-64,CLIENT TRANSPORT,2103070287,1000074637
05.03.2020,ADULT SOCIAL CARE,CONTACT PROFESSIONALS,266.00,LD LTS 18-64,SUPPORTED LIVING,2103070460,1000057263
05.03.2020,ADULT SOCIAL CARE,CONTACT PROFESSIONALS,266.00,LD LTS 18-64,SUPPORTED LIVING,2103070489,1000057263
05.03.2020,ADULT SOCIAL CARE,CONTACT PROFESSIONALS,399.00,LD LTS 18-64,SUPPORTED LIVING,2103070462,1000057263
05.03.2020,ADULT SOCIAL CARE,CONTACT PROFESSIONALS,399.00,LD LTS 18-64,SUPPORTED LIVING,2103070466,1000057263
05.03.2020,ADULT SOCIAL CARE,CONTACT PROFESSIONALS,399.00,LD LTS 18-64,SUPPORTED LIVING,2103070471,1000057263
05.03.2020,ADULT SOCIAL CARE,CONTACT PROFESSIONALS,399.00,LD LTS 18-64,SUPPORTED LIVING,2103070480,1000057263
05.03.2020,ADULT SOCIAL CARE,CONTACT PROFESSIONALS,399.00,LD LTS 18-64,SUPPORTED LIVING,2103070485,1000057263
05.03.2020,ADULT SOCIAL CARE,CONTACT PROFESSIONALS,798.00,LD LTS 18-64,SUPPORTED LIVING,2103070459,1000057263
05.03.2020,ADULT SOCIAL CARE,CONTACT PROFESSIONALS,798.00,LD LTS 18-64,SUPPORTED LIVING,2103070475,1000057263
05.03.2020,ADULT SOCIAL CARE,CONTACT PROFESSIONALS,798.00,LD LTS 18-64,SUPPORTED LIVING,2103070478,1000057263
05.03.2020,ADULT SOCIAL CARE,CONTACT PROFESSIONALS,798.00,LD LTS 18-64,SUPPORTED LIVING,2103070482,1000057263
05.03.2020,ADULT SOCIAL CARE,CONTACT PROFESSIONALS,798.00,LD LTS 18-64,SUPPORTED LIVING,2103070487,1000057263
05.03.2020,ADULT SOCIAL CARE,CONTACT PROFESSIONALS,931.00,LD LTS 18-64,SUPPORTED LIVING,2103070465,1000057263
05.03.2020,ADULT SOCIAL CARE,CONTACT PROFESSIONALS,931.00,LD LTS 18-64,SUPPORTED LIVING,2103070473,1000057263
05.03.2020,ADULT SOCIAL CARE,CONTACT PROFESSIONALS,931.00,LD LTS 18-64,SUPPORTED LIVING,2103070483,1000057263
05.03.2020,ADULT SOCIAL CARE,CONTACT PROFESSIONALS,931.00,LD LTS 18-64,SUPPORTED LIVING,2103070486,1000057263
05.03.2020,ADULT SOCIAL CARE,CONTACT PROFESSIONALS,"1,064.00",LD LTS 18-64,SUPPORTED LIVING,2103070488,1000057263
05.03.2020,ADULT SOCIAL CARE,CONTACT PROFESSIONALS,"1,500.00",LD LTS 18-64,SUPPORTED LIVING,2103070484,1000057263
05.03.2020,ADULT SOCIAL CARE,CONTACT PROFESSIONALS,"2,100.00",LD LTS 18-64,SUPPORTED LIVING,2103070461,1000057263
05.03.2020,ADULT SOCIAL CARE,CONTACT PROFESSIONALS,"2,100.00",LD LTS 18-64,SUPPORTED LIVING,2103070464,1000057263
05.03.2020,ADULT SOCIAL CARE,ELEANOR NURSING AND SOCIAL CARE LTD,250.85,LD LTS 18-64,HOMECARE - SPOT,2103069826,1000081695
05.03.2020,ADULT SOCIAL CARE,LONDON CARE LTD,943.50,LD LTS 18-64,HOMECARE - C&V,2103070181,1000003398
05.03.2020,ADULT SOCIAL CARE,LONDON CARE LTD,"1,066.75",LD LTS 18-64,HOMECARE - C&V,2103070028,1000003398
05.03.2020,ADULT SOCIAL CARE,PEOPLEPLUS ILS,"1,587.79",LD LTS 18-64,PAYMENTS TO CLIENTS (DIRECT PAYMENTS),2103070520,1000061886
05.03.2020,ADULT SOCIAL CARE,LONDON CARE LTD,"6,540.75",LD LTS 65+,HOMECARE - C&V,2103070044,1000003398
05.03.2020,ADULT SOCIAL CARE,LONDON CARE LTD,263.50,MEM LTS 18-64,HOMECARE - C&V,2103070257,1000003398
05.03.2020,ADULT SOCIAL CARE,LONDON CARE LTD,310.25,MEM LTS 18-64,HOMECARE - C&V,2103069993,1000003398
05.03.2020,ADULT SOCIAL CARE,LONDON CARE LTD,748.00,MEM LTS 18-64,HOMECARE - C&V,2103070196,1000003398
05.03.2020,ADULT SOCIAL CARE,THAMES HOMECARE SERVICE LTD,438.55,MEM LTS 18-64,HOMECARE - C&V,2103070398,1000079295
05.03.2020,ADULT SOCIAL CARE,ELEANOR NURSING AND SOCIAL CARE LTD,329.76,MEM LTS 65+,HOMECARE - SPOT,2103069821,1000081695
05.03.2020,ADULT SOCIAL CARE,LONDON CARE LTD,331.50,MEM LTS 65+,HOMECARE - C&V,2103070172,1000003398
05.03.2020,ADULT SOCIAL CARE,LONDON CARE LTD,344.25,MEM LTS 65+,HOMECARE - C&V,2103070071,1000003398
05.03.2020,ADULT SOCIAL CARE,LONDON CARE LTD,629.00,MEM LTS 65+,HOMECARE - C&V,2103070120,1000003398
05.03.2020,ADULT SOCIAL CARE,LONDON CARE LTD,777.75,MEM LTS 65+,HOMECARE - C&V,2103070253,1000003398
05.03.2020,ADULT SOCIAL CARE,LONDON CARE LTD,942.65,MEM LTS 65+,HOMECARE - C&V,2103070092,1000003398
05.03.2020,ADULT SOCIAL CARE,LONDON CARE LTD,986.00,MEM LTS 65+,HOMECARE - C&V,2103070047,1000003398
05.03.2020,ADULT SOCIAL CARE,LONDON CARE LTD,986.00,MEM LTS 65+,HOMECARE - C&V,2103070184,1000003398
05.03.2020,ADULT SOCIAL CARE,LONDON CARE LTD,"1,058.25",MEM LTS 65+,HOMECARE - C&V,2103070246,1000003398
05.03.2020,ADULT SOCIAL CARE,LONDON CARE LTD,"2,320.50",MEM LTS 65+,HOMECARE - C&V,2103069979,1000003398
05.03.2020,ADULT SOCIAL CARE,LONDON CARE LTD,"2,775.25",MEM LTS 65+,HOMECARE - C&V,2103069970,1000003398
05.03.2020,ADULT SOCIAL CARE,WESTMINSTER HOMECARE LTD,"1,030.56",MEM LTS 65+,HOMECARE - SPOT,2103069845,1000075287
05.03.2020,ADULT SOCIAL CARE,WESTMINSTER HOMECARE LTD,"1,249.44",MEM LTS 65+,HOMECARE - SPOT,2103069850,1000075287
05.03.2020,ADULT SOCIAL CARE,LONDON CARE LTD,272.00,MH LTS 18-64,HOMECARE - C&V,2103069948,1000003398
05.03.2020,ADULT SOCIAL CARE,LONDON CARE LTD,272.00,MH LTS 18-64,HOMECARE - C&V,2103070093,1000003398
05.03.2020,ADULT SOCIAL CARE,LONDON CARE LTD,276.25,MH LTS 18-64,HOMECARE - C&V,2103070144,1000003398
05.03.2020,ADULT SOCIAL CARE,LONDON CARE LTD,361.25,MH LTS 18-64,HOMECARE - C&V,2103069960,1000003398
05.03.2020,ADULT SOCIAL CARE,LONDON CARE LTD,552.50,MH LTS 18-64,HOMECARE - C&V,2103070005,1000003398
05.03.2020,ADULT SOCIAL CARE,LONDON CARE LTD,556.75,MH LTS 18-64,HOMECARE - C&V,2103070188,1000003398
05.03.2020,ADULT SOCIAL CARE,LONDON CARE LTD,819.76,MH LTS 18-64,HOMECARE - C&V,2103070187,1000003398
05.03.2020,ADULT SOCIAL CARE,LONDON CARE LTD,845.75,MH LTS 18-64,HOMECARE - C&V,2103070155,1000003398
05.03.2020,ADULT SOCIAL CARE,LONDON CARE LTD,930.75,MH LTS 18-64,HOMECARE - C&V,2103070191,1000003398
05.03.2020,ADULT SOCIAL CARE,LONDON CARE LTD,"1,615.00",MH LTS 18-64,HOMECARE - C&V,2103070061,1000003398
05.03.2020,ADULT SOCIAL CARE,REDACTED PERSONAL DATA,"4,362.43",MH LTS 18-64,HOMECARE - SPOT,REDACTED,REDACTED
05.03.2020,ADULT SOCIAL CARE,THAMES HOMECARE SERVICE LTD,317.73,MH LTS 18-64,HOMECARE - SPOT,2103070442,1000079295
05.03.2020,ADULT SOCIAL CARE,LONDON CARE LTD,267.75,MH LTS 65+,HOMECARE - C&V,2103069897,1000003398
05.03.2020,ADULT SOCIAL CARE,LONDON CARE LTD,272.00,MH LTS 65+,HOMECARE - C&V,2103070076,1000003398
05.03.2020,ADULT SOCIAL CARE,LONDON CARE LTD,340.00,MH LTS 65+,HOMECARE - C&V,2103070091,1000003398
05.03.2020,ADULT SOCIAL CARE,LONDON CARE LTD,501.50,MH LTS 65+,HOMECARE - C&V,2103069939,1000003398
05.03.2020,ADULT SOCIAL CARE,LONDON CARE LTD,522.75,MH LTS 65+,HOMECARE - C&V,2103070205,1000003398
05.03.2020,ADULT SOCIAL CARE,LONDON CARE LTD,"2,494.14",MH LTS 65+,HOMECARE - C&V,2103070108,1000003398
05.03.2020,ADULT SOCIAL CARE,WESTMINSTER HOMECARE LTD,"1,003.20",MH LTS 65+,HOMECARE - SPOT,2103069853,1000075287
05.03.2020,ADULT SOCIAL CARE,OFFICE DEPOT UK LTD,286.77,MH PREMISES COSTS,STATIONERY,5902406931,1109426
05.03.2020,ADULT SOCIAL CARE,PEOPLEPLUS ILS,"2,273.67",PHB- SOUTHWARK CCG,RECOVERABLE COSTS INCL. HEALTH,2103070522,1000061886
05.03.2020,ADULT SOCIAL CARE,CONTACT PROFESSIONALS,"7,607.60",PHY LTS 18-64,OTHER PAYMENTS FOR CLIENTS,5902406894,1000057263
05.03.2020,ADULT SOCIAL CARE,ELEANOR NURSING AND SOCIAL CARE LTD,796.08,PHY LTS 18-64,HOMECARE - C&V,2103069824,1000081695
05.03.2020,ADULT SOCIAL CARE,ELEANOR NURSING AND SOCIAL CARE LTD,562.25,PHY LTS 18-64,HOMECARE - SPOT,2103069839,1000081695
05.03.2020,ADULT SOCIAL CARE,ELEANOR NURSING AND SOCIAL CARE LTD,709.44,PHY LTS 18-64,HOMECARE - SPOT,2103069825,1000081695
05.03.2020,ADULT SOCIAL CARE,ELEANOR NURSING AND SOCIAL CARE LTD,847.84,PHY LTS 18-64,HOMECARE - SPOT,2103069838,1000081695
05.03.2020,ADULT SOCIAL CARE,ELEANOR NURSING AND SOCIAL CARE LTD,951.64,PHY LTS 18-64,HOMECARE - SPOT,2103069835,1000081695
05.03.2020,ADULT SOCIAL CARE,ELEANOR NURSING AND SOCIAL CARE LTD,"1,038.00",PHY LTS 18-64,HOMECARE - SPOT,2103069820,1000081695
05.03.2020,ADULT SOCIAL CARE,ELEANOR NURSING AND SOCIAL CARE LTD,"3,114.16",PHY LTS 18-64,HOMECARE - SPOT,2103069830,1000081695
05.03.2020,ADULT SOCIAL CARE,ELEANOR NURSING AND SOCIAL CARE LTD,"3,252.84",PHY LTS 18-64,HOMECARE - SPOT,2103069819,1000081695
05.03.2020,ADULT SOCIAL CARE,LONDON CARE LTD,259.25,PHY LTS 18-64,HOMECARE - C&V,2103070118,1000003398
05.03.2020,ADULT SOCIAL CARE,LONDON CARE LTD,272.00,PHY LTS 18-64,HOMECARE - C&V,2103069988,1000003398
05.03.2020,ADULT SOCIAL CARE,LONDON CARE LTD,280.50,PHY LTS 18-64,HOMECARE - C&V,2103069885,1000003398
05.03.2020,ADULT SOCIAL CARE,LONDON CARE LTD,287.30,PHY LTS 18-64,HOMECARE - C&V,2103070031,1000003398
05.03.2020,ADULT SOCIAL CARE,LONDON CARE LTD,340.00,PHY LTS 18-64,HOMECARE - C&V,2103070069,1000003398
05.03.2020,ADULT SOCIAL CARE,LONDON CARE LTD,344.25,PHY LTS 18-64,HOMECARE - C&V,2103069900,1000003398
05.03.2020,ADULT SOCIAL CARE,LONDON CARE LTD,357.00,PHY LTS 18-64,HOMECARE - C&V,2103069910,1000003398
05.03.2020,ADULT SOCIAL CARE,LONDON CARE LTD,357.00,PHY LTS 18-64,HOMECARE - C&V,2103070004,1000003398
05.03.2020,ADULT SOCIAL CARE,LONDON CARE LTD,357.00,PHY LTS 18-64,HOMECARE - C&V,2103070084,1000003398
05.03.2020,ADULT SOCIAL CARE,LONDON CARE LTD,365.50,PHY LTS 18-64,HOMECARE - C&V,2103069932,1000003398
05.03.2020,ADULT SOCIAL CARE,LONDON CARE LTD,369.75,PHY LTS 18-64,HOMECARE - C&V,2103069945,1000003398
05.03.2020,ADULT SOCIAL CARE,LONDON CARE LTD,374.00,PHY LTS 18-64,HOMECARE - C&V,2103070258,1000003398
05.03.2020,ADULT SOCIAL CARE,LONDON CARE LTD,378.25,PHY LTS 18-64,HOMECARE - C&V,2103069908,1000003398
05.03.2020,ADULT SOCIAL CARE,LONDON CARE LTD,386.75,PHY LTS 18-64,HOMECARE - C&V,2103069940,1000003398
05.03.2020,ADULT SOCIAL CARE,LONDON CARE LTD,410.55,PHY LTS 18-64,HOMECARE - C&V,2103070201,1000003398
05.03.2020,ADULT SOCIAL CARE,LONDON CARE LTD,437.75,PHY LTS 18-64,HOMECARE - C&V,2103070098,1000003398
05.03.2020,ADULT SOCIAL CARE,LONDON CARE LTD,467.50,PHY LTS 18-64,HOMECARE - C&V,2103069883,1000003398
05.03.2020,ADULT SOCIAL CARE,LONDON CARE LTD,467.50,PHY LTS 18-64,HOMECARE - C&V,2103070223,1000003398
05.03.2020,ADULT SOCIAL CARE,LONDON CARE LTD,484.50,PHY LTS 18-64,HOMECARE - C&V,2103070135,1000003398
05.03.2020,ADULT SOCIAL CARE,LONDON CARE LTD,484.50,PHY LTS 18-64,HOMECARE - C&V,2103070248,1000003398
05.03.2020,ADULT SOCIAL CARE,LONDON CARE LTD,510.00,PHY LTS 18-64,HOMECARE - C&V,2103070214,1000003398
05.03.2020,ADULT SOCIAL CARE,LONDON CARE LTD,527.00,PHY LTS 18-64,HOMECARE - C&V,2103070150,1000003398
05.03.2020,ADULT SOCIAL CARE,LONDON CARE LTD,544.00,PHY LTS 18-64,HOMECARE - C&V,2103070040,1000003398
05.03.2020,ADULT SOCIAL CARE,LONDON CARE LTD,544.00,PHY LTS 18-64,HOMECARE - C&V,2103070107,1000003398
05.03.2020,ADULT SOCIAL CARE,LONDON CARE LTD,552.50,PHY LTS 18-64,HOMECARE - C&V,2103069958,1000003398
05.03.2020,ADULT SOCIAL CARE,LONDON CARE LTD,561.00,PHY LTS 18-64,HOMECARE - C&V,2103070134,1000003398
05.03.2020,ADULT SOCIAL CARE,LONDON CARE LTD,599.25,PHY LTS 18-64,HOMECARE - C&V,2103070065,1000003398
05.03.2020,ADULT SOCIAL CARE,LONDON CARE LTD,624.75,PHY LTS 18-64,HOMECARE - C&V,2103069952,1000003398
05.03.2020,ADULT SOCIAL CARE,LONDON CARE LTD,624.75,PHY LTS 18-64,HOMECARE - C&V,2103069973,1000003398
05.03.2020,ADULT SOCIAL CARE,LONDON CARE LTD,624.75,PHY LTS 18-64,HOMECARE - C&V,2103070000,1000003398
05.03.2020,ADULT SOCIAL CARE,LONDON CARE LTD,624.75,PHY LTS 18-64,HOMECARE - C&V,2103070050,1000003398
05.03.2020,ADULT SOCIAL CARE,LONDON CARE LTD,629.00,PHY LTS 18-64,HOMECARE - C&V,2103070237,1000003398
05.03.2020,ADULT SOCIAL CARE,LONDON CARE LTD,680.00,PHY LTS 18-64,HOMECARE - C&V,2103070235,1000003398
05.03.2020,ADULT SOCIAL CARE,LONDON CARE LTD,701.25,PHY LTS 18-64,HOMECARE - C&V,2103069953,1000003398
05.03.2020,ADULT SOCIAL CARE,LONDON CARE LTD,701.25,PHY LTS 18-64,HOMECARE - C&V,2103070173,1000003398
05.03.2020,ADULT SOCIAL CARE,LONDON CARE LTD,705.22,PHY LTS 18-64,HOMECARE - C&V,2103070194,1000003398
05.03.2020,ADULT SOCIAL CARE,LONDON CARE LTD,714.00,PHY LTS 18-64,HOMECARE - C&V,2103069922,1000003398
05.03.2020,ADULT SOCIAL CARE,LONDON CARE LTD,722.50,PHY LTS 18-64,HOMECARE - C&V,2103069990,1000003398
05.03.2020,ADULT SOCIAL CARE,LONDON CARE LTD,782.00,PHY LTS 18-64,HOMECARE - C&V,2103070190,1000003398
05.03.2020,ADULT SOCIAL CARE,LONDON CARE LTD,806.37,PHY LTS 18-64,HOMECARE - C&V,2103070049,1000003398
05.03.2020,ADULT SOCIAL CARE,LONDON CARE LTD,820.25,PHY LTS 18-64,HOMECARE - C&V,2103070096,1000003398
05.03.2020,ADULT SOCIAL CARE,LONDON CARE LTD,824.50,PHY LTS 18-64,HOMECARE - C&V,2103070009,1000003398
05.03.2020,ADULT SOCIAL CARE,LONDON CARE LTD,901.00,PHY LTS 18-64,HOMECARE - C&V,2103070099,1000003398
05.03.2020,ADULT SOCIAL CARE,LONDON CARE LTD,956.25,PHY LTS 18-64,HOMECARE - C&V,2103070046,1000003398
05.03.2020,ADULT SOCIAL CARE,LONDON CARE LTD,969.00,PHY LTS 18-64,HOMECARE - C&V,2103069895,1000003398
05.03.2020,ADULT SOCIAL CARE,LONDON CARE LTD,970.70,PHY LTS 18-64,HOMECARE - C&V,2103069927,1000003398
05.03.2020,ADULT SOCIAL CARE,LONDON CARE LTD,"1,071.00",PHY LTS 18-64,HOMECARE - C&V,2103069881,1000003398
05.03.2020,ADULT SOCIAL CARE,LONDON CARE LTD,"1,079.50",PHY LTS 18-64,HOMECARE - C&V,2103069938,1000003398
05.03.2020,ADULT SOCIAL CARE,LONDON CARE LTD,"1,096.50",PHY LTS 18-64,HOMECARE - C&V,2103070189,1000003398
05.03.2020,ADULT SOCIAL CARE,LONDON CARE LTD,"1,113.50",PHY LTS 18-64,HOMECARE - C&V,2103070209,1000003398
05.03.2020,ADULT SOCIAL CARE,LONDON CARE LTD,"1,147.50",PHY LTS 18-64,HOMECARE - C&V,2103069944,1000003398
05.03.2020,ADULT SOCIAL CARE,LONDON CARE LTD,"1,198.50",PHY LTS 18-64,HOMECARE - C&V,2103069967,1000003398
05.03.2020,ADULT SOCIAL CARE,LONDON CARE LTD,"1,249.50",PHY LTS 18-64,HOMECARE - C&V,2103069986,1000003398
05.03.2020,ADULT SOCIAL CARE,LONDON CARE LTD,"1,378.70",PHY LTS 18-64,HOMECARE - C&V,2103070233,1000003398
05.03.2020,ADULT SOCIAL CARE,LONDON CARE LTD,"2,091.00",PHY LTS 18-64,HOMECARE - C&V,2103070244,1000003398
05.03.2020,ADULT SOCIAL CARE,LONDON CARE LTD,"2,256.75",PHY LTS 18-64,HOMECARE - C&V,2103070231,1000003398
05.03.2020,ADULT SOCIAL CARE,LONDON CARE LTD,"2,273.75",PHY LTS 18-64,HOMECARE - C&V,2103070083,1000003398
05.03.2020,ADULT SOCIAL CARE,LONDON CARE LTD,"3,111.00",PHY LTS 18-64,HOMECARE - C&V,2103070243,1000003398
05.03.2020,ADULT SOCIAL CARE,LONDON CARE LTD,"3,136.50",PHY LTS 18-64,HOMECARE - C&V,2103070020,1000003398
05.03.2020,ADULT SOCIAL CARE,LONDON CARE LTD,"3,166.25",PHY LTS 18-64,HOMECARE - C&V,2103069870,1000003398
05.03.2020,ADULT SOCIAL CARE,LONDON CARE LTD,369.75,PHY LTS 18-64,HOMECARE - SPOT,2103070042,1000003398
05.03.2020,ADULT SOCIAL CARE,LONDON CARE LTD,668.95,PHY LTS 18-64,HOMECARE - SPOT,2103069892,1000003398
05.03.2020,ADULT SOCIAL CARE,SERVESOUL LTD,554.94,PHY LTS 18-64,HOMECARE - SPOT,2103070311,1000081503
05.03.2020,ADULT SOCIAL CARE,SERVESOUL LTD,554.94,PHY LTS 18-64,HOMECARE - SPOT,2103070331,1000081503
05.03.2020,ADULT SOCIAL CARE,SUPREME CARE SERVICES LTD,"1,547.48",PHY LTS 18-64,HOMECARE - C&V,2103070286,1000059416
05.03.2020,ADULT SOCIAL CARE,THAMES HOMECARE SERVICE LTD,295.35,PHY LTS 18-64,HOMECARE - SPOT,2103070435,1000079295
05.03.2020,ADULT SOCIAL CARE,THAMES HOMECARE SERVICE LTD,322.20,PHY LTS 18-64,HOMECARE - SPOT,2103070409,1000079295
05.03.2020,ADULT SOCIAL CARE,THAMES HOMECARE SERVICE LTD,358.00,PHY LTS 18-64,HOMECARE - SPOT,2103070420,1000079295
05.03.2020,ADULT SOCIAL CARE,THAMES HOMECARE SERVICE LTD,380.38,PHY LTS 18-64,HOMECARE - SPOT,2103070369,1000079295
05.03.2020,ADULT SOCIAL CARE,THAMES HOMECARE SERVICE LTD,626.50,PHY LTS 18-64,HOMECARE - SPOT,2103070377,1000079295
05.03.2020,ADULT SOCIAL CARE,THAMES HOMECARE SERVICE LTD,639.93,PHY LTS 18-64,HOMECARE - SPOT,2103070427,1000079295
05.03.2020,ADULT SOCIAL CARE,THAMES HOMECARE SERVICE LTD,921.85,PHY LTS 18-64,HOMECARE - SPOT,2103070438,1000079295
05.03.2020,ADULT SOCIAL CARE,WESTMINSTER HOMECARE LTD,469.68,PHY LTS 18-64,HOMECARE - SPOT,2103069857,1000075287
05.03.2020,ADULT SOCIAL CARE,WESTMINSTER HOMECARE LTD,"1,021.44",PHY LTS 18-64,HOMECARE - SPOT,2103069849,1000075287
05.03.2020,ADULT SOCIAL CARE,WESTMINSTER HOMECARE LTD,"1,340.64",PHY LTS 18-64,HOMECARE - SPOT,2103069846,1000075287
05.03.2020,ADULT SOCIAL CARE,WESTMINSTER HOMECARE LTD,"2,042.88",PHY LTS 18-64,HOMECARE - SPOT,2103069842,1000075287
05.03.2020,ADULT SOCIAL CARE,WESTMINSTER HOMECARE LTD,"3,046.08",PHY LTS 18-64,HOMECARE - SPOT,2103069858,1000075287
05.03.2020,ADULT SOCIAL CARE,AGE UK  LEWISHAM & SOUTHWARK,694.29,PHY LTS 65+,DAYCARE,2103070517,1000066751
05.03.2020,ADULT SOCIAL CARE,ELEANOR NURSING AND SOCIAL CARE LTD,363.44,PHY LTS 65+,HOMECARE - SPOT,2103069823,1000081695
05.03.2020,ADULT SOCIAL CARE,ELEANOR NURSING AND SOCIAL CARE LTD,363.44,PHY LTS 65+,HOMECARE - SPOT,2103069831,1000081695
05.03.2020,ADULT SOCIAL CARE,ELEANOR NURSING AND SOCIAL CARE LTD,363.44,PHY LTS 65+,HOMECARE - SPOT,2103069833,1000081695
05.03.2020,ADULT SOCIAL CARE,ELEANOR NURSING AND SOCIAL CARE LTD,519.00,PHY LTS 65+,HOMECARE - SPOT,2103069828,1000081695
05.03.2020,ADULT SOCIAL CARE,ELEANOR NURSING AND SOCIAL CARE LTD,536.39,PHY LTS 65+,HOMECARE - SPOT,2103069837,1000081695
05.03.2020,ADULT SOCIAL CARE,ELEANOR NURSING AND SOCIAL CARE LTD,917.04,PHY LTS 65+,HOMECARE - SPOT,2103069836,1000081695
05.03.2020,ADULT SOCIAL CARE,ELEANOR NURSING AND SOCIAL CARE LTD,"1,020.76",PHY LTS 65+,HOMECARE - SPOT,2103069822,1000081695
05.03.2020,ADULT SOCIAL CARE,ELEANOR NURSING AND SOCIAL CARE LTD,"1,193.84",PHY LTS 65+,HOMECARE - SPOT,2103069841,1000081695
05.03.2020,ADULT SOCIAL CARE,ELEANOR NURSING AND SOCIAL CARE LTD,"1,522.68",PHY LTS 65+,HOMECARE - SPOT,2103069834,1000081695
05.03.2020,ADULT SOCIAL CARE,LONDON CARE LTD,263.50,PHY LTS 65+,HOMECARE - C&V,2103070105,1000003398
05.03.2020,ADULT SOCIAL CARE,LONDON CARE LTD,267.75,PHY LTS 65+,HOMECARE - C&V,2103069969,1000003398
05.03.2020,ADULT SOCIAL CARE,LONDON CARE LTD,276.25,PHY LTS 65+,HOMECARE - C&V,2103070059,1000003398
05.03.2020,ADULT SOCIAL CARE,LONDON CARE LTD,285.03,PHY LTS 65+,HOMECARE - C&V,2103069924,1000003398
05.03.2020,ADULT SOCIAL CARE,LONDON CARE LTD,306.00,PHY LTS 65+,HOMECARE - C&V,2103069937,1000003398
05.03.2020,ADULT SOCIAL CARE,LONDON CARE LTD,310.25,PHY LTS 65+,HOMECARE - C&V,2103070016,1000003398
05.03.2020,ADULT SOCIAL CARE,LONDON CARE LTD,323.00,PHY LTS 65+,HOMECARE - C&V,2103070089,1000003398
05.03.2020,ADULT SOCIAL CARE,LONDON CARE LTD,331.50,PHY LTS 65+,HOMECARE - C&V,2103069980,1000003398
05.03.2020,ADULT SOCIAL CARE,LONDON CARE LTD,335.75,PHY LTS 65+,HOMECARE - C&V,2103070167,1000003398
05.03.2020,ADULT SOCIAL CARE,LONDON CARE LTD,340.00,PHY LTS 65+,HOMECARE - C&V,2103069911,1000003398
05.03.2020,ADULT SOCIAL CARE,LONDON CARE LTD,344.25,PHY LTS 65+,HOMECARE - C&V,2103069872,1000003398
05.03.2020,ADULT SOCIAL CARE,LONDON CARE LTD,344.25,PHY LTS 65+,HOMECARE - C&V,2103070126,1000003398
05.03.2020,ADULT SOCIAL CARE,LONDON CARE LTD,344.25,PHY LTS 65+,HOMECARE - C&V,2103070152,1000003398
05.03.2020,ADULT SOCIAL CARE,LONDON CARE LTD,352.75,PHY LTS 65+,HOMECARE - C&V,2103069966,1000003398
05.03.2020,ADULT SOCIAL CARE,LONDON CARE LTD,352.75,PHY LTS 65+,HOMECARE - C&V,2103070218,1000003398
05.03.2020,ADULT SOCIAL CARE,LONDON CARE LTD,357.00,PHY LTS 65+,HOMECARE - C&V,2103069871,1000003398
05.03.2020,ADULT SOCIAL CARE,LONDON CARE LTD,357.00,PHY LTS 65+,HOMECARE - C&V,2103070073,1000003398
05.03.2020,ADULT SOCIAL CARE,LONDON CARE LTD,357.00,PHY LTS 65+,HOMECARE - C&V,2103070124,1000003398
05.03.2020,ADULT SOCIAL CARE,LONDON CARE LTD,361.25,PHY LTS 65+,HOMECARE - C&V,2103069898,1000003398
05.03.2020,ADULT SOCIAL CARE,LONDON CARE LTD,365.50,PHY LTS 65+,HOMECARE - C&V,2103070183,1000003398
05.03.2020,ADULT SOCIAL CARE,LONDON CARE LTD,369.75,PHY LTS 65+,HOMECARE - C&V,2103070157,1000003398
05.03.2020,ADULT SOCIAL CARE,LONDON CARE LTD,369.75,PHY LTS 65+,HOMECARE - C&V,2103070211,1000003398
05.03.2020,ADULT SOCIAL CARE,LONDON CARE LTD,374.00,PHY LTS 65+,HOMECARE - C&V,2103069951,1000003398
05.03.2020,ADULT SOCIAL CARE,LONDON CARE LTD,378.25,PHY LTS 65+,HOMECARE - C&V,2103069889,1000003398
05.03.2020,ADULT SOCIAL CARE,LONDON CARE LTD,378.25,PHY LTS 65+,HOMECARE - C&V,2103070251,1000003398
05.03.2020,ADULT SOCIAL CARE,LONDON CARE LTD,399.50,PHY LTS 65+,HOMECARE - C&V,2103069963,1000003398
05.03.2020,ADULT SOCIAL CARE,LONDON CARE LTD,412.25,PHY LTS 65+,HOMECARE - C&V,2103070217,1000003398
05.03.2020,ADULT SOCIAL CARE,LONDON CARE LTD,412.25,PHY LTS 65+,HOMECARE - C&V,2103070222,1000003398
05.03.2020,ADULT SOCIAL CARE,LONDON CARE LTD,416.50,PHY LTS 65+,HOMECARE - C&V,2103070008,1000003398
05.03.2020,ADULT SOCIAL CARE,LONDON CARE LTD,425.00,PHY LTS 65+,HOMECARE - C&V,2103069894,1000003398
05.03.2020,ADULT SOCIAL CARE,LONDON CARE LTD,433.50,PHY LTS 65+,HOMECARE - C&V,2103070165,1000003398
05.03.2020,ADULT SOCIAL CARE,LONDON CARE LTD,450.50,PHY LTS 65+,HOMECARE - C&V,2103070130,1000003398
05.03.2020,ADULT SOCIAL CARE,LONDON CARE LTD,454.75,PHY LTS 65+,HOMECARE - C&V,2103070106,1000003398
05.03.2020,ADULT SOCIAL CARE,LONDON CARE LTD,464.10,PHY LTS 65+,HOMECARE - C&V,2103070064,1000003398
05.03.2020,ADULT SOCIAL CARE,LONDON CARE LTD,471.75,PHY LTS 65+,HOMECARE - C&V,2103070017,1000003398
05.03.2020,ADULT SOCIAL CARE,LONDON CARE LTD,471.75,PHY LTS 65+,HOMECARE - C&V,2103070147,1000003398
05.03.2020,ADULT SOCIAL CARE,LONDON CARE LTD,480.25,PHY LTS 65+,HOMECARE - C&V,2103069972,1000003398
05.03.2020,ADULT SOCIAL CARE,LONDON CARE LTD,480.25,PHY LTS 65+,HOMECARE - C&V,2103070229,1000003398
05.03.2020,ADULT SOCIAL CARE,LONDON CARE LTD,488.75,PHY LTS 65+,HOMECARE - C&V,2103069941,1000003398
05.03.2020,ADULT SOCIAL CARE,LONDON CARE LTD,488.75,PHY LTS 65+,HOMECARE - C&V,2103070232,1000003398
05.03.2020,ADULT SOCIAL CARE,LONDON CARE LTD,502.92,PHY LTS 65+,HOMECARE - C&V,2103069997,1000003398
05.03.2020,ADULT SOCIAL CARE,LONDON CARE LTD,505.75,PHY LTS 65+,HOMECARE - C&V,2103070033,1000003398
05.03.2020,ADULT SOCIAL CARE,LONDON CARE LTD,510.00,PHY LTS 65+,HOMECARE - C&V,2103069957,1000003398
05.03.2020,ADULT SOCIAL CARE,LONDON CARE LTD,510.00,PHY LTS 65+,HOMECARE - C&V,2103069959,1000003398
05.03.2020,ADULT SOCIAL CARE,LONDON CARE LTD,539.75,PHY LTS 65+,HOMECARE - C&V,2103069879,1000003398
05.03.2020,ADULT SOCIAL CARE,LONDON CARE LTD,548.25,PHY LTS 65+,HOMECARE - C&V,2103070068,1000003398
05.03.2020,ADULT SOCIAL CARE,LONDON CARE LTD,548.25,PHY LTS 65+,HOMECARE - C&V,2103070175,1000003398
05.03.2020,ADULT SOCIAL CARE,LONDON CARE LTD,556.75,PHY LTS 65+,HOMECARE - C&V,2103069956,1000003398
05.03.2020,ADULT SOCIAL CARE,LONDON CARE LTD,556.75,PHY LTS 65+,HOMECARE - C&V,2103069994,1000003398
05.03.2020,ADULT SOCIAL CARE,LONDON CARE LTD,560.15,PHY LTS 65+,HOMECARE - C&V,2103069933,1000003398
05.03.2020,ADULT SOCIAL CARE,LONDON CARE LTD,565.25,PHY LTS 65+,HOMECARE - C&V,2103069920,1000003398
05.03.2020,ADULT SOCIAL CARE,LONDON CARE LTD,565.25,PHY LTS 65+,HOMECARE - C&V,2103070149,1000003398
05.03.2020,ADULT SOCIAL CARE,LONDON CARE LTD,569.50,PHY LTS 65+,HOMECARE - C&V,2103070072,1000003398
05.03.2020,ADULT SOCIAL CARE,LONDON CARE LTD,573.75,PHY LTS 65+,HOMECARE - C&V,2103069896,1000003398
05.03.2020,ADULT SOCIAL CARE,LONDON CARE LTD,573.75,PHY LTS 65+,HOMECARE - C&V,2103069902,1000003398
05.03.2020,ADULT SOCIAL CARE,LONDON CARE LTD,578.00,PHY LTS 65+,HOMECARE - C&V,2103069954,1000003398
05.03.2020,ADULT SOCIAL CARE,LONDON CARE LTD,578.00,PHY LTS 65+,HOMECARE - C&V,2103070039,1000003398
05.03.2020,ADULT SOCIAL CARE,LONDON CARE LTD,586.50,PHY LTS 65+,HOMECARE - C&V,2103070043,1000003398
05.03.2020,ADULT SOCIAL CARE,LONDON CARE LTD,586.50,PHY LTS 65+,HOMECARE - C&V,2103070164,1000003398
05.03.2020,ADULT SOCIAL CARE,LONDON CARE LTD,590.75,PHY LTS 65+,HOMECARE - C&V,2103070259,1000003398
05.03.2020,ADULT SOCIAL CARE,LONDON CARE LTD,595.00,PHY LTS 65+,HOMECARE - C&V,2103070133,1000003398
05.03.2020,ADULT SOCIAL CARE,LONDON CARE LTD,603.50,PHY LTS 65+,HOMECARE - C&V,2103070247,1000003398
05.03.2020,ADULT SOCIAL CARE,LONDON CARE LTD,609.45,PHY LTS 65+,HOMECARE - C&V,2103070226,1000003398
05.03.2020,ADULT SOCIAL CARE,LONDON CARE LTD,612.00,PHY LTS 65+,HOMECARE - C&V,2103069930,1000003398
05.03.2020,ADULT SOCIAL CARE,LONDON CARE LTD,612.00,PHY LTS 65+,HOMECARE - C&V,2103070035,1000003398
05.03.2020,ADULT SOCIAL CARE,LONDON CARE LTD,612.00,PHY LTS 65+,HOMECARE - C&V,2103070169,1000003398
05.03.2020,ADULT SOCIAL CARE,LONDON CARE LTD,612.00,PHY LTS 65+,HOMECARE - C&V,2103070176,1000003398
05.03.2020,ADULT SOCIAL CARE,LONDON CARE LTD,616.25,PHY LTS 65+,HOMECARE - C&V,2103069901,1000003398
05.03.2020,ADULT SOCIAL CARE,LONDON CARE LTD,616.25,PHY LTS 65+,HOMECARE - C&V,2103070027,1000003398
05.03.2020,ADULT SOCIAL CARE,LONDON CARE LTD,619.65,PHY LTS 65+,HOMECARE - C&V,2103070225,1000003398
05.03.2020,ADULT SOCIAL CARE,LONDON CARE LTD,620.50,PHY LTS 65+,HOMECARE - C&V,2103069921,1000003398
05.03.2020,ADULT SOCIAL CARE,LONDON CARE LTD,629.00,PHY LTS 65+,HOMECARE - C&V,2103069893,1000003398
05.03.2020,ADULT SOCIAL CARE,LONDON CARE LTD,629.00,PHY LTS 65+,HOMECARE - C&V,2103070103,1000003398
05.03.2020,ADULT SOCIAL CARE,LONDON CARE LTD,629.00,PHY LTS 65+,HOMECARE - C&V,2103070138,1000003398
05.03.2020,ADULT SOCIAL CARE,LONDON CARE LTD,633.25,PHY LTS 65+,HOMECARE - C&V,2103069955,1000003398
05.03.2020,ADULT SOCIAL CARE,LONDON CARE LTD,650.25,PHY LTS 65+,HOMECARE - C&V,2103070195,1000003398
05.03.2020,ADULT SOCIAL CARE,LONDON CARE LTD,658.75,PHY LTS 65+,HOMECARE - C&V,2103070062,1000003398
05.03.2020,ADULT SOCIAL CARE,LONDON CARE LTD,663.00,PHY LTS 65+,HOMECARE - C&V,2103070198,1000003398
05.03.2020,ADULT SOCIAL CARE,LONDON CARE LTD,667.25,PHY LTS 65+,HOMECARE - C&V,2103069983,1000003398
05.03.2020,ADULT SOCIAL CARE,LONDON CARE LTD,688.50,PHY LTS 65+,HOMECARE - C&V,2103070010,1000003398
05.03.2020,ADULT SOCIAL CARE,LONDON CARE LTD,692.75,PHY LTS 65+,HOMECARE - C&V,2103070102,1000003398
05.03.2020,ADULT SOCIAL CARE,LONDON CARE LTD,701.25,PHY LTS 65+,HOMECARE - C&V,2103070166,1000003398
05.03.2020,ADULT SOCIAL CARE,LONDON CARE LTD,709.75,PHY LTS 65+,HOMECARE - C&V,2103070117,1000003398
05.03.2020,ADULT SOCIAL CARE,LONDON CARE LTD,714.00,PHY LTS 65+,HOMECARE - C&V,2103070110,1000003398
05.03.2020,ADULT SOCIAL CARE,LONDON CARE LTD,722.50,PHY LTS 65+,HOMECARE - C&V,2103069904,1000003398
05.03.2020,ADULT SOCIAL CARE,LONDON CARE LTD,723.92,PHY LTS 65+,HOMECARE - C&V,2103070240,1000003398
05.03.2020,ADULT SOCIAL CARE,LONDON CARE LTD,726.75,PHY LTS 65+,HOMECARE - C&V,2103069971,1000003398
05.03.2020,ADULT SOCIAL CARE,LONDON CARE LTD,731.00,PHY LTS 65+,HOMECARE - C&V,2103070212,1000003398
05.03.2020,ADULT SOCIAL CARE,LONDON CARE LTD,735.25,PHY LTS 65+,HOMECARE - C&V,2103070112,1000003398
05.03.2020,ADULT SOCIAL CARE,LONDON CARE LTD,769.25,PHY LTS 65+,HOMECARE - C&V,2103069965,1000003398
05.03.2020,ADULT SOCIAL CARE,LONDON CARE LTD,783.42,PHY LTS 65+,HOMECARE - C&V,2103070007,1000003398
05.03.2020,ADULT SOCIAL CARE,LONDON CARE LTD,786.25,PHY LTS 65+,HOMECARE - C&V,2103070158,1000003398
05.03.2020,ADULT SOCIAL CARE,LONDON CARE LTD,786.25,PHY LTS 65+,HOMECARE - C&V,2103070204,1000003398
05.03.2020,ADULT SOCIAL CARE,LONDON CARE LTD,788.80,PHY LTS 65+,HOMECARE - C&V,2103070101,1000003398
05.03.2020,ADULT SOCIAL CARE,LONDON CARE LTD,790.50,PHY LTS 65+,HOMECARE - C&V,2103070038,1000003398
05.03.2020,ADULT SOCIAL CARE,LONDON CARE LTD,790.50,PHY LTS 65+,HOMECARE - C&V,2103070256,1000003398
05.03.2020,ADULT SOCIAL CARE,LONDON CARE LTD,794.75,PHY LTS 65+,HOMECARE - C&V,2103069961,1000003398
05.03.2020,ADULT SOCIAL CARE,LONDON CARE LTD,799.00,PHY LTS 65+,HOMECARE - C&V,2103070036,1000003398
05.03.2020,ADULT SOCIAL CARE,LONDON CARE LTD,803.25,PHY LTS 65+,HOMECARE - C&V,2103070013,1000003398
05.03.2020,ADULT SOCIAL CARE,LONDON CARE LTD,816.00,PHY LTS 65+,HOMECARE - C&V,2103070182,1000003398
05.03.2020,ADULT SOCIAL CARE,LONDON CARE LTD,824.50,PHY LTS 65+,HOMECARE - C&V,2103069931,1000003398
05.03.2020,ADULT SOCIAL CARE,LONDON CARE LTD,824.50,PHY LTS 65+,HOMECARE - C&V,2103070202,1000003398
05.03.2020,ADULT SOCIAL CARE,LONDON CARE LTD,828.75,PHY LTS 65+,HOMECARE - C&V,2103069947,1000003398
05.03.2020,ADULT SOCIAL CARE,LONDON CARE LTD,828.75,PHY LTS 65+,HOMECARE - C&V,2103070032,1000003398
05.03.2020,ADULT SOCIAL CARE,LONDON CARE LTD,833.00,PHY LTS 65+,HOMECARE - C&V,2103070203,1000003398
05.03.2020,ADULT SOCIAL CARE,LONDON CARE LTD,837.25,PHY LTS 65+,HOMECARE - C&V,2103069984,1000003398
05.03.2020,ADULT SOCIAL CARE,LONDON CARE LTD,837.25,PHY LTS 65+,HOMECARE - C&V,2103070075,1000003398
05.03.2020,ADULT SOCIAL CARE,LONDON CARE LTD,841.50,PHY LTS 65+,HOMECARE - C&V,2103070015,1000003398
05.03.2020,ADULT SOCIAL CARE,LONDON CARE LTD,845.75,PHY LTS 65+,HOMECARE - C&V,2103069925,1000003398
05.03.2020,ADULT SOCIAL CARE,LONDON CARE LTD,850.00,PHY LTS 65+,HOMECARE - C&V,2103070051,1000003398
05.03.2020,ADULT SOCIAL CARE,LONDON CARE LTD,850.00,PHY LTS 65+,HOMECARE - C&V,2103070087,1000003398
05.03.2020,ADULT SOCIAL CARE,LONDON CARE LTD,854.25,PHY LTS 65+,HOMECARE - C&V,2103070170,1000003398
05.03.2020,ADULT SOCIAL CARE,LONDON CARE LTD,858.50,PHY LTS 65+,HOMECARE - C&V,2103070094,1000003398
05.03.2020,ADULT SOCIAL CARE,LONDON CARE LTD,879.18,PHY LTS 65+,HOMECARE - C&V,2103069991,1000003398
05.03.2020,ADULT SOCIAL CARE,LONDON CARE LTD,879.75,PHY LTS 65+,HOMECARE - C&V,2103070115,1000003398
05.03.2020,ADULT SOCIAL CARE,LONDON CARE LTD,879.75,PHY LTS 65+,HOMECARE - C&V,2103070136,1000003398
05.03.2020,ADULT SOCIAL CARE,LONDON CARE LTD,884.00,PHY LTS 65+,HOMECARE - C&V,2103069882,1000003398
05.03.2020,ADULT SOCIAL CARE,LONDON CARE LTD,884.00,PHY LTS 65+,HOMECARE - C&V,2103069926,1000003398
05.03.2020,ADULT SOCIAL CARE,LONDON CARE LTD,888.25,PHY LTS 65+,HOMECARE - C&V,2103070260,1000003398
05.03.2020,ADULT SOCIAL CARE,LONDON CARE LTD,896.75,PHY LTS 65+,HOMECARE - C&V,2103069974,1000003398
05.03.2020,ADULT SOCIAL CARE,LONDON CARE LTD,897.60,PHY LTS 65+,HOMECARE - C&V,2103070067,1000003398
05.03.2020,ADULT SOCIAL CARE,LONDON CARE LTD,909.50,PHY LTS 65+,HOMECARE - C&V,2103070048,1000003398
05.03.2020,ADULT SOCIAL CARE,LONDON CARE LTD,918.00,PHY LTS 65+,HOMECARE - C&V,2103070052,1000003398
05.03.2020,ADULT SOCIAL CARE,LONDON CARE LTD,922.25,PHY LTS 65+,HOMECARE - C&V,2103069880,1000003398
05.03.2020,ADULT SOCIAL CARE,LONDON CARE LTD,923.95,PHY LTS 65+,HOMECARE - C&V,2103070132,1000003398
05.03.2020,ADULT SOCIAL CARE,LONDON CARE LTD,939.25,PHY LTS 65+,HOMECARE - C&V,2103069998,1000003398
05.03.2020,ADULT SOCIAL CARE,LONDON CARE LTD,943.50,PHY LTS 65+,HOMECARE - C&V,2103069913,1000003398
05.03.2020,ADULT SOCIAL CARE,LONDON CARE LTD,943.50,PHY LTS 65+,HOMECARE - C&V,2103070241,1000003398
05.03.2020,ADULT SOCIAL CARE,LONDON CARE LTD,956.25,PHY LTS 65+,HOMECARE - C&V,2103070180,1000003398
05.03.2020,ADULT SOCIAL CARE,LONDON CARE LTD,964.75,PHY LTS 65+,HOMECARE - C&V,2103070186,1000003398
05.03.2020,ADULT SOCIAL CARE,LONDON CARE LTD,998.75,PHY LTS 65+,HOMECARE - C&V,2103070200,1000003398
05.03.2020,ADULT SOCIAL CARE,LONDON CARE LTD,"1,007.25",PHY LTS 65+,HOMECARE - C&V,2103070011,1000003398
05.03.2020,ADULT SOCIAL CARE,LONDON CARE LTD,"1,011.50",PHY LTS 65+,HOMECARE - C&V,2103070111,1000003398
05.03.2020,ADULT SOCIAL CARE,LONDON CARE LTD,"1,020.00",PHY LTS 65+,HOMECARE - C&V,2103069943,1000003398
05.03.2020,ADULT SOCIAL CARE,LONDON CARE LTD,"1,021.70",PHY LTS 65+,HOMECARE - C&V,2103070129,1000003398
05.03.2020,ADULT SOCIAL CARE,LONDON CARE LTD,"1,024.25",PHY LTS 65+,HOMECARE - C&V,2103070023,1000003398
05.03.2020,ADULT SOCIAL CARE,LONDON CARE LTD,"1,024.25",PHY LTS 65+,HOMECARE - C&V,2103070127,1000003398
05.03.2020,ADULT SOCIAL CARE,LONDON CARE LTD,"1,024.25",PHY LTS 65+,HOMECARE - C&V,2103070171,1000003398
05.03.2020,ADULT SOCIAL CARE,LONDON CARE LTD,"1,037.00",PHY LTS 65+,HOMECARE - C&V,2103070197,1000003398
05.03.2020,ADULT SOCIAL CARE,LONDON CARE LTD,"1,045.50",PHY LTS 65+,HOMECARE - C&V,2103070121,1000003398
05.03.2020,ADULT SOCIAL CARE,LONDON CARE LTD,"1,050.32",PHY LTS 65+,HOMECARE - C&V,2103070081,1000003398
05.03.2020,ADULT SOCIAL CARE,LONDON CARE LTD,"1,079.50",PHY LTS 65+,HOMECARE - C&V,2103070054,1000003398
05.03.2020,ADULT SOCIAL CARE,LONDON CARE LTD,"1,083.75",PHY LTS 65+,HOMECARE - C&V,2103070160,1000003398
05.03.2020,ADULT SOCIAL CARE,LONDON CARE LTD,"1,083.75",PHY LTS 65+,HOMECARE - C&V,2103070238,1000003398
05.03.2020,ADULT SOCIAL CARE,LONDON CARE LTD,"1,085.45",PHY LTS 65+,HOMECARE - C&V,2103070104,1000003398
05.03.2020,ADULT SOCIAL CARE,LONDON CARE LTD,"1,096.50",PHY LTS 65+,HOMECARE - C&V,2103070252,1000003398
05.03.2020,ADULT SOCIAL CARE,LONDON CARE LTD,"1,100.75",PHY LTS 65+,HOMECARE - C&V,2103070086,1000003398
05.03.2020,ADULT SOCIAL CARE,LONDON CARE LTD,"1,107.55",PHY LTS 65+,HOMECARE - C&V,2103069877,1000003398
05.03.2020,ADULT SOCIAL CARE,LONDON CARE LTD,"1,109.25",PHY LTS 65+,HOMECARE - C&V,2103069887,1000003398
05.03.2020,ADULT SOCIAL CARE,LONDON CARE LTD,"1,110.67",PHY LTS 65+,HOMECARE - C&V,2103070174,1000003398
05.03.2020,ADULT SOCIAL CARE,LONDON CARE LTD,"1,113.50",PHY LTS 65+,HOMECARE - C&V,2103070056,1000003398
05.03.2020,ADULT SOCIAL CARE,LONDON CARE LTD,"1,126.25",PHY LTS 65+,HOMECARE - C&V,2103069874,1000003398
05.03.2020,ADULT SOCIAL CARE,LONDON CARE LTD,"1,130.50",PHY LTS 65+,HOMECARE - C&V,2103070224,1000003398
05.03.2020,ADULT SOCIAL CARE,LONDON CARE LTD,"1,134.75",PHY LTS 65+,HOMECARE - C&V,2103070230,1000003398
05.03.2020,ADULT SOCIAL CARE,LONDON CARE LTD,"1,156.00",PHY LTS 65+,HOMECARE - C&V,2103070080,1000003398
05.03.2020,ADULT SOCIAL CARE,LONDON CARE LTD,"1,161.10",PHY LTS 65+,HOMECARE - C&V,2103070125,1000003398
05.03.2020,ADULT SOCIAL CARE,LONDON CARE LTD,"1,161.67",PHY LTS 65+,HOMECARE - C&V,2103070018,1000003398
05.03.2020,ADULT SOCIAL CARE,LONDON CARE LTD,"1,173.00",PHY LTS 65+,HOMECARE - C&V,2103070207,1000003398
05.03.2020,ADULT SOCIAL CARE,LONDON CARE LTD,"1,181.50",PHY LTS 65+,HOMECARE - C&V,2103069899,1000003398
05.03.2020,ADULT SOCIAL CARE,LONDON CARE LTD,"1,194.25",PHY LTS 65+,HOMECARE - C&V,2103070019,1000003398
05.03.2020,ADULT SOCIAL CARE,LONDON CARE LTD,"1,232.50",PHY LTS 65+,HOMECARE - C&V,2103070142,1000003398
05.03.2020,ADULT SOCIAL CARE,LONDON CARE LTD,"1,289.45",PHY LTS 65+,HOMECARE - C&V,2103070206,1000003398
05.03.2020,ADULT SOCIAL CARE,LONDON CARE LTD,"1,301.92",PHY LTS 65+,HOMECARE - C&V,2103069869,1000003398
05.03.2020,ADULT SOCIAL CARE,LONDON CARE LTD,"1,317.50",PHY LTS 65+,HOMECARE - C&V,2103070163,1000003398
05.03.2020,ADULT SOCIAL CARE,LONDON CARE LTD,"1,360.00",PHY LTS 65+,HOMECARE - C&V,2103070001,1000003398
05.03.2020,ADULT SOCIAL CARE,LONDON CARE LTD,"1,445.00",PHY LTS 65+,HOMECARE - C&V,2103070055,1000003398
05.03.2020,ADULT SOCIAL CARE,LONDON CARE LTD,"1,470.50",PHY LTS 65+,HOMECARE - C&V,2103070022,1000003398
05.03.2020,ADULT SOCIAL CARE,LONDON CARE LTD,"1,547.00",PHY LTS 65+,HOMECARE - C&V,2103070114,1000003398
05.03.2020,ADULT SOCIAL CARE,LONDON CARE LTD,"1,657.50",PHY LTS 65+,HOMECARE - C&V,2103070109,1000003398
05.03.2020,ADULT SOCIAL CARE,LONDON CARE LTD,"1,687.25",PHY LTS 65+,HOMECARE - C&V,2103070003,1000003398
05.03.2020,ADULT SOCIAL CARE,LONDON CARE LTD,"1,687.25",PHY LTS 65+,HOMECARE - C&V,2103070234,1000003398
05.03.2020,ADULT SOCIAL CARE,LONDON CARE LTD,"1,780.75",PHY LTS 65+,HOMECARE - C&V,2103069917,1000003398
05.03.2020,ADULT SOCIAL CARE,LONDON CARE LTD,"1,853.00",PHY LTS 65+,HOMECARE - C&V,2103069888,1000003398
05.03.2020,ADULT SOCIAL CARE,LONDON CARE LTD,"1,882.75",PHY LTS 65+,HOMECARE - C&V,2103069975,1000003398
05.03.2020,ADULT SOCIAL CARE,LONDON CARE LTD,"1,908.25",PHY LTS 65+,HOMECARE - C&V,2103070245,1000003398
05.03.2020,ADULT SOCIAL CARE,LONDON CARE LTD,"1,950.75",PHY LTS 65+,HOMECARE - C&V,2103070140,1000003398
05.03.2020,ADULT SOCIAL CARE,LONDON CARE LTD,"1,955.00",PHY LTS 65+,HOMECARE - C&V,2103069918,1000003398
05.03.2020,ADULT SOCIAL CARE,LONDON CARE LTD,"1,955.00",PHY LTS 65+,HOMECARE - C&V,2103070074,1000003398
05.03.2020,ADULT SOCIAL CARE,LONDON CARE LTD,"2,142.00",PHY LTS 65+,HOMECARE - C&V,2103070192,1000003398
05.03.2020,ADULT SOCIAL CARE,LONDON CARE LTD,"2,230.40",PHY LTS 65+,HOMECARE - C&V,2103069916,1000003398
05.03.2020,ADULT SOCIAL CARE,LONDON CARE LTD,"2,248.25",PHY LTS 65+,HOMECARE - C&V,2103070154,1000003398
05.03.2020,ADULT SOCIAL CARE,LONDON CARE LTD,"2,252.50",PHY LTS 65+,HOMECARE - C&V,2103070156,1000003398
05.03.2020,ADULT SOCIAL CARE,LONDON CARE LTD,"2,312.00",PHY LTS 65+,HOMECARE - C&V,2103069964,1000003398
05.03.2020,ADULT SOCIAL CARE,LONDON CARE LTD,"2,350.25",PHY LTS 65+,HOMECARE - C&V,2103069982,1000003398
05.03.2020,ADULT SOCIAL CARE,LONDON CARE LTD,"2,418.25",PHY LTS 65+,HOMECARE - C&V,2103070012,1000003398
05.03.2020,ADULT SOCIAL CARE,LONDON CARE LTD,"2,425.33",PHY LTS 65+,HOMECARE - C&V,2103070159,1000003398
05.03.2020,ADULT SOCIAL CARE,LONDON CARE LTD,"2,448.00",PHY LTS 65+,HOMECARE - C&V,2103070077,1000003398
05.03.2020,ADULT SOCIAL CARE,LONDON CARE LTD,"2,476.05",PHY LTS 65+,HOMECARE - C&V,2103070236,1000003398
05.03.2020,ADULT SOCIAL CARE,LONDON CARE LTD,"2,516.00",PHY LTS 65+,HOMECARE - C&V,2103069968,1000003398
05.03.2020,ADULT SOCIAL CARE,LONDON CARE LTD,"2,524.50",PHY LTS 65+,HOMECARE - C&V,2103070141,1000003398
05.03.2020,ADULT SOCIAL CARE,LONDON CARE LTD,"2,613.75",PHY LTS 65+,HOMECARE - C&V,2103070249,1000003398
05.03.2020,ADULT SOCIAL CARE,LONDON CARE LTD,"2,652.00",PHY LTS 65+,HOMECARE - C&V,2103070145,1000003398
05.03.2020,ADULT SOCIAL CARE,LONDON CARE LTD,"2,704.70",PHY LTS 65+,HOMECARE - C&V,2103069996,1000003398
05.03.2020,ADULT SOCIAL CARE,LONDON CARE LTD,"2,707.25",PHY LTS 65+,HOMECARE - C&V,2103070250,1000003398
05.03.2020,ADULT SOCIAL CARE,LONDON CARE LTD,"2,720.00",PHY LTS 65+,HOMECARE - C&V,2103070146,1000003398
05.03.2020,ADULT SOCIAL CARE,LONDON CARE LTD,"2,771.00",PHY LTS 65+,HOMECARE - C&V,2103069878,1000003398
05.03.2020,ADULT SOCIAL CARE,LONDON CARE LTD,"2,856.00",PHY LTS 65+,HOMECARE - C&V,2103069946,1000003398
05.03.2020,ADULT SOCIAL CARE,LONDON CARE LTD,"2,885.75",PHY LTS 65+,HOMECARE - C&V,2103069923,1000003398
05.03.2020,ADULT SOCIAL CARE,LONDON CARE LTD,"2,962.25",PHY LTS 65+,HOMECARE - C&V,2103070085,1000003398
05.03.2020,ADULT SOCIAL CARE,LONDON CARE LTD,"3,451.00",PHY LTS 65+,HOMECARE - C&V,2103070058,1000003398
05.03.2020,ADULT SOCIAL CARE,LONDON CARE LTD,357.00,PHY LTS 65+,HOMECARE - SPOT,2103070088,1000003398
05.03.2020,ADULT SOCIAL CARE,LONDON CARE LTD,548.25,PHY LTS 65+,HOMECARE - SPOT,2103070041,1000003398
05.03.2020,ADULT SOCIAL CARE,REDACTED PERSONAL DATA,"1,336.23",PHY LTS 65+,PAYMENTS TO CLIENTS (DIRECT PAYMENTS),REDACTED,REDACTED
05.03.2020,ADULT SOCIAL CARE,SERVESOUL LTD,262.87,PHY LTS 65+,HOMECARE - SPOT,2103070305,1000081503
05.03.2020,ADULT SOCIAL CARE,SERVESOUL LTD,262.87,PHY LTS 65+,HOMECARE - SPOT,2103070337,1000081503
05.03.2020,ADULT SOCIAL CARE,SERVESOUL LTD,292.08,PHY LTS 65+,HOMECARE - SPOT,2103070297,1000081503
05.03.2020,ADULT SOCIAL CARE,SERVESOUL LTD,292.08,PHY LTS 65+,HOMECARE - SPOT,2103070347,1000081503
05.03.2020,ADULT SOCIAL CARE,SERVESOUL LTD,308.77,PHY LTS 65+,HOMECARE - SPOT,2103070309,1000081503
05.03.2020,ADULT SOCIAL CARE,SERVESOUL LTD,308.77,PHY LTS 65+,HOMECARE - SPOT,2103070323,1000081503
05.03.2020,ADULT SOCIAL CARE,SERVESOUL LTD,346.32,PHY LTS 65+,HOMECARE - SPOT,2103070302,1000081503
05.03.2020,ADULT SOCIAL CARE,SERVESOUL LTD,346.32,PHY LTS 65+,HOMECARE - SPOT,2103070330,1000081503
05.03.2020,ADULT SOCIAL CARE,SERVESOUL LTD,421.42,PHY LTS 65+,HOMECARE - SPOT,2103070288,1000081503
05.03.2020,ADULT SOCIAL CARE,SERVESOUL LTD,421.42,PHY LTS 65+,HOMECARE - SPOT,2103070341,1000081503
05.03.2020,ADULT SOCIAL CARE,SERVESOUL LTD,433.94,PHY LTS 65+,HOMECARE - SPOT,2103070312,1000081503
05.03.2020,ADULT SOCIAL CARE,SERVESOUL LTD,433.94,PHY LTS 65+,HOMECARE - SPOT,2103070328,1000081503
05.03.2020,ADULT SOCIAL CARE,SERVESOUL LTD,517.39,PHY LTS 65+,HOMECARE - SPOT,2103070310,1000081503
05.03.2020,ADULT SOCIAL CARE,SERVESOUL LTD,517.39,PHY LTS 65+,HOMECARE - SPOT,2103070338,1000081503
05.03.2020,ADULT SOCIAL CARE,SERVESOUL LTD,534.08,PHY LTS 65+,HOMECARE - SPOT,2103070299,1000081503
05.03.2020,ADULT SOCIAL CARE,SERVESOUL LTD,534.08,PHY LTS 65+,HOMECARE - SPOT,2103070320,1000081503
05.03.2020,ADULT SOCIAL CARE,SERVESOUL LTD,559.12,PHY LTS 65+,HOMECARE - SPOT,2103070292,1000081503
05.03.2020,ADULT SOCIAL CARE,SERVESOUL LTD,559.12,PHY LTS 65+,HOMECARE - SPOT,2103070324,1000081503
05.03.2020,ADULT SOCIAL CARE,SERVESOUL LTD,642.57,PHY LTS 65+,HOMECARE - SPOT,2103070291,1000081503
05.03.2020,ADULT SOCIAL CARE,SERVESOUL LTD,642.57,PHY LTS 65+,HOMECARE - SPOT,2103070336,1000081503
05.03.2020,ADULT SOCIAL CARE,SUPREME CARE SERVICES LTD,260.14,PHY LTS 65+,HOMECARE - C&V,2103070285,1000059416
05.03.2020,ADULT SOCIAL CARE,SUPREME CARE SERVICES LTD,"1,931.89",PHY LTS 65+,HOMECARE - C&V,2103070284,1000059416
05.03.2020,ADULT SOCIAL CARE,THAMES HOMECARE SERVICE LTD,451.98,PHY LTS 65+,HOMECARE - C&V,2103070374,1000079295
05.03.2020,ADULT SOCIAL CARE,THAMES HOMECARE SERVICE LTD,554.90,PHY LTS 65+,HOMECARE - C&V,2103070388,1000079295
05.03.2020,ADULT SOCIAL CARE,THAMES HOMECARE SERVICE LTD,250.60,PHY LTS 65+,HOMECARE - SPOT,2103070410,1000079295
05.03.2020,ADULT SOCIAL CARE,THAMES HOMECARE SERVICE LTD,255.08,PHY LTS 65+,HOMECARE - SPOT,2103070411,1000079295
05.03.2020,ADULT SOCIAL CARE,THAMES HOMECARE SERVICE LTD,268.50,PHY LTS 65+,HOMECARE - SPOT,2103070423,1000079295
05.03.2020,ADULT SOCIAL CARE,THAMES HOMECARE SERVICE LTD,281.93,PHY LTS 65+,HOMECARE - SPOT,2103070396,1000079295
05.03.2020,ADULT SOCIAL CARE,THAMES HOMECARE SERVICE LTD,281.93,PHY LTS 65+,HOMECARE - SPOT,2103070397,1000079295
05.03.2020,ADULT SOCIAL CARE,THAMES HOMECARE SERVICE LTD,281.93,PHY LTS 65+,HOMECARE - SPOT,2103070408,1000079295
05.03.2020,ADULT SOCIAL CARE,THAMES HOMECARE SERVICE LTD,313.25,PHY LTS 65+,HOMECARE - SPOT,2103070445,1000079295
05.03.2020,ADULT SOCIAL CARE,THAMES HOMECARE SERVICE LTD,344.58,PHY LTS 65+,HOMECARE - SPOT,2103070432,1000079295
05.03.2020,ADULT SOCIAL CARE,THAMES HOMECARE SERVICE LTD,344.58,PHY LTS 65+,HOMECARE - SPOT,2103070455,1000079295
05.03.2020,ADULT SOCIAL CARE,THAMES HOMECARE SERVICE LTD,389.33,PHY LTS 65+,HOMECARE - SPOT,2103070436,1000079295
05.03.2020,ADULT SOCIAL CARE,THAMES HOMECARE SERVICE LTD,438.55,PHY LTS 65+,HOMECARE - SPOT,2103070444,1000079295
05.03.2020,ADULT SOCIAL CARE,THAMES HOMECARE SERVICE LTD,501.20,PHY LTS 65+,HOMECARE - SPOT,2103070434,1000079295
05.03.2020,ADULT SOCIAL CARE,THAMES HOMECARE SERVICE LTD,519.10,PHY LTS 65+,HOMECARE - SPOT,2103070422,1000079295
05.03.2020,ADULT SOCIAL CARE,THAMES HOMECARE SERVICE LTD,537.00,PHY LTS 65+,HOMECARE - SPOT,2103070381,1000079295
05.03.2020,ADULT SOCIAL CARE,THAMES HOMECARE SERVICE LTD,537.00,PHY LTS 65+,HOMECARE - SPOT,2103070394,1000079295
05.03.2020,ADULT SOCIAL CARE,THAMES HOMECARE SERVICE LTD,559.38,PHY LTS 65+,HOMECARE - SPOT,2103070378,1000079295
05.03.2020,ADULT SOCIAL CARE,THAMES HOMECARE SERVICE LTD,563.85,PHY LTS 65+,HOMECARE - SPOT,2103070424,1000079295
05.03.2020,ADULT SOCIAL CARE,THAMES HOMECARE SERVICE LTD,563.85,PHY LTS 65+,HOMECARE - SPOT,2103070457,1000079295
05.03.2020,ADULT SOCIAL CARE,THAMES HOMECARE SERVICE LTD,563.85,PHY LTS 65+,HOMECARE - SPOT,2103070458,1000079295
05.03.2020,ADULT SOCIAL CARE,THAMES HOMECARE SERVICE LTD,590.70,PHY LTS 65+,HOMECARE - SPOT,2103070431,1000079295
05.03.2020,ADULT SOCIAL CARE,THAMES HOMECARE SERVICE LTD,599.65,PHY LTS 65+,HOMECARE - SPOT,2103070389,1000079295
05.03.2020,ADULT SOCIAL CARE,THAMES HOMECARE SERVICE LTD,689.15,PHY LTS 65+,HOMECARE - SPOT,2103070439,1000079295
05.03.2020,ADULT SOCIAL CARE,THAMES HOMECARE SERVICE LTD,702.58,PHY LTS 65+,HOMECARE - SPOT,2103070400,1000079295
05.03.2020,ADULT SOCIAL CARE,THAMES HOMECARE SERVICE LTD,783.13,PHY LTS 65+,HOMECARE - SPOT,2103070419,1000079295
05.03.2020,ADULT SOCIAL CARE,THAMES HOMECARE SERVICE LTD,836.83,PHY LTS 65+,HOMECARE - SPOT,2103070375,1000079295
05.03.2020,ADULT SOCIAL CARE,THAMES HOMECARE SERVICE LTD,841.30,PHY LTS 65+,HOMECARE - SPOT,2103070416,1000079295
05.03.2020,ADULT SOCIAL CARE,THAMES HOMECARE SERVICE LTD,921.85,PHY LTS 65+,HOMECARE - SPOT,2103070456,1000079295
05.03.2020,ADULT SOCIAL CARE,THAMES HOMECARE SERVICE LTD,"1,029.25",PHY LTS 65+,HOMECARE - SPOT,2103070401,1000079295
05.03.2020,ADULT SOCIAL CARE,THAMES HOMECARE SERVICE LTD,"1,458.85",PHY LTS 65+,HOMECARE - SPOT,2103070402,1000079295
05.03.2020,ADULT SOCIAL CARE,WESTMINSTER HOMECARE LTD,369.36,PHY LTS 65+,HOMECARE - C&V,2103069867,1000075287
05.03.2020,ADULT SOCIAL CARE,WESTMINSTER HOMECARE LTD,282.72,PHY LTS 65+,HOMECARE - SPOT,2103069844,1000075287
05.03.2020,ADULT SOCIAL CARE,WESTMINSTER HOMECARE LTD,419.52,PHY LTS 65+,HOMECARE - SPOT,2103069860,1000075287
05.03.2020,ADULT SOCIAL CARE,WESTMINSTER HOMECARE LTD,437.76,PHY LTS 65+,HOMECARE - SPOT,2103069868,1000075287
05.03.2020,ADULT SOCIAL CARE,WESTMINSTER HOMECARE LTD,510.72,PHY LTS 65+,HOMECARE - SPOT,2103069854,1000075287
05.03.2020,ADULT SOCIAL CARE,WESTMINSTER HOMECARE LTD,620.16,PHY LTS 65+,HOMECARE - SPOT,2103069843,1000075287
05.03.2020,ADULT SOCIAL CARE,WESTMINSTER HOMECARE LTD,638.40,PHY LTS 65+,HOMECARE - SPOT,2103069847,1000075287
05.03.2020,ADULT SOCIAL CARE,WESTMINSTER HOMECARE LTD,674.88,PHY LTS 65+,HOMECARE - SPOT,2103069865,1000075287
05.03.2020,ADULT SOCIAL CARE,WESTMINSTER HOMECARE LTD,875.52,PHY LTS 65+,HOMECARE - SPOT,2103069859,1000075287
05.03.2020,ADULT SOCIAL CARE,WESTMINSTER HOMECARE LTD,893.76,PHY LTS 65+,HOMECARE - SPOT,2103069852,1000075287
05.03.2020,ADULT SOCIAL CARE,WESTMINSTER HOMECARE LTD,"1,222.08",PHY LTS 65+,HOMECARE - SPOT,2103069861,1000075287
05.03.2020,ADULT SOCIAL CARE,WESTMINSTER HOMECARE LTD,"1,263.12",PHY LTS 65+,HOMECARE - SPOT,2103069856,1000075287
05.03.2020,ADULT SOCIAL CARE,WESTMINSTER HOMECARE LTD,"1,295.04",PHY LTS 65+,HOMECARE - SPOT,2103069863,1000075287
05.03.2020,ADULT SOCIAL CARE,WESTMINSTER HOMECARE LTD,"1,422.72",PHY LTS 65+,HOMECARE - SPOT,2103069864,1000075287
05.03.2020,ADULT SOCIAL CARE,WESTMINSTER HOMECARE LTD,"1,605.12",PHY LTS 65+,HOMECARE - SPOT,2103069848,1000075287
05.03.2020,ADULT SOCIAL CARE,WESTMINSTER HOMECARE LTD,"2,298.24",PHY LTS 65+,HOMECARE - SPOT,2103069862,1000075287
05.03.2020,ADULT SOCIAL CARE,THAMES HOMECARE SERVICE LTD,313.25,PHY STS 18-64,HOMECARE - IC,2103070372,1000079295
05.03.2020,ADULT SOCIAL CARE,THAMES HOMECARE SERVICE LTD,313.25,PHY STS 65+,HOMECARE - IC,2103070403,1000079295
05.03.2020,ADULT SOCIAL CARE,THAMES HOMECARE SERVICE LTD,689.15,PHY STS 65+,HOMECARE - IC,2103070373,1000079295
05.03.2020,ADULT SOCIAL CARE,ELEANOR NURSING AND SOCIAL CARE LTD,917.04,SEN LTS 65+,HOMECARE - SPOT,2103069840,1000081695
05.03.2020,ADULT SOCIAL CARE,LONDON CARE LTD,569.50,SEN LTS 65+,HOMECARE - C&V,2103070216,1000003398
05.03.2020,ADULT SOCIAL CARE,LONDON CARE LTD,442.00,SOCIAL ISOLATION,HOMECARE - C&V,2103070199,1000003398
05.03.2020,ADULT SOCIAL CARE,LONDON CARE LTD,522.75,SOCIAL ISOLATION,HOMECARE - C&V,2103070100,1000003398
05.03.2020,ADULT SOCIAL CARE,LONDON CARE LTD,667.25,SOCIAL ISOLATION,HOMECARE - C&V,2103069934,1000003398
05.03.2020,ADULT SOCIAL CARE,LONDON CARE LTD,"1,020.00",SOCIAL ISOLATION,HOMECARE - C&V,2103070119,1000003398
05.03.2020,ADULT SOCIAL CARE,LONDON CARE LTD,"1,054.00",SOCIAL ISOLATION,HOMECARE - C&V,2103070239,1000003398
05.03.2020,ADULT SOCIAL CARE,LONDON CARE LTD,"1,320.05",SOCIAL ISOLATION,HOMECARE - C&V,2103069909,1000003398
05.03.2020,ADULT SOCIAL CARE,LONDON CARE LTD,"1,368.50",SOCIAL ISOLATION,HOMECARE - C&V,2103069914,1000003398
05.03.2020,ADULT SOCIAL CARE,WESTMINSTER HOMECARE LTD,383.04,SOCIAL ISOLATION,HOMECARE - SPOT,2103069855,1000075287
05.03.2020,ADULT SOCIAL CARE,SERVESOUL LTD,375.53,SUB LTS 18-64,HOMECARE - SPOT,2103070296,1000081503
05.03.2020,ADULT SOCIAL CARE,SERVESOUL LTD,375.53,SUB LTS 18-64,HOMECARE - SPOT,2103070326,1000081503
05.03.2020,ADULT SOCIAL CARE,WESTMINSTER HOMECARE LTD,410.40,SUB LTS 18-64,HOMECARE - SPOT,2103069866,1000075287
05.03.2020,ADULT SOCIAL CARE,CARE O LINE,811.25,TRANSITIONS 14-18YRS,SECTION 17 PAYMENTS TO AGENCIES/CARERS,2103070360,11241743
05.03.2020,ADULT SOCIAL CARE,CARE O LINE,"1,182.50",TRANSITIONS 14-18YRS,SECTION 17 PAYMENTS TO AGENCIES/CARERS,2103070358,11241743
05.03.2020,ASSET MANAGEMENT,QUINN NOBLE SOLICITORS,"2,500.00",DISREPAIR,PAYMENTS FOR LEGAL SERVICES,2103068945,1000083954
05.03.2020,ASSET MANAGEMENT,LONDON FIRE BRIGADE,339.00,ENG CONTRACTS (NORTH),LIFTS,5902406601,1000083629
05.03.2020,ASSET MANAGEMENT,LONDON FIRE BRIGADE,339.00,ENG CONTRACTS (NORTH),LIFTS,5902406602,1000083629
05.03.2020,ASSET MANAGEMENT,LONDON FIRE BRIGADE,339.00,ENG CONTRACTS (NORTH),LIFTS,5902406603,1000083629
05.03.2020,ASSET MANAGEMENT,LONDON FIRE BRIGADE,339.00,ENG CONTRACTS (NORTH),LIFTS,5902406604,1000083629
05.03.2020,ASSET MANAGEMENT,LONDON FIRE BRIGADE,339.00,ENG CONTRACTS (NORTH),LIFTS,5902406605,1000083629
05.03.2020,ASSET MANAGEMENT,LONDON FIRE BRIGADE,339.00,ENG CONTRACTS (NORTH),LIFTS,5902406607,1000083629
05.03.2020,ASSET MANAGEMENT,LADDERSTORE LTD,695.00,REPAIRS OPERATIONS,TRAINING,5902406066,1000083751
05.03.2020,CENTRAL FUNCTIONS,BRESLIN CONSTRUCTION LTD,"3,450.00",COMMERCIAL PROPERTIES,BUILDING R&M,2103070537,3000001948
05.03.2020,CENTRAL FUNCTIONS,KENT COUNTY COUNCIL - LASER,"7,512.15",HEATING ACCOUNT,ELECTRICITY,5902405977,1000012926
05.03.2020,CENTRAL FUNCTIONS,KENT COUNTY COUNCIL - LASER,"79,689.55",HEATING ACCOUNT,ELECTRICITY,5902405977,1000012926
05.03.2020,CENTRAL FUNCTIONS,KENT COUNTY COUNCIL - LASER,"19,627.67",HEATING ACCOUNT,GAS,5902405980,1000012926
05.03.2020,CENTRAL FUNCTIONS,KENT COUNTY COUNCIL - LASER,"1,115,481.45",HEATING ACCOUNT,GAS,5902405980,1000012926
05.03.2020,CENTRAL FUNCTIONS,NORTHGATE PUBLIC SERVICES (UK) LTD,"8,300.00",HOME OWNERSHIP,OFFICE EXPENSES,5902405877,1000037405
05.03.2020,CENTRAL FUNCTIONS,ALLPAY LTD,932.19,SERVICE LEVEL AGREEMENTS,BANK CHARGES,5902407015,1000043001
05.03.2020,CENTRAL FUNCTIONS,ALLPAY LTD,"1,049.74",SERVICE LEVEL AGREEMENTS,BANK CHARGES,5902407013,1000043001
05.03.2020,CENTRAL FUNCTIONS,ALLPAY LTD,"9,280.80",SERVICE LEVEL AGREEMENTS,BANK CHARGES,5902407021,1000043001
05.03.2020,CENTRAL FUNCTIONS,ALLPAY LTD,"9,698.53",SERVICE LEVEL AGREEMENTS,BANK CHARGES,5902407010,1000043001
05.03.2020,CHIEF EXECUTIVE,C S G (USHERS) LTD,"1,796.00",CAPITAL PS (REGEN),CONSTR'N SUB CONTRACT - NON CERTIFICATED,5902406987,1000073203
05.03.2020,CHIEF EXECUTIVE,KN NETWORK SERVICES LTD,"-107,079.43",CAPITAL PS (REGEN),CONSTRUCTION MAIN CONTRACT -CERTIFICATED,5902407428,3000002134
05.03.2020,CHIEF EXECUTIVE,KN NETWORK SERVICES LTD,"107,079.43",CAPITAL PS (REGEN),CONSTRUCTION MAIN CONTRACT -CERTIFICATED,5902407425,3000002134
05.03.2020,CHIEF EXECUTIVE,LDA DESIGN CONSULTING LTD,"5,527.32",CAPITAL PS (REGEN),CONSTRUCTION FEES - ARCHITECT,5902406981,1000031830
05.03.2020,CHIEF EXECUTIVE,MEANWHILE SPACE CIC,450.00,CAPITAL PS (REGEN),CONSTRUCTION FEES,5902407123,1000080134
05.03.2020,CHIEF EXECUTIVE,MEANWHILE SPACE CIC,"3,644.30",CAPITAL PS (REGEN),CONSTRUCTION FEES,5902407123,1000080134
05.03.2020,CHIEF EXECUTIVE,MEANWHILE SPACE CIC,"16,531.67",CAPITAL PS (REGEN),CONSTRUCTION FEES,5902407122,1000080134
05.03.2020,CHIEF EXECUTIVE,RED R DESIGN,"2,600.00",CAPITAL PS (REGEN),CONSTR'N SUB CONTRACT - NON CERTIFICATED,5902406993,1000035984
05.03.2020,CHIEF EXECUTIVE,STANDAGE & CO LTD,"30,540.54",CAPITAL PS (REGEN),CONSTRUCTION MAIN CONTRACT -CERTIFICATED,5902407131,11223389
05.03.2020,CHIEF EXECUTIVE'S OFFICE,HERNE HILL FORUM,"2,500.00",HERNE HILL,EXTERNAL AGENCIES AND BODIES,5902407069,1000046111
05.03.2020,CHILDREN AND ADULT,DAVID MILES & PARTNERS LTD,"3,428.74",CAPITAL PS (SOC SERV),CONSTRUCTION MAIN CONTRACT,5902407108,1000001119
05.03.2020,CHILDREN'S SERVICES,CHARLES ZACH GOMM,"1,200.00",ADOPTION REFORM GRANT (PART B),PROFESSIONAL FEES,5902407018,1000078536
05.03.2020,CHILDREN'S SERVICES,KENT COUNTY COUNCIL - LASER,"1,686.01",BUILDING SUMNER,GAS,5902406988,1000012926
05.03.2020,CHILDREN'S SERVICES,KENT COUNTY COUNCIL - LASER,"2,359.63",BUILDING SUMNER,GAS,5902406985,1000012926
05.03.2020,CHILDREN'S SERVICES,CORAM VOICE,"22,237.00",CHILDRENS ADVOCACY & INDEPENDENT VISITOR,EXTERNAL AGENCIES AND BODIES,5902407040,1000076392
05.03.2020,CHILDREN'S SERVICES,EMERITUS CONSULTANCY LTD,"3,050.00",CHILDREN'S DEVELOPMENT,PROFESSIONAL FEES,5902405936,1000083344
05.03.2020,CHILDREN'S SERVICES,CAMBRIDGE HOUSE & TALBOT,500.00,FREE AND EARLY LEARNING TEAM,TRAINING,5902406701,11248874
05.03.2020,CHILDREN'S SERVICES,CAMBRIDGE HOUSE & TALBOT,704.00,FREE AND EARLY LEARNING TEAM,TRAINING,5902406701,11248874
05.03.2020,CHILDREN'S SERVICES,CAMBRIDGE HOUSE & TALBOT,704.00,FREE AND EARLY LEARNING TEAM,TRAINING,5902406701,11248874
05.03.2020,CHILDREN'S SERVICES,INTEGRATED SERVICES PROGRAMME,750.00,FRIENDS & FAMILY FOSTERING,EXTERNAL AGENCIES AND BODIES,5902405864,1642068
05.03.2020,CHILDREN'S SERVICES,LIGHTHOUSE FOSTERING LTD,"5,394.83",FRIENDS & FAMILY FOSTERING,EXTERNAL AGENCIES AND BODIES,2103070356,1000080372
05.03.2020,CHILDREN'S SERVICES,REDACTED PERSONAL DATA,868.58,FRIENDS & FAMILY FOSTERING,PAYMENTS TO CARERS,REDACTED,REDACTED
05.03.2020,CHILDREN'S SERVICES,ANGEL OAK ACADEMY,763.20,NURSERY ED GRANT 3 AND 4 YR OLDS,GRANTS,2103069772,1000075379
05.03.2020,CHILDREN'S SERVICES,ARK SCHOOLS T/A GLOBE ACADEMY,286.20,NURSERY ED GRANT 3 AND 4 YR OLDS,GRANTS,2103069784,1000060008
05.03.2020,CHILDREN'S SERVICES,BEORMUND COMMUNITY CENTRE,286.20,NURSERY ED GRANT 3 AND 4 YR OLDS,GRANTS,2103069790,1029218
05.03.2020,CHILDREN'S SERVICES,CAMBERWELL AFTER SCHOOL PROJECT,477.00,NURSERY ED GRANT 3 AND 4 YR OLDS,GRANTS,2103069775,1000051625
05.03.2020,CHILDREN'S SERVICES,CTY NURSERY LTD,572.40,NURSERY ED GRANT 3 AND 4 YR OLDS,GRANTS,2103070535,1000063131
05.03.2020,CHILDREN'S SERVICES,DULWICH MONTESSORI NURSERY SCHOOL,286.20,NURSERY ED GRANT 3 AND 4 YR OLDS,GRANTS,2103069777,1000020859
05.03.2020,CHILDREN'S SERVICES,DYASON PRE-SCHOOL,572.40,NURSERY ED GRANT 3 AND 4 YR OLDS,GRANTS,2103069779,11255736
05.03.2020,CHILDREN'S SERVICES,ELEPHANT & CASTLE DAY NURSERY LTD,954.00,NURSERY ED GRANT 3 AND 4 YR OLDS,GRANTS,2103069781,11329999
05.03.2020,CHILDREN'S SERVICES,GOOSE GREEN PRIMARY AND NURSERY SCHOOL,"1,049.40",NURSERY ED GRANT 3 AND 4 YR OLDS,GRANTS,2103069785,1000070613
05.03.2020,CHILDREN'S SERVICES,HEAVEN SENT NURSERY LTD,572.40,NURSERY ED GRANT 3 AND 4 YR OLDS,GRANTS,2103069789,1000071859
05.03.2020,CHILDREN'S SERVICES,JOHN DONNE PRIMARY SCHOOL,"2,003.40",NURSERY ED GRANT 3 AND 4 YR OLDS,GRANTS,2103069791,1000073253
05.03.2020,CHILDREN'S SERVICES,LITTLE ACORNS DAY NURSERY,381.60,NURSERY ED GRANT 3 AND 4 YR OLDS,GRANTS,2103069793,1000015844
05.03.2020,CHILDREN'S SERVICES,LONDON EARLY YEARS FOUNDATION,286.20,NURSERY ED GRANT 3 AND 4 YR OLDS,GRANTS,2103069774,1000077919
05.03.2020,CHILDREN'S SERVICES,NEW VISION DAY NURSERY,381.60,NURSERY ED GRANT 3 AND 4 YR OLDS,GRANTS,2103069798,1000041971
05.03.2020,CHILDREN'S SERVICES,PLAYSHACK PLAYGROUP,286.20,NURSERY ED GRANT 3 AND 4 YR OLDS,GRANTS,2103069800,1608859
05.03.2020,CHILDREN'S SERVICES,POPPYS DAY NURSERY,286.20,NURSERY ED GRANT 3 AND 4 YR OLDS,GRANTS,2103069801,1000080085
05.03.2020,CHILDREN'S SERVICES,REDRIFF PRIMARY SCHOOL,381.60,NURSERY ED GRANT 3 AND 4 YR OLDS,GRANTS,2103069803,1000067877
05.03.2020,CHILDREN'S SERVICES,ST JOHNS PRE SCHOOL,286.20,NURSERY ED GRANT 3 AND 4 YR OLDS,GRANTS,2103069806,1000013380
05.03.2020,CHILDREN'S SERVICES,SURREY SQUARE PRIMARY SCHOOL,"1,049.40",NURSERY ED GRANT 3 AND 4 YR OLDS,GRANTS,2103069807,1000082648
05.03.2020,CHILDREN'S SERVICES,THE FRUIT TREE DAY NURSERY,286.20,NURSERY ED GRANT 3 AND 4 YR OLDS,GRANTS,2103069808,1000072492
05.03.2020,CHILDREN'S SERVICES,TINU ODEKU T/A LITTLE ANGELS CHILDCARE SERVICES,477.00,NURSERY ED GRANT 3 AND 4 YR OLDS,GRANTS,2103069794,1000058464
05.03.2020,CHILDREN'S SERVICES,VICTORY IN COMMUNITY RESOURCE CENTRE,572.40,NURSERY ED GRANT 3 AND 4 YR OLDS,GRANTS,2103069810,1000058383
05.03.2020,CHILDREN'S SERVICES,HOLIBROOK HOUSE LTD,"21,788.57",RESIDENTIAL,RESIDENTIAL CARE,2103070349,1000067873
05.03.2020,CHILDREN'S SERVICES,CONTACT PROFESSIONALS,"3,260.40",RESOURCE PANEL,OTHER PAYMENTS FOR CLIENTS,5902406894,1000057263
05.03.2020,CHILDREN'S SERVICES,CARE O LINE,900.00,S & FAM SUPP - PRAC GRP B SET 17-19,OTHER PAYMENTS FOR CLIENTS,2103070362,11241743
05.03.2020,CHILDREN'S SERVICES,CARE O LINE,"1,050.00",S & FAM SUPP - PRAC GRP B SET 17-19,OTHER PAYMENTS FOR CLIENTS,2103070363,11241743
05.03.2020,CHILDREN'S SERVICES,CARE O LINE,"1,050.00",S & FAM SUPP - PRAC GRP B SET 17-19,OTHER PAYMENTS FOR CLIENTS,2103070364,11241743
05.03.2020,CHILDREN'S SERVICES,CARE O LINE,"1,050.00",S & FAM SUPP - PRAC GRP B SET 17-19,OTHER PAYMENTS FOR CLIENTS,2103070365,11241743
05.03.2020,CHILDREN'S SERVICES,ZENITH CARS LTD,"2,017.00",S & FAM SUPP - PRAC GRP F SET 29-31,HIRED VEHICLES,5902406892,1000070570
05.03.2020,CHILDREN'S SERVICES,ABOVE BEYOND CARE,"4,039.29",SEMI INDEPENDENT CARE LEAVERS,EXTERNAL AGENCIES AND BODIES,2103070266,1000063478
05.03.2020,CHILDREN'S SERVICES,ADULLAM SUPPORT LTD,"2,796.43",SEMI INDEPENDENT CARE LEAVERS,EXTERNAL AGENCIES AND BODIES,2103070276,1000081148
05.03.2020,CHILDREN'S SERVICES,BRIGHT YOUNG FUTURES LTD,"2,035.71",SEMI INDEPENDENT CARE LEAVERS,EXTERNAL AGENCIES AND BODIES,2103069744,1000083958
05.03.2020,CHILDREN'S SERVICES,BRIGHT YOUNG FUTURES LTD,"3,935.71",SEMI INDEPENDENT CARE LEAVERS,EXTERNAL AGENCIES AND BODIES,2103069747,1000083958
05.03.2020,CHILDREN'S SERVICES,CITYGLEN LTD,833.00,SEMI INDEPENDENT CARE LEAVERS,EXTERNAL AGENCIES AND BODIES,2103070368,1000026239
05.03.2020,CHILDREN'S SERVICES,CORNERSTONE CARE PARTNERSHIP LTD,"1,179.42",SEMI INDEPENDENT CARE LEAVERS,EXTERNAL AGENCIES AND BODIES,2103070504,1000078888
05.03.2020,CHILDREN'S SERVICES,FUTURE FOUNDATIONS LTD,"1,272.00",SEMI INDEPENDENT CARE LEAVERS,EXTERNAL AGENCIES AND BODIES,2103070493,1000063272
05.03.2020,CHILDREN'S SERVICES,FUTURE FOUNDATIONS LTD,"1,611.57",SEMI INDEPENDENT CARE LEAVERS,EXTERNAL AGENCIES AND BODIES,2103070497,1000063272
05.03.2020,CHILDREN'S SERVICES,FUTURE FOUNDATIONS LTD,"2,245.42",SEMI INDEPENDENT CARE LEAVERS,EXTERNAL AGENCIES AND BODIES,2103070507,1000063272
05.03.2020,CHILDREN'S SERVICES,FUTURE FOUNDATIONS LTD,"2,436.00",SEMI INDEPENDENT CARE LEAVERS,EXTERNAL AGENCIES AND BODIES,2103070498,1000063272
05.03.2020,CHILDREN'S SERVICES,FUTURE FOUNDATIONS LTD,"2,721.85",SEMI INDEPENDENT CARE LEAVERS,EXTERNAL AGENCIES AND BODIES,2103070494,1000063272
05.03.2020,CHILDREN'S SERVICES,FUTURE FOUNDATIONS LTD,"2,721.85",SEMI INDEPENDENT CARE LEAVERS,EXTERNAL AGENCIES AND BODIES,2103070500,1000063272
05.03.2020,CHILDREN'S SERVICES,FUTURE FOUNDATIONS LTD,"2,912.42",SEMI INDEPENDENT CARE LEAVERS,EXTERNAL AGENCIES AND BODIES,2103070505,1000063272
05.03.2020,CHILDREN'S SERVICES,FUTURE FOUNDATIONS LTD,"4,134.57",SEMI INDEPENDENT CARE LEAVERS,EXTERNAL AGENCIES AND BODIES,2103070499,1000063272
05.03.2020,CHILDREN'S SERVICES,TELFORD & WREKIN COUNCIL,"2,038.50",SEMI INDEPENDENT CARE LEAVERS,EXTERNAL AGENCIES AND BODIES,2103070367,1000083186
05.03.2020,CHILDREN'S SERVICES,YOUNG FUTURES,-845.06,SEMI INDEPENDENT CARE LEAVERS,EXTERNAL AGENCIES AND BODIES,2103070264,1000059563
05.03.2020,CHILDREN'S SERVICES,YOUNG FUTURES,-845.06,SEMI INDEPENDENT CARE LEAVERS,EXTERNAL AGENCIES AND BODIES,2103070272,1000059563
05.03.2020,CHILDREN'S SERVICES,YOUNG FUTURES,-845.06,SEMI INDEPENDENT CARE LEAVERS,EXTERNAL AGENCIES AND BODIES,2103070273,1000059563
05.03.2020,CHILDREN'S SERVICES,YOUNG FUTURES,-845.06,SEMI INDEPENDENT CARE LEAVERS,EXTERNAL AGENCIES AND BODIES,2103070278,1000059563
05.03.2020,CHILDREN'S SERVICES,YOUNG FUTURES,"2,071.47",SEMI INDEPENDENT CARE LEAVERS,EXTERNAL AGENCIES AND BODIES,2103070268,1000059563
05.03.2020,CHILDREN'S SERVICES,YOUNG FUTURES,"2,071.47",SEMI INDEPENDENT CARE LEAVERS,EXTERNAL AGENCIES AND BODIES,2103070274,1000059563
05.03.2020,CHILDREN'S SERVICES,YOUNG FUTURES,"2,286.94",SEMI INDEPENDENT CARE LEAVERS,EXTERNAL AGENCIES AND BODIES,2103070277,1000059563
05.03.2020,CHILDREN'S SERVICES,YOUNG FUTURES,"2,610.00",SEMI INDEPENDENT CARE LEAVERS,EXTERNAL AGENCIES AND BODIES,2103070269,1000059563
05.03.2020,CHILDREN'S SERVICES,YOUNG FUTURES,"3,148.53",SEMI INDEPENDENT CARE LEAVERS,EXTERNAL AGENCIES AND BODIES,2103070271,1000059563
05.03.2020,CHILDREN'S SERVICES,YOUNG FUTURES,"3,687.06",SEMI INDEPENDENT CARE LEAVERS,EXTERNAL AGENCIES AND BODIES,2103070262,1000059563
05.03.2020,CHILDREN'S SERVICES,ABOVE BEYOND CARE,"3,521.43",SEMI INDEPENDENT LAC,EXTERNAL AGENCIES AND BODIES,2103070279,1000063478
05.03.2020,CHILDREN'S SERVICES,ADULLAM SUPPORT LTD,"1,290.25",SEMI INDEPENDENT LAC,EXTERNAL AGENCIES AND BODIES,2103070275,1000081148
05.03.2020,CHILDREN'S SERVICES,BRANCH OUT SUPPORT SERVICES LTD,"37,760.00",SEMI INDEPENDENT LAC,EXTERNAL AGENCIES AND BODIES,2103070366,1000083874
05.03.2020,CHILDREN'S SERVICES,FUTURE FOUNDATIONS LTD,"4,134.57",SEMI INDEPENDENT LAC,EXTERNAL AGENCIES AND BODIES,2103070509,1000063272
05.03.2020,CHILDREN'S SERVICES,HEARTWOOD OUTREACH SERVICES LTD,649.40,SEMI INDEPENDENT LAC,OTHER PAYMENTS FOR CLIENTS,2103070280,1000075021
05.03.2020,CHILDREN'S SERVICES,REDACTED PERSONAL DATA,350.00,SEMI INDEPENDENT LAC,OTHER PAYMENTS FOR CLIENTS,REDACTED,REDACTED
05.03.2020,CHILDREN'S SERVICES,SILVER BIRCH CARE LTD,265.71,SEMI INDEPENDENT LAC,OTHER PAYMENTS FOR CLIENTS,2103070510,1000076525
05.03.2020,CHILDREN'S SERVICES,YOUNG FUTURES,-845.06,SEMI INDEPENDENT LAC,EXTERNAL AGENCIES AND BODIES,2103070267,1000059563
05.03.2020,CHILDREN'S SERVICES,YOUNG FUTURES,"2,610.00",SEMI INDEPENDENT LAC,EXTERNAL AGENCIES AND BODIES,2103070270,1000059563
05.03.2020,CHILDREN'S SERVICES,YOUNG FUTURES,"7,664.12",SEMI INDEPENDENT LAC,EXTERNAL AGENCIES AND BODIES,2103070281,1000059563
05.03.2020,CHILDREN'S SERVICES,FUTURE FOUNDATIONS LTD,"1,611.57",UASC CARE LEAVERS,EXTERNAL AGENCIES AND BODIES,2103070491,1000063272
05.03.2020,CHILDREN'S SERVICES,FUTURE FOUNDATIONS LTD,"1,611.57",UASC CARE LEAVERS,EXTERNAL AGENCIES AND BODIES,2103070495,1000063272
05.03.2020,CHILDREN'S SERVICES,FUTURE FOUNDATIONS LTD,"1,611.57",UASC CARE LEAVERS,EXTERNAL AGENCIES AND BODIES,2103070496,1000063272
05.03.2020,CHILDREN'S SERVICES,FUTURE FOUNDATIONS LTD,"1,611.57",UASC CARE LEAVERS,EXTERNAL AGENCIES AND BODIES,2103070503,1000063272
05.03.2020,CHILDREN'S SERVICES,FUTURE FOUNDATIONS LTD,"1,611.57",UASC CARE LEAVERS,EXTERNAL AGENCIES AND BODIES,2103070506,1000063272
05.03.2020,CHILDREN'S SERVICES,FUTURE FOUNDATIONS LTD,"2,340.71",UASC CARE LEAVERS,EXTERNAL AGENCIES AND BODIES,2103070501,1000063272
05.03.2020,CHILDREN'S SERVICES,FUTURE FOUNDATIONS LTD,"2,436.00",UASC CARE LEAVERS,EXTERNAL AGENCIES AND BODIES,2103070508,1000063272
05.03.2020,CHILDREN'S SERVICES,FUTURE FOUNDATIONS LTD,"2,912.42",UASC CARE LEAVERS,EXTERNAL AGENCIES AND BODIES,2103070502,1000063272
05.03.2020,CHILDREN'S SERVICES,YOUNG FUTURES,"2,071.47",UASC CARE LEAVERS,EXTERNAL AGENCIES AND BODIES,2103070265,1000059563
05.03.2020,CHILDREN'S SERVICES,YOUNG FUTURES,"3,065.59",UASC CARE LEAVERS,EXTERNAL AGENCIES AND BODIES,2103070263,1000059563
05.03.2020,COMMUNITIES PROJECTS,DR LUXMAN PARIMELALAGAN,"1,650.00",ANCILLARY AND RECOVERY SERVICES,CONSULTANTS SERVICES,5902405780,1000080716
05.03.2020,COMMUNITIES PROJECTS,ELEANOR NURSING AND SOCIAL CARE LTD,"1,146.28",NO RECOURSE TO PUBLIC FUNDS,HOMECARE - C&V,2103069829,1000081695
05.03.2020,COMMUNITIES PROJECTS,SOUTHSIDE PARTNERSHIP LTD,"1,224.67",NO RECOURSE TO PUBLIC FUNDS,ACCOMMODATION CHARGES,5902406967,1716624
05.03.2020,COMMUNITIES PROJECTS,SOUTHSIDE PARTNERSHIP LTD,"2,665.68",NO RECOURSE TO PUBLIC FUNDS,ACCOMMODATION CHARGES,5902406963,1716624
05.03.2020,COMMUNITIES PROJECTS,THAMES HOMECARE SERVICE LTD,375.90,NO RECOURSE TO PUBLIC FUNDS,HOMECARE - C&V,2103070376,1000079295
05.03.2020,COMMUNITIES PROJECTS,THAMES HOMECARE SERVICE LTD,"1,315.65",NO RECOURSE TO PUBLIC FUNDS,HOMECARE - C&V,2103070452,1000079295
05.03.2020,COMMUNITIES PROJECTS,WESTMINSTER HOMECARE LTD,"1,167.36",NO RECOURSE TO PUBLIC FUNDS,HOMECARE - C&V,2103069851,1000075287
05.03.2020,CUSTOMER EXPERIENCE,GOVNET COMMUNICATIONS,890.00,COMPLAINTS,TRAINING,5902406922,1000050132
05.03.2020,CUSTOMER EXPERIENCE HGF,ABLE 2 OCCUPATIONAL THERAPY SERVICE,"1,162.00",BLUE BADGES,PROFESSIONAL FEES,5902407129,1000064695
05.03.2020,CUSTOMER EXPERIENCE HGF,REDACTED PERSONAL DATA,"1,100.00",HOMELESS PROJECTS,GRANTS,REDACTED,REDACTED
05.03.2020,CUSTOMER EXPERIENCE HGF,QUINARY LTD,"5,972.55",NIGHTLY TA (NSC),EXTERNAL AGENCIES AND BODIES,5902407052,1000029106
05.03.2020,CUSTOMER EXPERIENCE HGF,SK HOUSING LTD,"15,462.40",NIGHTLY TA (NSC),EXTERNAL AGENCIES AND BODIES,5902407081,1000070716
05.03.2020,ENVIRONMENT DIRECTORATE,ANGLESEY BOLLARD LTD,977.50,ENGINEERING CRAFTS,MATERIALS,5902407044,1000068368
05.03.2020,ENVIRONMENT DIRECTORATE,ANGLESEY BOLLARD LTD,"4,480.00",ENGINEERING CRAFTS,MATERIALS,5902407046,1000068368
05.03.2020,ENVIRONMENT DIRECTORATE,GREENHAM TRADING LTD,288.00,ESTATE CLEANING-GENERAL,MATERIALS,5902407125,1000006610
05.03.2020,ENVIRONMENT DIRECTORATE,AGENTIS WORKWEAR LTD,670.00,MANAGEMENT TEAM,"CLOTHING, UNIFORMS & LAUNDRY",5902406910,1000065561
05.03.2020,ENVIRONMENT DIRECTORATE,ASD LIGHTING PLC,-354.75,PUBLIC LIGHTING,MATERIALS,5902407063,1000079671
05.03.2020,ENVIRONMENT DIRECTORATE,ASD LIGHTING PLC,354.75,PUBLIC LIGHTING,MATERIALS,5902407062,1000079671
05.03.2020,ENVIRONMENT DIRECTORATE,ASD LIGHTING PLC,514.00,PUBLIC LIGHTING,MATERIALS,5902407060,1000079671
05.03.2020,ENVIRONMENT DIRECTORATE,ASD LIGHTING PLC,709.75,PUBLIC LIGHTING,MATERIALS,5902407060,1000079671
05.03.2020,ENVIRONMENT DIRECTORATE,ASD LIGHTING PLC,"1,028.00",PUBLIC LIGHTING,MATERIALS,5902407060,1000079671
05.03.2020,ENVIRONMENT DIRECTORATE,AUTOPARTS CHARGE N START LTD,"1,400.00",PUBLIC LIGHTING,MATERIALS,5902407042,1000061638
05.03.2020,ENVIRONMENT DIRECTORATE,GRAFTON MERCHANTING GB LTD,317.50,PUBLIC LIGHTING,MATERIALS,5902407041,11296147
05.03.2020,ENVIRONMENT DIRECTORATE,INSTARMAC GROUP PLC,627.20,PUBLIC LIGHTING,MATERIALS,5902407057,1000070786
05.03.2020,ENVIRONMENT DIRECTORATE,MARWOOD ELECTRICAL COMPANY LTD,"9,823.92",PUBLIC LIGHTING,MATERIALS,5902407067,1001874
05.03.2020,ENVIRONMENT DIRECTORATE,SKILLS TRAINING CENTRE LTD,299.00,PUBLIC LIGHTING,TRAINING,5902407005,1000059249
05.03.2020,ENVIRONMENT DIRECTORATE,EALING PROPERTIES LTD,"1,020.00",RESIDENTIAL SERVICES,MANDATORY STATUTORY FEES & CHARGES,5902404111,1000083879
05.03.2020,ENVIRONMENT DIRECTORATE,TUDOR MARKETS LTD,"3,200.00",STREET TRADING A/C,PROFESSIONAL FEES,5902407118,1000083850
05.03.2020,ENVIRONMENT DIRECTORATE,VEOLIA ES SOUTHWARK LTD,"1,931,232.54",WASTE PFI,PFI/PPP PAYMENTS,5902407050,1000056979
05.03.2020,ENVIRONMENT DIRECTORATE,VEOLIA ES SOUTHWARK LTD,"1,931,313.53",WASTE PFI,PFI/PPP PAYMENTS,5902407055,1000056979
05.03.2020,ENVIRONMENT DIRECTORATE,VEOLIA ES SOUTHWARK LTD,"1,945,793.75",WASTE PFI,PFI/PPP PAYMENTS,5902407053,1000056979
05.03.2020,ENVIRONMENT DIRECTORATE,VEOLIA ES SOUTHWARK LTD,"2,019,472.87",WASTE PFI,PFI/PPP PAYMENTS,5902407051,1000056979
05.03.2020,ENVIRONMENT DIRECTORATE,VEOLIA ES SOUTHWARK LTD,"2,128,767.75",WASTE PFI,PFI/PPP PAYMENTS,5902407047,1000056979
05.03.2020,EXCHEQUER SERVICES,CAOS CONFLICT MANAGEMENT,"1,270.00",ADMINISTRATIVE SUPPORT,TRAINING,5902406241,1000080649
05.03.2020,EXCHEQUER SERVICES,NORTHGATE PUBLIC SERVICES (UK) LTD,"15,000.00",ADMINISTRATIVE SUPPORT,SOFTWARE,5902406955,1000037405
05.03.2020,EXCHEQUER SERVICES,CAPITA BUSINESS SERVICES LTD,"24,636.92",CAPITA,OTHER CONTRACTORS,5902406952,1000049446
05.03.2020,EXCHEQUER SERVICES,ALLPAY LTD,559.05,CASHIERS SLA,BANK CHARGES,5902407002,1000043001
05.03.2020,EXCHEQUER SERVICES,ALLPAY LTD,823.71,CASHIERS SLA,BANK CHARGES,5902406999,1000043001
05.03.2020,EXCHEQUER SERVICES,ALLPAY LTD,"2,365.67",CASHIERS SLA,BANK CHARGES,5902407003,1000043001
05.03.2020,EXCHEQUER SERVICES,ALLPAY LTD,"3,484.60",CASHIERS SLA,BANK CHARGES,5902407000,1000043001
05.03.2020,EXCHEQUER SERVICES,GAGE PROJECT MANAGEMENT LTD,"1,781.25",PROJECTS,OTHER CONTRACTORS,5902406970,1000083372
05.03.2020,HOUSING GENERAL FUND,PORTAKABIN LIMITED,"1,620.66",CAPITAL PS (HOUSING GF),LAND & BUILDINGS ACQUISITION,5902406938,1000015195
05.03.2020,HOUSING GENERAL FUND,STANNAH LIFT SERVICES LTD,"2,673.00",CAPITAL PS (HOUSING GF),CAPITAL GRANTS,5902406968,1063595
05.03.2020,HOUSING GENERAL FUND,DAVID MILES & PARTNERS LTD,"1,000.00",CAPITAL PS (REGEN),CONSTRUCTION MAIN CONTRACT,5902406658,1000001119
05.03.2020,HOUSING GENERAL FUND,INFINITY NETWORKS LTD,"3,747.00",CAPITAL PS (REGEN),CONSTRUCTION MAIN CONTRACT,5902406118,1000035571
05.03.2020,HOUSING HRA,BNP PARIBAS REAL ESTATE ADVISORY & PROPERTY MANAGEMENT,"1,500.00",CAPITAL PS (HRA),CONSTRUCTION FEES  - EXTERNAL,5902405707,1000053153
05.03.2020,HOUSING HRA,CALFORD SEADEN LLP,"2,125.73",CAPITAL PS (HRA),CONSTRUCTION FEES  - EXTERNAL,5902406946,1061592
05.03.2020,HOUSING HRA,CALFORD SEADEN LLP,"10,792.40",CAPITAL PS (HRA),CONSTRUCTION FEES  - EXTERNAL,5902406921,1061592
05.03.2020,HOUSING HRA,ENGIE REGENERATION (APOLLO) LTD,"21,675.73",CAPITAL PS (HRA),CONSTRUCTION MAIN CONTRACT -CERTIFICATED,2103070534,4000449
05.03.2020,HOUSING HRA,ENGIE REGENERATION (APOLLO) LTD,"30,130.28",CAPITAL PS (HRA),CONSTRUCTION MAIN CONTRACT -CERTIFICATED,2103070532,4000449
05.03.2020,HOUSING HRA,ENGIE REGENERATION (APOLLO) LTD,"31,600.71",CAPITAL PS (HRA),CONSTRUCTION MAIN CONTRACT -CERTIFICATED,2103070533,4000449
05.03.2020,HOUSING HRA,ENGIE REGENERATION (APOLLO) LTD,"53,939.23",CAPITAL PS (HRA),CONSTRUCTION MAIN CONTRACT -CERTIFICATED,2103070530,4000449
05.03.2020,HOUSING HRA,FRANKHAM CONSULTANCY GROUP LTD,721.97,CAPITAL PS (HRA),CONST'N MAIN CONTRACT - NON CERTIFICATED,5902407127,1000043952
05.03.2020,HOUSING HRA,FRANKHAM CONSULTANCY GROUP LTD,819.63,CAPITAL PS (HRA),CONST'N MAIN CONTRACT - NON CERTIFICATED,5902407128,1000043952
05.03.2020,HOUSING HRA,FRANKHAM CONSULTANCY GROUP LTD,"1,300.00",CAPITAL PS (HRA),CONST'N MAIN CONTRACT - NON CERTIFICATED,5902407126,1000043952
05.03.2020,HOUSING HRA,SALTASH ENTERPRISES LTD,"307,846.42",CAPITAL PS (HRA),CONSTRUCTION MAIN CONTRACT -CERTIFICATED,2103070536,4013605
05.03.2020,LEISURE DIRECTORATE,NIKKI CRANE,"3,500.00",ARTS PROJECT,CONSULTANTS SERVICES,5902407119,1000082353
05.03.2020,LEISURE DIRECTORATE,NPOWER LTD,290.92,BURGESS AREA TEAM,ELECTRICITY,5902406909,1000078994
05.03.2020,LEISURE DIRECTORATE,NPOWER LTD,360.88,BURGESS AREA TEAM,ELECTRICITY,5902406918,1000078994
05.03.2020,LEISURE DIRECTORATE,NPOWER LTD,"1,300.07",BURGESS AREA TEAM,ELECTRICITY,5902406965,1000078994
05.03.2020,LEISURE DIRECTORATE,NPOWER LTD,"5,005.19",BURGESS AREA TEAM,ELECTRICITY,5902406965,1000078994
05.03.2020,LEISURE DIRECTORATE,WARWICK LANDSCAPING LTD,"26,711.87",CEMETERIES,OTHER R&M,2103068866,3000001705
05.03.2020,LEISURE DIRECTORATE,ACTIVE COMMUNITIES NETWORK LTD,"1,750.00",COMMUNITY SPORTS DEVELOPMENT,GRANTS,5902406950,1000057408
05.03.2020,LEISURE DIRECTORATE,WESTMINSTER WASTE,795.00,CREMATORIUM,OTHER CONTRACTORS,5902406924,1000080933
05.03.2020,LEISURE DIRECTORATE,TECHNICAL SURFACES,413.75,DAMILOLA TAYLOR CENTRE,EQUIPMENT PURCHASE & REPAIR,5902407012,1000011451
05.03.2020,LEISURE DIRECTORATE,PENNINGTON CHOICES LTD,325.00,FACILITIES MAINTENANCE,BUILDING R&M,5902407130,1000067888
05.03.2020,LEISURE DIRECTORATE,COMBINED PRECISION COMPONENTS PLC,260.50,SDM BUDGET,MATERIALS,5902406635,1000021821
05.03.2020,LEISURE DIRECTORATE,ASKEWS & HOLTS LIBRARY SERVICES LTD,"1,131.70",STOCK SERVICES,BOOKS & PUBLICATIONS,5902406240,1494168
05.03.2020,LEISURE DIRECTORATE,ASKEWS & HOLTS LIBRARY SERVICES LTD,"18,774.01",STOCK SERVICES,BOOKS & PUBLICATIONS,5902406239,1494168
05.03.2020,LEISURE DIRECTORATE,ADVANCED TREE SERVICES LTD,"23,650.00",TREES PRINCIPAL ROADS,OTHER CONTRACTORS,5902407107,1000079711
05.03.2020,LEISURE DIRECTORATE,ADVANCED TREE SERVICES LTD,"43,000.00",TREES PRINCIPAL ROADS,OTHER CONTRACTORS,5902407114,1000079711
05.03.2020,LEISURE DIRECTORATE,C S G (USHERS) LTD,"3,000.00",TREES PRINCIPAL ROADS,OTHER CONTRACTORS,5902406989,1000073203
05.03.2020,LEISURE DIRECTORATE,GRISTWOOD & TOMS LTD,"19,238.00",TREES PRINCIPAL ROADS,OTHER CONTRACTORS,5902407096,1000028580
05.03.2020,MODERNISATION HGF,DISPOSABLES AND CATERING SUPPLIES LTD,"4,231.44",160 TOOLEY ST.,OFFICE EXPENSES,5902406974,1000082869
05.03.2020,MODERNISATION HGF,ROYAL MAIL GROUP LTD,"4,443.75",160 TOOLEY ST.,POSTAGES,5902406620,1000008168
05.03.2020,MODERNISATION HGF,KENT COUNTY COUNCIL - LASER,711.87,34 PECKHAM ROAD,GAS,5902406979,1000012926
05.03.2020,MODERNISATION HGF,SAP (UK) LTD,"111,989.03",APPLICATIONS,SOFTWARE,5902406937,1000002550
05.03.2020,MODERNISATION HGF,MINDAPPLES TRADING LTD,"2,985.00",CORPORATE TRAINING BUDGETS,TRAINING,5902406973,1000080028
05.03.2020,MODERNISATION HGF,JOHN STATTERS ASSOCIATES,"5,652.50",OCCUPATIONAL ASSESSMENT,CONSULTANTS SERVICES,5902407104,1000065600
05.03.2020,MODERNISATION HGF,SHERRIDAN HUGHES,"2,025.00",OCCUPATIONAL ASSESSMENT,CONSULTANTS SERVICES,5902406914,1000074250
05.03.2020,MODERNISATION HGF,COMENSURA LTD,"623,698.63",WEEKLY PAYMENTS,AGENCY STAFF,5902407111,1000051261
05.03.2020,NEW BUILD,CRESPO DESIGN LTD,"3,000.00",DEVELOPMENT DELIVERY,PROFESSIONAL FEES,5902406986,1000075973
05.03.2020,PH DIRECTORS TEAM,COMUZI LTD,570.00,PH DIRECTOR'S TEAM,EXTERNAL AGENCIES AND BODIES,5902406998,1000084003
05.03.2020,PH DIRECTORS TEAM,COMUZI LTD,"6,730.00",PH DIRECTOR'S TEAM,EXTERNAL AGENCIES AND BODIES,5902406998,1000084003
05.03.2020,REGENERATION,MLM CONSULTING ENGINEERS LTD,"2,970.00",BLACKFRIARS ROAD PROJECT,PROFESSIONAL FEES,5902406895,1000059806
05.03.2020,RESIDENT SERVICES,ENGIE REGENERATION (APOLLO) LTD,"21,353.39",SHELTERED NORTH,EXTERNAL DECORATIONS,2103070531,4000449
05.03.2020,RESIDENT SERVICES,CHARTWELLS,"4,931.00",SUPPORTED HOSTELS,CATERING MATERIALS & SUPPLIES,5902406917,1000010625
05.03.2020,SOUTHWARK SCHOOL FOR FUTURE,JOHN BURKE ASSOCIATES,"2,440.00",CAPITAL PS (REGEN),CONSTRUCTION MAIN CONTRACT,5902407113,1000026411
06.03.2020,ADULT SOCIAL CARE,REDACTED PERSONAL DATA,488.00,APPOINTEESHIPS,OTHER PAYMENTS FOR CLIENTS,REDACTED,REDACTED
06.03.2020,ADULT SOCIAL CARE,OXFORD BROOKES ENTERPRISES LTD,"1,456.51",ASW - PROFESSIONAL DEVELOPMENT,TRAINING,5902406105,1000076102
06.03.2020,ADULT SOCIAL CARE,OXFORD BROOKES ENTERPRISES LTD,477.05,DIR OF ASC,PROFESSIONAL FEES,5902406107,1000076102
06.03.2020,ADULT SOCIAL CARE,BEDE CAFE PROJECT,"1,300.00",LD LTS 18-64,DAYCARE,2103070630,1553877
06.03.2020,ADULT SOCIAL CARE,PROFAD CARE AGENCY,"3,124.80",LD LTS 18-64,HOMECARE - SPOT,2103070718,1000079032
06.03.2020,ADULT SOCIAL CARE,REDACTED PERSONAL DATA,"1,387.32",LD LTS 18-64,PAYMENTS TO CLIENTS (DIRECT PAYMENTS),REDACTED,REDACTED
06.03.2020,ADULT SOCIAL CARE,SURREY DOCKS FARM PROVIDENT SOCIETY,480.00,LD LTS 18-64,DAYCARE,2103070629,1000000958
06.03.2020,ADULT SOCIAL CARE,SURREY DOCKS FARM PROVIDENT SOCIETY,487.50,LD LTS 18-64,DAYCARE,2103070625,1000000958
06.03.2020,ADULT SOCIAL CARE,SURREY DOCKS FARM PROVIDENT SOCIETY,720.00,LD LTS 18-64,DAYCARE,2103070627,1000000958
06.03.2020,ADULT SOCIAL CARE,SWK DISABLEMENT ASSN,"1,137.66",LD LTS 18-64,HOMECARE - C&V,2103070645,1000011698
06.03.2020,ADULT SOCIAL CARE,SWK DISABLEMENT ASSN,"2,275.32",LD LTS 18-64,HOMECARE - C&V,2103070641,1000011698
06.03.2020,ADULT SOCIAL CARE,SWK DISABLEMENT ASSN,434.88,LD LTS 18-64,SUPPORTED LIVING,2103070632,1000011698
06.03.2020,ADULT SOCIAL CARE,SWK DISABLEMENT ASSN,434.88,LD LTS 18-64,SUPPORTED LIVING,2103070635,1000011698
06.03.2020,ADULT SOCIAL CARE,SWK DISABLEMENT ASSN,561.72,LD LTS 18-64,SUPPORTED LIVING,2103070639,1000011698
06.03.2020,ADULT SOCIAL CARE,SWK DISABLEMENT ASSN,724.80,LD LTS 18-64,SUPPORTED LIVING,2103070640,1000011698
06.03.2020,ADULT SOCIAL CARE,BEDE CAFE PROJECT,598.00,LD LTS 65+,DAYCARE,2103070631,1553877
06.03.2020,ADULT SOCIAL CARE,SWK DISABLEMENT ASSN,"1,522.08",LD LTS 65+,SUPPORTED LIVING,2103070636,1000011698
06.03.2020,ADULT SOCIAL CARE,PROFAD CARE AGENCY,"1,209.00",MEM LTS 65+,HOMECARE - SPOT,2103070667,1000079032
06.03.2020,ADULT SOCIAL CARE,PROFAD CARE AGENCY,"1,255.50",MEM LTS 65+,HOMECARE - SPOT,2103070732,1000079032
06.03.2020,ADULT SOCIAL CARE,REDACTED PERSONAL DATA,-594.66,MEM LTS 65+,DISCRETIONARY FLEXIBLE FEES & INCOME,REDACTED,REDACTED
06.03.2020,ADULT SOCIAL CARE,REDACTED PERSONAL DATA,"7,516.80",MEM LTS 65+,PAYMENTS TO CLIENTS (DIRECT PAYMENTS),REDACTED,REDACTED
06.03.2020,ADULT SOCIAL CARE,PROFAD CARE AGENCY,520.80,MH LTS 65+,HOMECARE - SPOT,2103070711,1000079032
06.03.2020,ADULT SOCIAL CARE,METROPOLITAN SUPPORT TRUST,"21,825.17",OLDER PEOPLES HUBS,EXTERNAL AGENCIES AND BODIES,5902406852,1000047547
06.03.2020,ADULT SOCIAL CARE,PROFAD CARE AGENCY,"2,994.60",PHY LTS 18-64,HOMECARE - C&V,2103070661,1000079032
06.03.2020,ADULT SOCIAL CARE,PROFAD CARE AGENCY,260.40,PHY LTS 18-64,HOMECARE - SPOT,2103070713,1000079032
06.03.2020,ADULT SOCIAL CARE,PROFAD CARE AGENCY,292.95,PHY LTS 18-64,HOMECARE - SPOT,2103070677,1000079032
06.03.2020,ADULT SOCIAL CARE,PROFAD CARE AGENCY,334.80,PHY LTS 18-64,HOMECARE - SPOT,2103070731,1000079032
06.03.2020,ADULT SOCIAL CARE,PROFAD CARE AGENCY,390.60,PHY LTS 18-64,HOMECARE - SPOT,2103070696,1000079032
06.03.2020,ADULT SOCIAL CARE,PROFAD CARE AGENCY,390.60,PHY LTS 18-64,HOMECARE - SPOT,2103070709,1000079032
06.03.2020,ADULT SOCIAL CARE,PROFAD CARE AGENCY,390.60,PHY LTS 18-64,HOMECARE - SPOT,2103070730,1000079032
06.03.2020,ADULT SOCIAL CARE,PROFAD CARE AGENCY,520.80,PHY LTS 18-64,HOMECARE - SPOT,2103070705,1000079032
06.03.2020,ADULT SOCIAL CARE,PROFAD CARE AGENCY,595.20,PHY LTS 18-64,HOMECARE - SPOT,2103070690,1000079032
06.03.2020,ADULT SOCIAL CARE,PROFAD CARE AGENCY,613.80,PHY LTS 18-64,HOMECARE - SPOT,2103070719,1000079032
06.03.2020,ADULT SOCIAL CARE,PROFAD CARE AGENCY,623.10,PHY LTS 18-64,HOMECARE - SPOT,2103070716,1000079032
06.03.2020,ADULT SOCIAL CARE,PROFAD CARE AGENCY,781.20,PHY LTS 18-64,HOMECARE - SPOT,2103070707,1000079032
06.03.2020,ADULT SOCIAL CARE,PROFAD CARE AGENCY,948.60,PHY LTS 18-64,HOMECARE - SPOT,2103070659,1000079032
06.03.2020,ADULT SOCIAL CARE,PROFAD CARE AGENCY,"1,060.20",PHY LTS 18-64,HOMECARE - SPOT,2103070715,1000079032
06.03.2020,ADULT SOCIAL CARE,PROFAD CARE AGENCY,"1,762.35",PHY LTS 18-64,HOMECARE - SPOT,2103070728,1000079032
06.03.2020,ADULT SOCIAL CARE,PROFAD CARE AGENCY,"2,790.00",PHY LTS 18-64,HOMECARE - SPOT,2103070675,1000079032
06.03.2020,ADULT SOCIAL CARE,PROFAD CARE AGENCY,"3,199.20",PHY LTS 18-64,HOMECARE - SPOT,2103070664,1000079032
06.03.2020,ADULT SOCIAL CARE,PROFAD CARE AGENCY,"3,292.20",PHY LTS 18-64,HOMECARE - SPOT,2103070737,1000079032
06.03.2020,ADULT SOCIAL CARE,SWK DISABLEMENT ASSN,679.20,PHY LTS 18-64,HOMECARE - SPOT,2103070653,1000011698
06.03.2020,ADULT SOCIAL CARE,SWK DISABLEMENT ASSN,857.49,PHY LTS 18-64,HOMECARE - SPOT,2103070649,1000011698
06.03.2020,ADULT SOCIAL CARE,SWK DISABLEMENT ASSN,"1,290.48",PHY LTS 18-64,HOMECARE - SPOT,2103070643,1000011698
06.03.2020,ADULT SOCIAL CARE,SWK DISABLEMENT ASSN,"1,358.40",PHY LTS 18-64,HOMECARE - SPOT,2103070655,1000011698
06.03.2020,ADULT SOCIAL CARE,SWK DISABLEMENT ASSN,"1,714.98",PHY LTS 18-64,HOMECARE - SPOT,2103070652,1000011698
06.03.2020,ADULT SOCIAL CARE,SWK DISABLEMENT ASSN,"1,714.98",PHY LTS 18-64,HOMECARE - SPOT,2103070654,1000011698
06.03.2020,ADULT SOCIAL CARE,LONDON CARE LTD,408.00,PHY LTS 65+,HOMECARE - C&V,2103070746,1000003398
06.03.2020,ADULT SOCIAL CARE,PROFAD CARE AGENCY,762.60,PHY LTS 65+,HOMECARE - C&V,2103070666,1000079032
06.03.2020,ADULT SOCIAL CARE,PROFAD CARE AGENCY,"2,864.40",PHY LTS 65+,HOMECARE - C&V,2103070672,1000079032
06.03.2020,ADULT SOCIAL CARE,PROFAD CARE AGENCY,260.40,PHY LTS 65+,HOMECARE - SPOT,2103070723,1000079032
06.03.2020,ADULT SOCIAL CARE,PROFAD CARE AGENCY,297.60,PHY LTS 65+,HOMECARE - SPOT,2103070729,1000079032
06.03.2020,ADULT SOCIAL CARE,PROFAD CARE AGENCY,334.80,PHY LTS 65+,HOMECARE - SPOT,2103070686,1000079032
06.03.2020,ADULT SOCIAL CARE,PROFAD CARE AGENCY,348.75,PHY LTS 65+,HOMECARE - SPOT,2103070706,1000079032
06.03.2020,ADULT SOCIAL CARE,PROFAD CARE AGENCY,390.60,PHY LTS 65+,HOMECARE - SPOT,2103070670,1000079032
06.03.2020,ADULT SOCIAL CARE,PROFAD CARE AGENCY,390.60,PHY LTS 65+,HOMECARE - SPOT,2103070687,1000079032
06.03.2020,ADULT SOCIAL CARE,PROFAD CARE AGENCY,390.60,PHY LTS 65+,HOMECARE - SPOT,2103070698,1000079032
06.03.2020,ADULT SOCIAL CARE,PROFAD CARE AGENCY,390.60,PHY LTS 65+,HOMECARE - SPOT,2103070700,1000079032
06.03.2020,ADULT SOCIAL CARE,PROFAD CARE AGENCY,520.80,PHY LTS 65+,HOMECARE - SPOT,2103070722,1000079032
06.03.2020,ADULT SOCIAL CARE,PROFAD CARE AGENCY,558.00,PHY LTS 65+,HOMECARE - SPOT,2103070703,1000079032
06.03.2020,ADULT SOCIAL CARE,PROFAD CARE AGENCY,651.00,PHY LTS 65+,HOMECARE - SPOT,2103070701,1000079032
06.03.2020,ADULT SOCIAL CARE,PROFAD CARE AGENCY,651.00,PHY LTS 65+,HOMECARE - SPOT,2103070724,1000079032
06.03.2020,ADULT SOCIAL CARE,PROFAD CARE AGENCY,688.20,PHY LTS 65+,HOMECARE - SPOT,2103070682,1000079032
06.03.2020,ADULT SOCIAL CARE,PROFAD CARE AGENCY,725.40,PHY LTS 65+,HOMECARE - SPOT,2103070695,1000079032
06.03.2020,ADULT SOCIAL CARE,PROFAD CARE AGENCY,725.40,PHY LTS 65+,HOMECARE - SPOT,2103070725,1000079032
06.03.2020,ADULT SOCIAL CARE,PROFAD CARE AGENCY,762.60,PHY LTS 65+,HOMECARE - SPOT,2103070733,1000079032
06.03.2020,ADULT SOCIAL CARE,PROFAD CARE AGENCY,781.20,PHY LTS 65+,HOMECARE - SPOT,2103070665,1000079032
06.03.2020,ADULT SOCIAL CARE,PROFAD CARE AGENCY,878.85,PHY LTS 65+,HOMECARE - SPOT,2103070668,1000079032
06.03.2020,ADULT SOCIAL CARE,PROFAD CARE AGENCY,902.10,PHY LTS 65+,HOMECARE - SPOT,2103070697,1000079032
06.03.2020,ADULT SOCIAL CARE,PROFAD CARE AGENCY,911.40,PHY LTS 65+,HOMECARE - SPOT,2103070736,1000079032
06.03.2020,ADULT SOCIAL CARE,PROFAD CARE AGENCY,967.20,PHY LTS 65+,HOMECARE - SPOT,2103070699,1000079032
06.03.2020,ADULT SOCIAL CARE,PROFAD CARE AGENCY,985.80,PHY LTS 65+,HOMECARE - SPOT,2103070712,1000079032
06.03.2020,ADULT SOCIAL CARE,PROFAD CARE AGENCY,"1,041.60",PHY LTS 65+,HOMECARE - SPOT,2103070693,1000079032
06.03.2020,ADULT SOCIAL CARE,PROFAD CARE AGENCY,"1,246.20",PHY LTS 65+,HOMECARE - SPOT,2103070669,1000079032
06.03.2020,ADULT SOCIAL CARE,PROFAD CARE AGENCY,"1,348.50",PHY LTS 65+,HOMECARE - SPOT,2103070702,1000079032
06.03.2020,ADULT SOCIAL CARE,PROFAD CARE AGENCY,"1,348.50",PHY LTS 65+,HOMECARE - SPOT,2103070717,1000079032
06.03.2020,ADULT SOCIAL CARE,PROFAD CARE AGENCY,"1,469.40",PHY LTS 65+,HOMECARE - SPOT,2103070662,1000079032
06.03.2020,ADULT SOCIAL CARE,PROFAD CARE AGENCY,"1,525.50",PHY LTS 65+,HOMECARE - SPOT,2103070671,1000079032
06.03.2020,ADULT SOCIAL CARE,PROFAD CARE AGENCY,"1,674.00",PHY LTS 65+,HOMECARE - SPOT,2103070714,1000079032
06.03.2020,ADULT SOCIAL CARE,PROFAD CARE AGENCY,"2,018.10",PHY LTS 65+,HOMECARE - SPOT,2103070704,1000079032
06.03.2020,ADULT SOCIAL CARE,PROFAD CARE AGENCY,"2,032.05",PHY LTS 65+,HOMECARE - SPOT,2103070678,1000079032
06.03.2020,ADULT SOCIAL CARE,PROFAD CARE AGENCY,"2,083.20",PHY LTS 65+,HOMECARE - SPOT,2103070708,1000079032
06.03.2020,ADULT SOCIAL CARE,PROFAD CARE AGENCY,"2,083.20",PHY LTS 65+,HOMECARE - SPOT,2103070721,1000079032
06.03.2020,ADULT SOCIAL CARE,PROFAD CARE AGENCY,"2,328.69",PHY LTS 65+,HOMECARE - SPOT,2103070674,1000079032
06.03.2020,ADULT SOCIAL CARE,PROFAD CARE AGENCY,"2,473.80",PHY LTS 65+,HOMECARE - SPOT,2103070734,1000079032
06.03.2020,ADULT SOCIAL CARE,PROFAD CARE AGENCY,"2,566.80",PHY LTS 65+,HOMECARE - SPOT,2103070660,1000079032
06.03.2020,ADULT SOCIAL CARE,PROFAD CARE AGENCY,"3,794.40",PHY LTS 65+,HOMECARE - SPOT,2103070684,1000079032
06.03.2020,ADULT SOCIAL CARE,REDACTED PERSONAL DATA,"7,516.80",PHY LTS 65+,PAYMENTS TO CLIENTS (DIRECT PAYMENTS),REDACTED,REDACTED
06.03.2020,ADULT SOCIAL CARE,SWK DISABLEMENT ASSN,297.15,PHY LTS 65+,HOMECARE - SPOT,2103070656,1000011698
06.03.2020,ADULT SOCIAL CARE,SWK DISABLEMENT ASSN,305.64,PHY LTS 65+,HOMECARE - SPOT,2103070651,1000011698
06.03.2020,ADULT SOCIAL CARE,SWK DISABLEMENT ASSN,424.50,PHY LTS 65+,HOMECARE - SPOT,2103070648,1000011698
06.03.2020,ADULT SOCIAL CARE,SWK DISABLEMENT ASSN,496.67,PHY LTS 65+,HOMECARE - SPOT,2103070657,1000011698
06.03.2020,ADULT SOCIAL CARE,SWK DISABLEMENT ASSN,849.00,PHY LTS 65+,HOMECARE - SPOT,2103070646,1000011698
06.03.2020,ADULT SOCIAL CARE,SWK DISABLEMENT ASSN,"1,392.36",PHY LTS 65+,HOMECARE - SPOT,2103070650,1000011698
06.03.2020,ADULT SOCIAL CARE,SWK DISABLEMENT ASSN,"2,585.21",PHY LTS 65+,HOMECARE - SPOT,2103070644,1000011698
06.03.2020,ADULT SOCIAL CARE,SWK DISABLEMENT ASSN,"2,784.72",PHY LTS 65+,HOMECARE - SPOT,2103070647,1000011698
06.03.2020,ADULT SOCIAL CARE,PROFAD CARE AGENCY,423.15,PHY STS 18-64,HOMECARE - IC,2103070683,1000079032
06.03.2020,ADULT SOCIAL CARE,PROFAD CARE AGENCY,297.60,PHY STS 65+,HOMECARE - IC,2103070710,1000079032
06.03.2020,ADULT SOCIAL CARE,PROFAD CARE AGENCY,316.20,PHY STS 65+,HOMECARE - IC,2103070679,1000079032
06.03.2020,ADULT SOCIAL CARE,PROFAD CARE AGENCY,"1,408.95",PHY STS 65+,HOMECARE - IC,2103070680,1000079032
06.03.2020,ADULT SOCIAL CARE,NHS SOUTHWARK CCG,"1,429,096.00",S75 SUPHSG SCH CCG LEAD,EXTERNAL AGENCIES AND BODIES,5902407202,1000073431
06.03.2020,ADULT SOCIAL CARE,PROFAD CARE AGENCY,930.00,SOCIAL ISOLATION,HOMECARE - SPOT,2103070735,1000079032
06.03.2020,ADULT SOCIAL CARE,PROFAD CARE AGENCY,"1,004.40",SOCIAL ISOLATION,HOMECARE - SPOT,2103070685,1000079032
06.03.2020,ADULT SOCIAL CARE,SURREY DOCKS FARM PROVIDENT SOCIETY,500.00,SOCIAL ISOLATION,DAYCARE,2103070626,1000000958
06.03.2020,ADULT SOCIAL CARE,CONTACT PROFESSIONALS,266.00,SPECIALIST CARE,SECTION 17 PAYMENTS TO AGENCIES/CARERS,2103070583,1000057263
06.03.2020,ADULT SOCIAL CARE,CONTACT PROFESSIONALS,266.00,SPECIALIST CARE,SECTION 17 PAYMENTS TO AGENCIES/CARERS,2103070601,1000057263
06.03.2020,ADULT SOCIAL CARE,CONTACT PROFESSIONALS,285.00,SPECIALIST CARE,SECTION 17 PAYMENTS TO AGENCIES/CARERS,2103070602,1000057263
06.03.2020,ADULT SOCIAL CARE,CONTACT PROFESSIONALS,304.00,SPECIALIST CARE,SECTION 17 PAYMENTS TO AGENCIES/CARERS,2103070612,1000057263
06.03.2020,ADULT SOCIAL CARE,CONTACT PROFESSIONALS,323.00,SPECIALIST CARE,SECTION 17 PAYMENTS TO AGENCIES/CARERS,2103070561,1000057263
06.03.2020,ADULT SOCIAL CARE,CONTACT PROFESSIONALS,380.00,SPECIALIST CARE,SECTION 17 PAYMENTS TO AGENCIES/CARERS,2103070557,1000057263
06.03.2020,ADULT SOCIAL CARE,CONTACT PROFESSIONALS,380.00,SPECIALIST CARE,SECTION 17 PAYMENTS TO AGENCIES/CARERS,2103070582,1000057263
06.03.2020,ADULT SOCIAL CARE,CONTACT PROFESSIONALS,437.00,SPECIALIST CARE,SECTION 17 PAYMENTS TO AGENCIES/CARERS,2103070600,1000057263
06.03.2020,ADULT SOCIAL CARE,REDACTED PERSONAL DATA,497.96,SPECIALIST CARE,PAYMENTS TO CLIENTS (DIRECT PAYMENTS),REDACTED,REDACTED
06.03.2020,ASSET MANAGEMENT,LONDON FIRE BRIGADE,339.00,ENG CONTRACTS (NORTH),LIFTS,5902406608,1000083629
06.03.2020,ASSET MANAGEMENT,LONDON FIRE BRIGADE,339.00,ENG CONTRACTS (NORTH),LIFTS,5902406609,1000083629
06.03.2020,ASSET MANAGEMENT,THAMES VALLEY CONTROLS LTD,"13,634.39",ENG CONTRACTS (NORTH),LIFTS,5902407321,1295718
06.03.2020,CENTRAL FUNCTIONS,CAPITA BUSINESS SERVICES LTD,"26,046.58",EXCHEQUER RENTS,OTHER CONTRACTORS,5902406369,1000006291
06.03.2020,CHIEF EXECUTIVE,CENTRAL SCHOOL OF BALLET,"825,576.80",CAPITAL PS (REGEN),CONSTRUCTION,5902405947,1000083870
06.03.2020,CHIEF EXECUTIVE,CURRIE & BROWN UK LTD,"3,000.00",CAPITAL PS (REGEN),CONSTRUCTION,5902407163,1000033455
06.03.2020,CHIEF EXECUTIVE,CURRIE & BROWN UK LTD,"3,000.00",CAPITAL PS (REGEN),CONSTRUCTION,5902407164,1000033455
06.03.2020,CHIEF EXECUTIVE,SANCHEZ BENTON ARCHITECTS LTD,531.36,CAPITAL PS (REGEN),CONSTRUCTION FEES - ARCHITECT,5902407357,1000080367
06.03.2020,CHIEF EXECUTIVE,STREET TREE CARE LTD,"2,177.00",CAPITAL PS (REGEN),CONSTRUCTION,5902406393,1000055901
06.03.2020,CHIEF EXECUTIVE'S OFFICE,HATCH ENTERPRISE,"6,750.00",BUSINESS SUPPORT,CONSULTANTS SERVICES,5902407168,1000082676
06.03.2020,CHIEF EXECUTIVE'S OFFICE,TREE SHEPHERD LTD,"8,683.00",BUSINESS SUPPORT,PROFESSIONAL FEES,5902407193,1000076895
06.03.2020,CHILDREN AND ADULT,SHARPE PRITCHARD LLP,763.00,CAPITAL PS (EDUCATION),CONSTRUCTION FEES - QUANTITY SURVEYOR,5902407335,1790085
06.03.2020,CHILDREN AND ADULT,INTERSERVE (FACILITIES MANAGEMENT),"3,025.84",CAPITAL PS (SOC SERV),CONSTRUCTION MAIN CONTRACT,2103070528,3000000166
06.03.2020,CHILDREN AND ADULT,INTERSERVE (FACILITIES MANAGEMENT),"3,312.63",CAPITAL PS (SOC SERV),CONSTRUCTION MAIN CONTRACT,2103070528,3000000166
06.03.2020,CHILDREN AND ADULT,INTERSERVE (FACILITIES MANAGEMENT),"5,114.76",CAPITAL PS (SOC SERV),CONSTRUCTION MAIN CONTRACT,2103070528,3000000166
06.03.2020,CHILDREN AND ADULT,INTERSERVE (FACILITIES MANAGEMENT),"5,999.38",CAPITAL PS (SOC SERV),CONSTRUCTION MAIN CONTRACT,2103070528,3000000166
06.03.2020,CHILDREN AND ADULT,INTERSERVE (FACILITIES MANAGEMENT),"7,807.41",CAPITAL PS (SOC SERV),CONSTRUCTION MAIN CONTRACT,2103070528,3000000166
06.03.2020,CHILDREN AND ADULT,INTERSERVE (FACILITIES MANAGEMENT),"11,027.56",CAPITAL PS (SOC SERV),CONSTRUCTION MAIN CONTRACT,2103070528,3000000166
06.03.2020,CHILDREN AND ADULT,INTERSERVE (FACILITIES MANAGEMENT),"12,562.22",CAPITAL PS (SOC SERV),CONSTRUCTION MAIN CONTRACT,2103070528,3000000166
06.03.2020,CHILDREN'S SERVICES,CONTACT PROFESSIONALS,276.31,CARE SERVICES 0-15,OTHER PAYMENTS FOR CLIENTS,5902407295,1000057263
06.03.2020,CHILDREN'S SERVICES,CONTACT PROFESSIONALS,304.00,CARE SERVICES 0-15,OTHER PAYMENTS FOR CLIENTS,5902407291,1000057263
06.03.2020,CHILDREN'S SERVICES,REDACTED PERSONAL DATA,315.00,CARE SERVICES 0-15,OTHER PAYMENTS FOR CLIENTS,REDACTED,REDACTED
06.03.2020,CHILDREN'S SERVICES,THE AMICUS COMMUNITY (ARUNDEL) LTD,708.57,CARE SERVICES 0-15,OTHER PAYMENTS FOR CLIENTS,5902407284,1000079012
06.03.2020,CHILDREN'S SERVICES,WALWORTH GARDEN FARM,"1,500.00",COMMUNITY LEARNING,GRANTS,5902407238,1000042204
06.03.2020,CHILDREN'S SERVICES,WALWORTH GARDEN FARM,"1,750.00",COMMUNITY LEARNING,GRANTS,5902407242,1000042204
06.03.2020,CHILDREN'S SERVICES,GATENBY SANDERSON LTD,"5,875.00",DIRECTOR OF EDUCATION,RECRUITMENT ADVERTISING,5902407280,1000061171
06.03.2020,CHILDREN'S SERVICES,FAMILY WORKS FOSTERING LTD,304.70,FRIENDS & FAMILY FOSTERING,OTHER PAYMENTS FOR CLIENTS,5902407286,1000082529
06.03.2020,CHILDREN'S SERVICES,FAMILY WORKS FOSTERING LTD,429.00,FRIENDS & FAMILY FOSTERING,OTHER PAYMENTS FOR CLIENTS,5902407289,1000082529
06.03.2020,CHILDREN'S SERVICES,NATIONAL FOSTERING AGENCY,"3,107.06",FRIENDS & FAMILY FOSTERING,EXTERNAL AGENCIES AND BODIES,2103070622,1000038868
06.03.2020,CHILDREN'S SERVICES,NATIONAL FOSTERING AGENCY,"3,169.41",FRIENDS & FAMILY FOSTERING,EXTERNAL AGENCIES AND BODIES,2103070621,1000038868
06.03.2020,CHILDREN'S SERVICES,NATIONAL FOSTERING AGENCY,"3,293.53",FRIENDS & FAMILY FOSTERING,EXTERNAL AGENCIES AND BODIES,2103070614,1000038868
06.03.2020,CHILDREN'S SERVICES,NATIONAL FOSTERING AGENCY,"3,293.53",FRIENDS & FAMILY FOSTERING,EXTERNAL AGENCIES AND BODIES,2103070616,1000038868
06.03.2020,CHILDREN'S SERVICES,NATIONAL FOSTERING AGENCY,"3,293.53",FRIENDS & FAMILY FOSTERING,EXTERNAL AGENCIES AND BODIES,2103070619,1000038868
06.03.2020,CHILDREN'S SERVICES,NATIONAL FOSTERING AGENCY,"4,122.06",FRIENDS & FAMILY FOSTERING,EXTERNAL AGENCIES AND BODIES,2103070615,1000038868
06.03.2020,CHILDREN'S SERVICES,NATIONAL FOSTERING AGENCY,"4,122.06",FRIENDS & FAMILY FOSTERING,EXTERNAL AGENCIES AND BODIES,2103070617,1000038868
06.03.2020,CHILDREN'S SERVICES,NATIONAL FOSTERING AGENCY,"4,122.06",FRIENDS & FAMILY FOSTERING,EXTERNAL AGENCIES AND BODIES,2103070620,1000038868
06.03.2020,CHILDREN'S SERVICES,NATIONAL FOSTERING AGENCY,"4,263.00",FRIENDS & FAMILY FOSTERING,EXTERNAL AGENCIES AND BODIES,2103070618,1000038868
06.03.2020,CHILDREN'S SERVICES,NATIONAL FOSTERING AGENCY,"4,329.12",FRIENDS & FAMILY FOSTERING,EXTERNAL AGENCIES AND BODIES,2103070613,1000038868
06.03.2020,CHILDREN'S SERVICES,NATIONAL FOSTERING AGENCY,"4,876.06",FRIENDS & FAMILY FOSTERING,EXTERNAL AGENCIES AND BODIES,2103070623,1000038868
06.03.2020,CHILDREN'S SERVICES,NATIONAL FOSTERING AGENCY,"4,925.94",FRIENDS & FAMILY FOSTERING,EXTERNAL AGENCIES AND BODIES,2103070624,1000038868
06.03.2020,CHILDREN'S SERVICES,REDACTED PERSONAL DATA,"3,105.15",FRIENDS & FAMILY FOSTERING,PAYMENTS TO CARERS,REDACTED,REDACTED
06.03.2020,CHILDREN'S SERVICES,BLACKFRIARS SETTLEMENT,"-1,000.00",LEA MUSIC SERVICE(310) - 5018566,CONSULTANTS SERVICES,5902407493,1000071456
06.03.2020,CHILDREN'S SERVICES,BLACKFRIARS SETTLEMENT,"1,000.00",LEA MUSIC SERVICE(310) - 5018566,CONSULTANTS SERVICES,5902394015,1000071456
06.03.2020,CHILDREN'S SERVICES,HARRIS PRIMARY ACADEMY PECKHAM PARK,763.20,NURSERY ED GRANT 3 AND 4 YR OLDS,GRANTS,2103069787,1000068029
06.03.2020,CHILDREN'S SERVICES,GOOSE GREEN PRIMARY AND NURSERY SCHOOL,780.00,PUPIL PREMIUM CURRENT YEAR,SCHOOLS CAPITATION,5902407359,1000070613
06.03.2020,CHILDREN'S SERVICES,PURPLE PEBBLES(CHILD CARE) SERVICES,"1,760.71",RESOURCE PANEL,OTHER PAYMENTS FOR CLIENTS,2103070741,1000070705
06.03.2020,CHILDREN'S SERVICES,TODDLE ON INN LTD,525.00,S & FAM SUPP - PRAC GRP B SET 17-19,OTHER PAYMENTS FOR CLIENTS,2103070742,1000076934
06.03.2020,CHILDREN'S SERVICES,TODDLE ON INN LTD,595.00,S & FAM SUPP - PRAC GRP B SET 17-19,OTHER PAYMENTS FOR CLIENTS,2103070743,1000076934
06.03.2020,CHILDREN'S SERVICES,TODDLE ON INN LTD,700.00,S & FAM SUPP - PRAC GRP B SET 17-19,OTHER PAYMENTS FOR CLIENTS,2103070744,1000076934
06.03.2020,CHILDREN'S SERVICES,TODDLE ON INN LTD,700.00,S & FAM SUPP - PRAC GRP B SET 17-19,OTHER PAYMENTS FOR CLIENTS,2103070745,1000076934
06.03.2020,CHILDREN'S SERVICES,PULSE HEALTHCARE LTD,-308.00,SCH TRANS - CONTRACT COST,AGENCY STAFF,5902405894,1000035063
06.03.2020,CHILDREN'S SERVICES,PULSE HEALTHCARE LTD,308.00,SCH TRANS - CONTRACT COST,AGENCY STAFF,5902405891,1000035063
06.03.2020,CHILDREN'S SERVICES,JORDAN XAVIER LTD,321.43,SEMI INDEPENDENT CARE LEAVERS,EXTERNAL AGENCIES AND BODIES,5902407273,1000081470
06.03.2020,CHILDREN'S SERVICES,JORDAN XAVIER LTD,332.14,SEMI INDEPENDENT CARE LEAVERS,EXTERNAL AGENCIES AND BODIES,5902407275,1000081470
06.03.2020,CHILDREN'S SERVICES,JORDAN XAVIER LTD,332.14,SEMI INDEPENDENT CARE LEAVERS,EXTERNAL AGENCIES AND BODIES,5902407276,1000081470
06.03.2020,CHILDREN'S SERVICES,JORDAN XAVIER LTD,"1,928.57",SEMI INDEPENDENT CARE LEAVERS,EXTERNAL AGENCIES AND BODIES,5902407273,1000081470
06.03.2020,CHILDREN'S SERVICES,JORDAN XAVIER LTD,"1,992.86",SEMI INDEPENDENT CARE LEAVERS,EXTERNAL AGENCIES AND BODIES,5902407275,1000081470
06.03.2020,CHILDREN'S SERVICES,JORDAN XAVIER LTD,"1,992.86",SEMI INDEPENDENT CARE LEAVERS,EXTERNAL AGENCIES AND BODIES,5902407276,1000081470
06.03.2020,CHILDREN'S SERVICES,RELA SUPPORT SERVICES LTD,"4,558.57",SEMI INDEPENDENT LAC,EXTERNAL AGENCIES AND BODIES,5902407272,1000073128
06.03.2020,CHILDREN'S SERVICES,ANGEL OAK ACADEMY,"2,326.53",SEN - ACADEMY AND FREE SCHOOLS,STATEMENTED FEES,2103070831,1000075379
06.03.2020,CHILDREN'S SERVICES,ANGEL OAK ACADEMY,"3,489.80",SEN - ACADEMY AND FREE SCHOOLS,STATEMENTED FEES,2103070829,1000075379
06.03.2020,CHILDREN'S SERVICES,ANGEL OAK ACADEMY,"3,697.73",SEN - ACADEMY AND FREE SCHOOLS,STATEMENTED FEES,2103070827,1000075379
06.03.2020,CHILDREN'S SERVICES,ANGEL OAK ACADEMY,"3,697.73",SEN - ACADEMY AND FREE SCHOOLS,STATEMENTED FEES,2103070828,1000075379
06.03.2020,CHILDREN'S SERVICES,ANGEL OAK ACADEMY,"3,697.73",SEN - ACADEMY AND FREE SCHOOLS,STATEMENTED FEES,2103070830,1000075379
06.03.2020,CHILDREN'S SERVICES,ARK SCHOOLS T/A GLOBE ACADEMY,816.33,SEN - ACADEMY AND FREE SCHOOLS,STATEMENTED FEES,2103070840,1000060008
06.03.2020,CHILDREN'S SERVICES,ARK SCHOOLS T/A GLOBE ACADEMY,"2,673.47",SEN - ACADEMY AND FREE SCHOOLS,STATEMENTED FEES,2103070833,1000060008
06.03.2020,CHILDREN'S SERVICES,ARK SCHOOLS T/A GLOBE ACADEMY,"2,673.47",SEN - ACADEMY AND FREE SCHOOLS,STATEMENTED FEES,2103070834,1000060008
06.03.2020,CHILDREN'S SERVICES,ARK SCHOOLS T/A GLOBE ACADEMY,"2,673.47",SEN - ACADEMY AND FREE SCHOOLS,STATEMENTED FEES,2103070844,1000060008
06.03.2020,CHILDREN'S SERVICES,ARK SCHOOLS T/A GLOBE ACADEMY,"2,673.47",SEN - ACADEMY AND FREE SCHOOLS,STATEMENTED FEES,2103070847,1000060008
06.03.2020,CHILDREN'S SERVICES,ARK SCHOOLS T/A GLOBE ACADEMY,"3,510.20",SEN - ACADEMY AND FREE SCHOOLS,STATEMENTED FEES,2103070852,1000060008
06.03.2020,CHILDREN'S SERVICES,ARK SCHOOLS T/A GLOBE ACADEMY,"5,142.86",SEN - ACADEMY AND FREE SCHOOLS,STATEMENTED FEES,2103070849,1000060008
06.03.2020,CHILDREN'S SERVICES,ARK SCHOOLS T/A GLOBE ACADEMY,"5,224.49",SEN - ACADEMY AND FREE SCHOOLS,STATEMENTED FEES,2103070850,1000060008
06.03.2020,CHILDREN'S SERVICES,ARK SCHOOLS T/A GLOBE ACADEMY,"5,346.94",SEN - ACADEMY AND FREE SCHOOLS,STATEMENTED FEES,2103070832,1000060008
06.03.2020,CHILDREN'S SERVICES,ARK SCHOOLS T/A GLOBE ACADEMY,"5,346.94",SEN - ACADEMY AND FREE SCHOOLS,STATEMENTED FEES,2103070841,1000060008
06.03.2020,CHILDREN'S SERVICES,ARK SCHOOLS T/A GLOBE ACADEMY,"5,346.94",SEN - ACADEMY AND FREE SCHOOLS,STATEMENTED FEES,2103070842,1000060008
06.03.2020,CHILDREN'S SERVICES,ARK SCHOOLS T/A GLOBE ACADEMY,"5,346.94",SEN - ACADEMY AND FREE SCHOOLS,STATEMENTED FEES,2103070843,1000060008
06.03.2020,CHILDREN'S SERVICES,ARK SCHOOLS T/A GLOBE ACADEMY,"5,346.94",SEN - ACADEMY AND FREE SCHOOLS,STATEMENTED FEES,2103070845,1000060008
06.03.2020,CHILDREN'S SERVICES,ARK SCHOOLS T/A GLOBE ACADEMY,"5,346.94",SEN - ACADEMY AND FREE SCHOOLS,STATEMENTED FEES,2103070846,1000060008
06.03.2020,CHILDREN'S SERVICES,ARK SCHOOLS T/A GLOBE ACADEMY,"8,020.41",SEN - ACADEMY AND FREE SCHOOLS,STATEMENTED FEES,2103070853,1000060008
06.03.2020,CHILDREN'S SERVICES,ARK SCHOOLS T/A GLOBE ACADEMY,"8,498.29",SEN - ACADEMY AND FREE SCHOOLS,STATEMENTED FEES,2103070835,1000060008
06.03.2020,CHILDREN'S SERVICES,ARK SCHOOLS T/A GLOBE ACADEMY,"8,498.29",SEN - ACADEMY AND FREE SCHOOLS,STATEMENTED FEES,2103070836,1000060008
06.03.2020,CHILDREN'S SERVICES,ARK SCHOOLS T/A GLOBE ACADEMY,"8,498.29",SEN - ACADEMY AND FREE SCHOOLS,STATEMENTED FEES,2103070837,1000060008
06.03.2020,CHILDREN'S SERVICES,ARK SCHOOLS T/A GLOBE ACADEMY,"8,498.29",SEN - ACADEMY AND FREE SCHOOLS,STATEMENTED FEES,2103070838,1000060008
06.03.2020,CHILDREN'S SERVICES,ARK SCHOOLS T/A GLOBE ACADEMY,"8,498.29",SEN - ACADEMY AND FREE SCHOOLS,STATEMENTED FEES,2103070839,1000060008
06.03.2020,CHILDREN'S SERVICES,ARK SCHOOLS T/A GLOBE ACADEMY,"8,498.29",SEN - ACADEMY AND FREE SCHOOLS,STATEMENTED FEES,2103070848,1000060008
06.03.2020,CHILDREN'S SERVICES,ARK SCHOOLS T/A GLOBE ACADEMY,"8,498.29",SEN - ACADEMY AND FREE SCHOOLS,STATEMENTED FEES,2103070851,1000060008
06.03.2020,CHILDREN'S SERVICES,CITY OF LONDON ACADEMY,"1,224.49",SEN - ACADEMY AND FREE SCHOOLS,STATEMENTED FEES,2103070897,1000049128
06.03.2020,CHILDREN'S SERVICES,CITY OF LONDON ACADEMY,"1,795.92",SEN - ACADEMY AND FREE SCHOOLS,STATEMENTED FEES,2103070914,1000049128
06.03.2020,CHILDREN'S SERVICES,CITY OF LONDON ACADEMY,"2,673.47",SEN - ACADEMY AND FREE SCHOOLS,STATEMENTED FEES,2103070913,1000049128
06.03.2020,CHILDREN'S SERVICES,CITY OF LONDON ACADEMY,"4,000.00",SEN - ACADEMY AND FREE SCHOOLS,STATEMENTED FEES,2103070903,1000049128
06.03.2020,CHILDREN'S SERVICES,CITY OF LONDON ACADEMY,"4,000.00",SEN - ACADEMY AND FREE SCHOOLS,STATEMENTED FEES,2103070911,1000049128
06.03.2020,CHILDREN'S SERVICES,CITY OF LONDON ACADEMY,"4,785.46",SEN - ACADEMY AND FREE SCHOOLS,STATEMENTED FEES,2103070889,1000049128
06.03.2020,CHILDREN'S SERVICES,CITY OF LONDON ACADEMY,"6,811.61",SEN - ACADEMY AND FREE SCHOOLS,STATEMENTED FEES,2103070902,1000049128
06.03.2020,CHILDREN'S SERVICES,CITY OF LONDON ACADEMY,"8,498.29",SEN - ACADEMY AND FREE SCHOOLS,STATEMENTED FEES,2103070912,1000049128
06.03.2020,CHILDREN'S SERVICES,CITY OF LONDON ACADEMY,"9,644.54",SEN - ACADEMY AND FREE SCHOOLS,STATEMENTED FEES,2103070884,1000049128
06.03.2020,CHILDREN'S SERVICES,CITY OF LONDON ACADEMY,"11,000.00",SEN - ACADEMY AND FREE SCHOOLS,STATEMENTED FEES,2103070910,1000049128
06.03.2020,CHILDREN'S SERVICES,CITY OF LONDON ACADEMY,"12,715.00",SEN - ACADEMY AND FREE SCHOOLS,STATEMENTED FEES,2103070886,1000049128
06.03.2020,CHILDREN'S SERVICES,CITY OF LONDON ACADEMY,"12,715.00",SEN - ACADEMY AND FREE SCHOOLS,STATEMENTED FEES,2103070887,1000049128
06.03.2020,CHILDREN'S SERVICES,CITY OF LONDON ACADEMY,"12,715.00",SEN - ACADEMY AND FREE SCHOOLS,STATEMENTED FEES,2103070888,1000049128
06.03.2020,CHILDREN'S SERVICES,CITY OF LONDON ACADEMY,"12,715.00",SEN - ACADEMY AND FREE SCHOOLS,STATEMENTED FEES,2103070890,1000049128
06.03.2020,CHILDREN'S SERVICES,CITY OF LONDON ACADEMY,"12,715.00",SEN - ACADEMY AND FREE SCHOOLS,STATEMENTED FEES,2103070891,1000049128
06.03.2020,CHILDREN'S SERVICES,CITY OF LONDON ACADEMY,"12,715.00",SEN - ACADEMY AND FREE SCHOOLS,STATEMENTED FEES,2103070893,1000049128
06.03.2020,CHILDREN'S SERVICES,CITY OF LONDON ACADEMY,"12,715.00",SEN - ACADEMY AND FREE SCHOOLS,STATEMENTED FEES,2103070894,1000049128
06.03.2020,CHILDREN'S SERVICES,CITY OF LONDON ACADEMY,"12,715.00",SEN - ACADEMY AND FREE SCHOOLS,STATEMENTED FEES,2103070896,1000049128
06.03.2020,CHILDREN'S SERVICES,CITY OF LONDON ACADEMY,"12,715.00",SEN - ACADEMY AND FREE SCHOOLS,STATEMENTED FEES,2103070904,1000049128
06.03.2020,CHILDREN'S SERVICES,CITY OF LONDON ACADEMY,"12,715.00",SEN - ACADEMY AND FREE SCHOOLS,STATEMENTED FEES,2103070905,1000049128
06.03.2020,CHILDREN'S SERVICES,CITY OF LONDON ACADEMY,"12,715.00",SEN - ACADEMY AND FREE SCHOOLS,STATEMENTED FEES,2103070907,1000049128
06.03.2020,CHILDREN'S SERVICES,CITY OF LONDON ACADEMY,"12,715.00",SEN - ACADEMY AND FREE SCHOOLS,STATEMENTED FEES,2103070908,1000049128
06.03.2020,CHILDREN'S SERVICES,CITY OF LONDON ACADEMY,"12,715.00",SEN - ACADEMY AND FREE SCHOOLS,STATEMENTED FEES,2103070909,1000049128
06.03.2020,CHILDREN'S SERVICES,CITY OF LONDON ACADEMY,"14,430.00",SEN - ACADEMY AND FREE SCHOOLS,STATEMENTED FEES,2103070885,1000049128
06.03.2020,CHILDREN'S SERVICES,CITY OF LONDON ACADEMY,"14,430.00",SEN - ACADEMY AND FREE SCHOOLS,STATEMENTED FEES,2103070898,1000049128
06.03.2020,CHILDREN'S SERVICES,CITY OF LONDON ACADEMY,"14,430.00",SEN - ACADEMY AND FREE SCHOOLS,STATEMENTED FEES,2103070899,1000049128
06.03.2020,CHILDREN'S SERVICES,CITY OF LONDON ACADEMY,"14,430.00",SEN - ACADEMY AND FREE SCHOOLS,STATEMENTED FEES,2103070900,1000049128
06.03.2020,CHILDREN'S SERVICES,CITY OF LONDON ACADEMY,"14,430.00",SEN - ACADEMY AND FREE SCHOOLS,STATEMENTED FEES,2103070901,1000049128
06.03.2020,CHILDREN'S SERVICES,CITY OF LONDON ACADEMY,"14,430.00",SEN - ACADEMY AND FREE SCHOOLS,STATEMENTED FEES,2103070906,1000049128
06.03.2020,CHILDREN'S SERVICES,CITY OF LONDON ACADEMY,"15,125.00",SEN - ACADEMY AND FREE SCHOOLS,STATEMENTED FEES,2103070895,1000049128
06.03.2020,CHILDREN'S SERVICES,CITY OF LONDON ACADEMY,"16,000.00",SEN - ACADEMY AND FREE SCHOOLS,STATEMENTED FEES,2103070892,1000049128
06.03.2020,CHILDREN'S SERVICES,COMPASS SCHOOLS TRUST,"1,530.61",SEN - ACADEMY AND FREE SCHOOLS,STATEMENTED FEES,2103070915,1000076195
06.03.2020,CHILDREN'S SERVICES,COMPASS SCHOOLS TRUST,"2,268.04",SEN - ACADEMY AND FREE SCHOOLS,STATEMENTED FEES,2103070924,1000076195
06.03.2020,CHILDREN'S SERVICES,COMPASS SCHOOLS TRUST,"2,673.47",SEN - ACADEMY AND FREE SCHOOLS,STATEMENTED FEES,2103070923,1000076195
06.03.2020,CHILDREN'S SERVICES,COMPASS SCHOOLS TRUST,"2,673.47",SEN - ACADEMY AND FREE SCHOOLS,STATEMENTED FEES,2103070925,1000076195
06.03.2020,CHILDREN'S SERVICES,COMPASS SCHOOLS TRUST,"5,346.94",SEN - ACADEMY AND FREE SCHOOLS,STATEMENTED FEES,2103070917,1000076195
06.03.2020,CHILDREN'S SERVICES,COMPASS SCHOOLS TRUST,"8,000.00",SEN - ACADEMY AND FREE SCHOOLS,STATEMENTED FEES,2103070916,1000076195
06.03.2020,CHILDREN'S SERVICES,DULWICH HAMLET EDUCATIONAL TRUST,"2,673.47",SEN - ACADEMY AND FREE SCHOOLS,STATEMENTED FEES,2103070931,1000066949
06.03.2020,CHILDREN'S SERVICES,DULWICH HAMLET EDUCATIONAL TRUST,"2,673.47",SEN - ACADEMY AND FREE SCHOOLS,STATEMENTED FEES,2103070933,1000066949
06.03.2020,CHILDREN'S SERVICES,DULWICH HAMLET EDUCATIONAL TRUST,"8,020.41",SEN - ACADEMY AND FREE SCHOOLS,STATEMENTED FEES,2103070932,1000066949
06.03.2020,CHILDREN'S SERVICES,GALLEYWALL PRIMARY SCHOOL,"2,326.53",SEN - ACADEMY AND FREE SCHOOLS,STATEMENTED FEES,2103070953,1000078128
06.03.2020,CHILDREN'S SERVICES,GALLEYWALL PRIMARY SCHOOL,"2,326.53",SEN - ACADEMY AND FREE SCHOOLS,STATEMENTED FEES,2103070957,1000078128
06.03.2020,CHILDREN'S SERVICES,GALLEYWALL PRIMARY SCHOOL,"3,489.80",SEN - ACADEMY AND FREE SCHOOLS,STATEMENTED FEES,2103070954,1000078128
06.03.2020,CHILDREN'S SERVICES,GALLEYWALL PRIMARY SCHOOL,"3,489.80",SEN - ACADEMY AND FREE SCHOOLS,STATEMENTED FEES,2103070955,1000078128
06.03.2020,CHILDREN'S SERVICES,GALLEYWALL PRIMARY SCHOOL,"3,489.80",SEN - ACADEMY AND FREE SCHOOLS,STATEMENTED FEES,2103070956,1000078128
06.03.2020,CHILDREN'S SERVICES,MORE HOUSE SCHOOL,"6,856.20",SEN - ACADEMY AND FREE SCHOOLS,STATEMENTED FEES,2103070962,1000076379
06.03.2020,CHILDREN'S SERVICES,REDRIFF PRIMARY SCHOOL,"2,326.53",SEN - ACADEMY AND FREE SCHOOLS,STATEMENTED FEES,2103071024,1000067877
06.03.2020,CHILDREN'S SERVICES,REDRIFF PRIMARY SCHOOL,"2,326.53",SEN - ACADEMY AND FREE SCHOOLS,STATEMENTED FEES,2103071025,1000067877
06.03.2020,CHILDREN'S SERVICES,REDRIFF PRIMARY SCHOOL,"2,326.53",SEN - ACADEMY AND FREE SCHOOLS,STATEMENTED FEES,2103071039,1000067877
06.03.2020,CHILDREN'S SERVICES,REDRIFF PRIMARY SCHOOL,"2,326.53",SEN - ACADEMY AND FREE SCHOOLS,STATEMENTED FEES,2103071043,1000067877
06.03.2020,CHILDREN'S SERVICES,REDRIFF PRIMARY SCHOOL,"2,693.88",SEN - ACADEMY AND FREE SCHOOLS,STATEMENTED FEES,2103071022,1000067877
06.03.2020,CHILDREN'S SERVICES,REDRIFF PRIMARY SCHOOL,"3,489.80",SEN - ACADEMY AND FREE SCHOOLS,STATEMENTED FEES,2103071028,1000067877
06.03.2020,CHILDREN'S SERVICES,REDRIFF PRIMARY SCHOOL,"3,697.73",SEN - ACADEMY AND FREE SCHOOLS,STATEMENTED FEES,2103071027,1000067877
06.03.2020,CHILDREN'S SERVICES,REDRIFF PRIMARY SCHOOL,"3,697.73",SEN - ACADEMY AND FREE SCHOOLS,STATEMENTED FEES,2103071037,1000067877
06.03.2020,CHILDREN'S SERVICES,REDRIFF PRIMARY SCHOOL,"3,697.73",SEN - ACADEMY AND FREE SCHOOLS,STATEMENTED FEES,2103071040,1000067877
06.03.2020,CHILDREN'S SERVICES,REDRIFF PRIMARY SCHOOL,"4,196.48",SEN - ACADEMY AND FREE SCHOOLS,STATEMENTED FEES,2103071023,1000067877
06.03.2020,CHILDREN'S SERVICES,REDRIFF PRIMARY SCHOOL,"4,196.48",SEN - ACADEMY AND FREE SCHOOLS,STATEMENTED FEES,2103071029,1000067877
06.03.2020,CHILDREN'S SERVICES,REDRIFF PRIMARY SCHOOL,"4,196.48",SEN - ACADEMY AND FREE SCHOOLS,STATEMENTED FEES,2103071030,1000067877
06.03.2020,CHILDREN'S SERVICES,REDRIFF PRIMARY SCHOOL,"4,196.48",SEN - ACADEMY AND FREE SCHOOLS,STATEMENTED FEES,2103071031,1000067877
06.03.2020,CHILDREN'S SERVICES,REDRIFF PRIMARY SCHOOL,"4,196.48",SEN - ACADEMY AND FREE SCHOOLS,STATEMENTED FEES,2103071032,1000067877
06.03.2020,CHILDREN'S SERVICES,REDRIFF PRIMARY SCHOOL,"4,196.48",SEN - ACADEMY AND FREE SCHOOLS,STATEMENTED FEES,2103071033,1000067877
06.03.2020,CHILDREN'S SERVICES,REDRIFF PRIMARY SCHOOL,"4,196.48",SEN - ACADEMY AND FREE SCHOOLS,STATEMENTED FEES,2103071034,1000067877
06.03.2020,CHILDREN'S SERVICES,REDRIFF PRIMARY SCHOOL,"4,196.48",SEN - ACADEMY AND FREE SCHOOLS,STATEMENTED FEES,2103071035,1000067877
06.03.2020,CHILDREN'S SERVICES,REDRIFF PRIMARY SCHOOL,"4,196.48",SEN - ACADEMY AND FREE SCHOOLS,STATEMENTED FEES,2103071036,1000067877
06.03.2020,CHILDREN'S SERVICES,REDRIFF PRIMARY SCHOOL,"4,196.48",SEN - ACADEMY AND FREE SCHOOLS,STATEMENTED FEES,2103071038,1000067877
06.03.2020,CHILDREN'S SERVICES,REDRIFF PRIMARY SCHOOL,"4,196.48",SEN - ACADEMY AND FREE SCHOOLS,STATEMENTED FEES,2103071041,1000067877
06.03.2020,CHILDREN'S SERVICES,REDRIFF PRIMARY SCHOOL,"4,196.48",SEN - ACADEMY AND FREE SCHOOLS,STATEMENTED FEES,2103071042,1000067877
06.03.2020,CHILDREN'S SERVICES,REDRIFF PRIMARY SCHOOL,"4,196.48",SEN - ACADEMY AND FREE SCHOOLS,STATEMENTED FEES,2103071044,1000067877
06.03.2020,CHILDREN'S SERVICES,REDRIFF PRIMARY SCHOOL,"4,196.48",SEN - ACADEMY AND FREE SCHOOLS,STATEMENTED FEES,2103071045,1000067877
06.03.2020,CHILDREN'S SERVICES,REDRIFF PRIMARY SCHOOL,"4,196.48",SEN - ACADEMY AND FREE SCHOOLS,STATEMENTED FEES,2103071046,1000067877
06.03.2020,CHILDREN'S SERVICES,REDRIFF PRIMARY SCHOOL,"4,196.48",SEN - ACADEMY AND FREE SCHOOLS,STATEMENTED FEES,2103071047,1000067877
06.03.2020,CHILDREN'S SERVICES,REDRIFF PRIMARY SCHOOL,"4,196.48",SEN - ACADEMY AND FREE SCHOOLS,STATEMENTED FEES,2103071048,1000067877
06.03.2020,CHILDREN'S SERVICES,REDRIFF PRIMARY SCHOOL,"4,204.08",SEN - ACADEMY AND FREE SCHOOLS,STATEMENTED FEES,2103071021,1000067877
06.03.2020,CHILDREN'S SERVICES,REDRIFF PRIMARY SCHOOL,"4,398.60",SEN - ACADEMY AND FREE SCHOOLS,STATEMENTED FEES,2103071026,1000067877
06.03.2020,CHILDREN'S SERVICES,THE BELHAM PRIMARY SCHOOL,"2,326.53",SEN - ACADEMY AND FREE SCHOOLS,STATEMENTED FEES,2103071069,1000080044
06.03.2020,CHILDREN'S SERVICES,THE BELHAM PRIMARY SCHOOL,"4,530.61",SEN - ACADEMY AND FREE SCHOOLS,STATEMENTED FEES,2103071068,1000080044
06.03.2020,CHILDREN'S SERVICES,THE CHARTER SCHOOL EDUCATIONAL TRUST,"1,020.41",SEN - ACADEMY AND FREE SCHOOLS,STATEMENTED FEES,2103071103,1000064975
06.03.2020,CHILDREN'S SERVICES,THE CHARTER SCHOOL EDUCATIONAL TRUST,"2,673.47",SEN - ACADEMY AND FREE SCHOOLS,STATEMENTED FEES,2103071096,1000064975
06.03.2020,CHILDREN'S SERVICES,THE CHARTER SCHOOL EDUCATIONAL TRUST,"2,673.47",SEN - ACADEMY AND FREE SCHOOLS,STATEMENTED FEES,2103071100,1000064975
06.03.2020,CHILDREN'S SERVICES,THE CHARTER SCHOOL EDUCATIONAL TRUST,"5,346.94",SEN - ACADEMY AND FREE SCHOOLS,STATEMENTED FEES,2103071101,1000064975
06.03.2020,CHILDREN'S SERVICES,THE CHARTER SCHOOL EDUCATIONAL TRUST,"8,020.41",SEN - ACADEMY AND FREE SCHOOLS,STATEMENTED FEES,2103071075,1000064975
06.03.2020,CHILDREN'S SERVICES,THE CHARTER SCHOOL EDUCATIONAL TRUST,"8,498.29",SEN - ACADEMY AND FREE SCHOOLS,STATEMENTED FEES,2103071076,1000064975
06.03.2020,CHILDREN'S SERVICES,THE CHARTER SCHOOL EDUCATIONAL TRUST,"8,498.29",SEN - ACADEMY AND FREE SCHOOLS,STATEMENTED FEES,2103071077,1000064975
06.03.2020,CHILDREN'S SERVICES,THE CHARTER SCHOOL EDUCATIONAL TRUST,"8,498.29",SEN - ACADEMY AND FREE SCHOOLS,STATEMENTED FEES,2103071078,1000064975
06.03.2020,CHILDREN'S SERVICES,THE CHARTER SCHOOL EDUCATIONAL TRUST,"8,498.29",SEN - ACADEMY AND FREE SCHOOLS,STATEMENTED FEES,2103071079,1000064975
06.03.2020,CHILDREN'S SERVICES,THE CHARTER SCHOOL EDUCATIONAL TRUST,"8,498.29",SEN - ACADEMY AND FREE SCHOOLS,STATEMENTED FEES,2103071080,1000064975
06.03.2020,CHILDREN'S SERVICES,THE CHARTER SCHOOL EDUCATIONAL TRUST,"8,498.29",SEN - ACADEMY AND FREE SCHOOLS,STATEMENTED FEES,2103071081,1000064975
06.03.2020,CHILDREN'S SERVICES,THE CHARTER SCHOOL EDUCATIONAL TRUST,"8,498.29",SEN - ACADEMY AND FREE SCHOOLS,STATEMENTED FEES,2103071082,1000064975
06.03.2020,CHILDREN'S SERVICES,THE CHARTER SCHOOL EDUCATIONAL TRUST,"8,498.29",SEN - ACADEMY AND FREE SCHOOLS,STATEMENTED FEES,2103071083,1000064975
06.03.2020,CHILDREN'S SERVICES,THE CHARTER SCHOOL EDUCATIONAL TRUST,"8,498.29",SEN - ACADEMY AND FREE SCHOOLS,STATEMENTED FEES,2103071084,1000064975
06.03.2020,CHILDREN'S SERVICES,THE CHARTER SCHOOL EDUCATIONAL TRUST,"8,498.29",SEN - ACADEMY AND FREE SCHOOLS,STATEMENTED FEES,2103071088,1000064975
06.03.2020,CHILDREN'S SERVICES,THE CHARTER SCHOOL EDUCATIONAL TRUST,"8,498.29",SEN - ACADEMY AND FREE SCHOOLS,STATEMENTED FEES,2103071090,1000064975
06.03.2020,CHILDREN'S SERVICES,THE CHARTER SCHOOL EDUCATIONAL TRUST,"8,498.29",SEN - ACADEMY AND FREE SCHOOLS,STATEMENTED FEES,2103071091,1000064975
06.03.2020,CHILDREN'S SERVICES,THE CHARTER SCHOOL EDUCATIONAL TRUST,"8,498.29",SEN - ACADEMY AND FREE SCHOOLS,STATEMENTED FEES,2103071092,1000064975
06.03.2020,CHILDREN'S SERVICES,THE CHARTER SCHOOL EDUCATIONAL TRUST,"8,498.29",SEN - ACADEMY AND FREE SCHOOLS,STATEMENTED FEES,2103071093,1000064975
06.03.2020,CHILDREN'S SERVICES,THE CHARTER SCHOOL EDUCATIONAL TRUST,"8,498.29",SEN - ACADEMY AND FREE SCHOOLS,STATEMENTED FEES,2103071094,1000064975
06.03.2020,CHILDREN'S SERVICES,THE CHARTER SCHOOL EDUCATIONAL TRUST,"8,498.29",SEN - ACADEMY AND FREE SCHOOLS,STATEMENTED FEES,2103071095,1000064975
06.03.2020,CHILDREN'S SERVICES,THE CHARTER SCHOOL EDUCATIONAL TRUST,"8,498.29",SEN - ACADEMY AND FREE SCHOOLS,STATEMENTED FEES,2103071097,1000064975
06.03.2020,CHILDREN'S SERVICES,THE CHARTER SCHOOL EDUCATIONAL TRUST,"8,498.29",SEN - ACADEMY AND FREE SCHOOLS,STATEMENTED FEES,2103071099,1000064975
06.03.2020,CHILDREN'S SERVICES,THE CHARTER SCHOOL EDUCATIONAL TRUST,"8,498.29",SEN - ACADEMY AND FREE SCHOOLS,STATEMENTED FEES,2103071102,1000064975
06.03.2020,CHILDREN'S SERVICES,THE CHARTER SCHOOL EDUCATIONAL TRUST,"8,498.29",SEN - ACADEMY AND FREE SCHOOLS,STATEMENTED FEES,2103071104,1000064975
06.03.2020,CHILDREN'S SERVICES,THE CHARTER SCHOOL EDUCATIONAL TRUST,"8,498.29",SEN - ACADEMY AND FREE SCHOOLS,STATEMENTED FEES,2103071105,1000064975
06.03.2020,CHILDREN'S SERVICES,THE CHARTER SCHOOL EDUCATIONAL TRUST,"10,109.06",SEN - ACADEMY AND FREE SCHOOLS,STATEMENTED FEES,2103071086,1000064975
06.03.2020,CHILDREN'S SERVICES,THE CHARTER SCHOOL EDUCATIONAL TRUST,"10,109.06",SEN - ACADEMY AND FREE SCHOOLS,STATEMENTED FEES,2103071087,1000064975
06.03.2020,CHILDREN'S SERVICES,THE CHARTER SCHOOL EDUCATIONAL TRUST,"10,109.06",SEN - ACADEMY AND FREE SCHOOLS,STATEMENTED FEES,2103071089,1000064975
06.03.2020,CHILDREN'S SERVICES,THE CHARTER SCHOOL EDUCATIONAL TRUST,"10,109.06",SEN - ACADEMY AND FREE SCHOOLS,STATEMENTED FEES,2103071098,1000064975
06.03.2020,CHILDREN'S SERVICES,THE CHARTER SCHOOL EDUCATIONAL TRUST,"10,693.88",SEN - ACADEMY AND FREE SCHOOLS,STATEMENTED FEES,2103071085,1000064975
06.03.2020,CHILDREN'S SERVICES,CARBONE CLINIC UK LTD,450.00,SEN - FURTHER EDUCATION,STATEMENTED FEES,2103070860,1000080937
06.03.2020,CHILDREN'S SERVICES,CARBONE CLINIC UK LTD,450.00,SEN - FURTHER EDUCATION,STATEMENTED FEES,2103070861,1000080937
06.03.2020,CHILDREN'S SERVICES,CARBONE CLINIC UK LTD,450.00,SEN - FURTHER EDUCATION,STATEMENTED FEES,2103070874,1000080937
06.03.2020,CHILDREN'S SERVICES,CARBONE CLINIC UK LTD,450.00,SEN - FURTHER EDUCATION,STATEMENTED FEES,2103070875,1000080937
06.03.2020,CHILDREN'S SERVICES,CARBONE CLINIC UK LTD,450.00,SEN - FURTHER EDUCATION,STATEMENTED FEES,2103070880,1000080937
06.03.2020,CHILDREN'S SERVICES,CARBONE CLINIC UK LTD,450.00,SEN - FURTHER EDUCATION,STATEMENTED FEES,2103070881,1000080937
